Workbook

Sheet Pachuag
A1: =YTD!L15 -> Pachaug
B2: Team | C2: Fish | D2: Member | E2: Show | F2: Non | G2: Number | H2: Number | I2: Number | J2: Lunker | K2: Species | L2: Gross | M2: Total | N2: Net | O2: Points | P2: Non Boater | Q2: # Non-
B3: Number | C3: Alone? | D3: Name | E3: Up? | F3: Boater? | G3: of LMB | H3: of SMB | I3: Dead | J3: Weight | K3: LMB/SMB | L3: Weight | M3: Caught | N3: Weight | O3: Awarded | P3: Weight | Q3: Boaters
A4: 1 | B4: 2 | C4: N | D4: =YTD!P15 -> Armand F. | E4: Y | F4: N | G4: 3 | L4: 4.28 | M4: =G4+H4 -> 3 | N4: =L4-(I4*0.2) -> 4.28 | O4: =IF($E4="N",35,IF($M4=0,30,RANK($N4,$N$4:$N$29,0))) -> 4 | P4: =IF(F4="Y",N4,0) -> 0 | Q4: =IF(E4="N",0,(IF(F4="N",0,1))) -> 0
A5: 2 | B5: 8 | C5: N | D5: =YTD!P16 -> Bill | E5: N | F5: Y | M5: 0 | N5: 0 | O5: =IF($E5="N",35,IF($M5=0,30,RANK($N5,$N$4:$N$29,0))) -> 35 | P5: 0 | Q5: =IF(E5="N",0,(IF(F5="N",0,1))) -> 0
A6: 3 | B6: 9 | C6: N | D6: =YTD!P17 -> Dean | E6: Y | F6: N | M6: =G6+H6 -> 0 | N6: =L6-(I6*0.2) -> 0 | O6: 30 | P6: =IF(F6="Y",N6,0) -> 0 | Q6: 0
A7: 4 | B7: 9 | C7: N | D7: =YTD!P18 -> Jack | E7: Y | F7: Y | G7: 1 | L7: 1.47 | M7: 1 | N7: 1.47 | O7: 8 | P7: 1.47 | Q7: 1
A8: 5 | B8: 8 | C8: y | D8: =YTD!P19 -> Jason | E8: Y | F8: N | G8: 1 | L8: 1.08 | M8: =G8+H8 -> 1 | N8: =L8-(I8*0.2) -> 1.08 | O8: 11 | P8: =IF(F8="Y",N8,0) -> 0 | Q8: 0
A9: 6 | B9: 7 | C9: N | D9: =YTD!P20 -> Jeff | E9: Y | F9: N | M9: 0 | N9: 0 | O9: 30 | P9: 0 | Q9: 0
A10: 7 | C10: N | D10: =YTD!P21 -> Jim B | E10: N | F10: Y | M10: 0 | N10: 0 | O10: 35 | P10: 0 | Q10: 0
A11: 8 | B11: 7 | C11: N | D11: =YTD!P22 -> Jim H | E11: Y | F11: Y | G11: 1 | L11: 1.08 | M11: =G11+H11 -> 1 | N11: =L11-(I11*0.2) -> 1.08 | O11: 11 | P11: =IF(F11="Y",N11,0) -> 1.08 | Q11: 1
A12: 9 | B12: 6 | C12: N | D12: =YTD!P23 -> Joe | E12: Y | F12: Y | M12: 0 | N12: 0 | O12: 30 | P12: 0 | Q12: 1
A13: 10 | B13: 4 | C13: N | D13: =YTD!P24 -> Kevin | E13: Y | F13: N | G13: 5 | L13: 6.76 | M13: 5 | N13: 6.76 | O13: 2 | P13: 0 | Q13: 0
A14: 11 | C14: N | D14: =YTD!P25 -> Mike | E14: N | F14: Y | M14: 0 | N14: 0 | O14: 35 | P14: 0 | Q14: 0
A15: 12 | B15: 3 | C15: N | D15: =YTD!P26 -> Morrie | E15: Y | F15: N | H15: 1 | L15: 0.64 | M15: 1 | N15: 0.64 | O15: 13 | P15: 0 | Q15: 0
A16: 13 | B16: 4 | C16: N | D16: =YTD!P27 -> Pete | E16: Y | F16: Y | G16: 5 | L16: 7.74 | M16: 5 | N16: 7.74 | O16: 1 | P16: 7.74 | Q16: 1
A17: 14 | B17: 1 | C17: N | D17: =YTD!P28 -> Rich B | E17: Y | F17: Y | G17: 1 | L17: 1.17 | M17: 1 | N17: 1.17 | O17: 10 | P17: 1.17 | Q17: 1
A18: 15 | B18: 3 | C18: N | D18: =YTD!P29 -> Rich T | E18: Y | F18: Y | G18: 2 | L18: 1.71 | M18: =G18+H18 -> 2 | N18: =L18-(I18*0.2) -> 1.71 | O18: 7 | P18: 1.71 | Q18: 1
A19: 16 | B19: 6 | C19: N | D19: =YTD!P30 -> Ron | E19: Y | F19: N | H19: 1 | L19: 1.38 | M19: 1 | N19: 1.38 | O19: 9 | P19: 0 | Q19: 0
A20: 17 | B20: 5 | C20: N | D20: =YTD!P31 -> Scott | E20: Y | F20: Y | G20: 1 | H20: 1 | L20: 4.86 | M20: =G20+H20 -> 2 | N20: =L20-(I20*0.2) -> 4.86 | O20: 3 | P20: =IF(F20="Y",N20,0) -> 4.86 | Q20: 1
A21: 18 | B21: 5 | C21: N | D21: =YTD!P32 -> Steve D | E21: Y | F21: N | G21: 2 | H21: 1 | L21: 3.38 | M21: 3 | N21: 3.38 | O21: 6 | P21: 0 | Q21: 0
A22: 19 | B22: 2 | C22: N | D22: =YTD!P33 -> Steve S | E22: Y | F22: Y | G22: 1 | J22: 3.59 | K22: LMB | L22: 3.59 | M22: 1 | N22: 3.59 | O22: 5 | P22: 3.59 | Q22: 1
A23: 20 | B23: 1 | C23: N | D23: =YTD!P34 -> Tom | E23: Y | F23: N | M23: =G23+H23 -> 0 | N23: =L23-(I23*0.2) -> 0 | O23: 30 | P23: 0 | Q23: 0
A24: 21 | C24: N | D24: =YTD!P35 -> Vinny | E24: N | F24: Y | M24: 0 | N24: 0 | O24: 35 | P24: 0 | Q24: 0
A25: 22 | C25: N | D25: =YTD!P36 -> X | E25: N | F25: N | M25: 0 | N25: 0 | O25: 35 | P25: 0 | Q25: 0
A26: 23 | C26: N | D26: =YTD!P37 -> X | E26: N | F26: N | M26: 0 | N26: 0 | O26: 35 | P26: 0 | Q26: 0
A27: 24 | C27: N | D27: =YTD!P38 -> X | E27: N | F27: N | M27: 0 | N27: 0 | O27: 35 | P27: 0 | Q27: 0
A28: 25 | C28: N | D28: =YTD!P39 -> X | E28: N | F28: N | M28: =G28+H28 -> 0 | N28: =L28-(I28*0.2) -> 0 | O28: 35 | P28: =IF(F28="Y",N28,0) -> 0 | Q28: =IF(E28="N",0,(IF(F28="N",0,1))) -> 0
A29: 26 | C29: N | D29: =YTD!P40 -> X | E29: N | F29: N | M29: =G29+H29 -> 0 | N29: =L29-(I29*0.2) -> 0 | O29: 35 | P29: =IF(F29="Y",N29,0) -> 0 | Q29: =IF(E29="N",0,(IF(F29="N",0,1))) -> 0
D30: Totals | E30: =COUNTIF(E4:E29,"Y") -> 17 | G30: =SUM(G4:G29) -> 23 | H30: =SUM(H4:H29) -> 4 | I30: =SUM(I4:I29) -> 0 | J30: =MAX(J4:J29) -> 3.59 | L30: =SUM(L4:L29) -> 39.14 | M30: =SUM(M4:M29) -> 27 | N30: =SUM(N4:N29) -> 39.14 | P30: =SUM(P4:P29) -> 21.62 | Q30: =SUM(Q4:Q29) -> 8
B31: Place | C31: Team # | D31: Partners | G31: Total Weight | I31: Place | J31: Team # | K31: Partners | N31: Total Weight | P31: NB Avg | Q31: =IF(Q30=0,"No Data",P30/Q30) -> 2.7025
B32: 1st | C32: =Teams!N4 -> 4 | D32: =VLOOKUP($C32,$B$4:$D$29,3,0) -> Kevin | E32: & | F32: =IF($B$4:$B$29=20,"#N/A",IF(COUNTIF($B$4:$B$29,$C32)=1,"Alone",LOOKUP(2,1/($B$4:$B$29=$C32),$D$4:$D$29))) -> Pete | G32: =Teams!O4 -> 14.5 | I32: 4th | J32: =Teams!N7 -> 8 | K32: =VLOOKUP($J32,$B$4:$D$29,3,0) -> Bill | L32: & | M32: =IF($B$4:$B$29=20,"#N/A",IF(COUNTIF($B$4:$B$29,$J32)=1,"Alone",LOOKUP(2,1/($B$4:$B$29=$J32),$D$4:$D$29))) -> Jason | N32: =Teams!O7 -> 3.7825
B33: 2nd | C33: =Teams!N5 -> 5 | D33: =VLOOKUP($C33,$B$4:$D$29,3,0) -> Scott | E33: & | F33: =IF($B$4:$B$29=20,"#N/A",IF(COUNTIF($B$4:$B$29,$C33)=1,"Alone",LOOKUP(2,1/($B$4:$B$29=$C33),$D$4:$D$29))) -> Steve D | G33: =Teams!O5 -> 8.24 | I33: 5th | J33: =Teams!N8 -> 3 | K33: =VLOOKUP($J33,$B$4:$D$29,3,0) -> Morrie | L33: & | M33: =IF($B$4:$B$29=20,"#N/A",IF(COUNTIF($B$4:$B$29,$J33)=1,"Alone",LOOKUP(2,1/($B$4:$B$29=$J33),$D$4:$D$29))) -> Rich T | N33: =Teams!O8 -> 2.35
B34: 3rd | C34: =Teams!N6 -> 2 | D34: =VLOOKUP($C34,$B$4:$D$29,3,0) -> Armand F. | E34: & | F34: =IF($B$4:$B$29=20,"#N/A",IF(COUNTIF($B$4:$B$29,$C34)=1,"Alone",LOOKUP(2,1/($B$4:$B$29=$C34),$D$4:$D$29))) -> Steve S | G34: =Teams!O6 -> 7.87 | I34: 6th | J34: =Teams!N9 -> 9 | K34: =VLOOKUP($J34,$B$4:$D$29,3,0) -> Dean | L34: & | M34: =IF($B$4:$B$29=20,"#N/A",IF(COUNTIF($B$4:$B$29,$J34)=1,"Alone",LOOKUP(2,1/($B$4:$B$29=$J34),$D$4:$D$29))) -> Jack | N34: =Teams!O9 -> 1.47

Sheet Zoar
A1: =YTD!L16 -> Zoar
B2: Team | C2: Fish | D2: Member | E2: Show | F2: Non | G2: Number | H2: Number | I2: Number | J2: Lunker | K2: Species | L2: Gross | M2: Total | N2: Net | O2: Points | P2: Non Boater | Q2: # Non-
B3: Number | C3: Alone? | D3: Name | E3: Up? | F3: Boater? | G3: of LMB | H3: of SMB | I3: Dead | J3: Weight | K3: LMB/SMB | L3: Weight | M3: Caught | N3: Weight | O3: Awarded | P3: Weight | Q3: Boaters
A4: 1 | B4: 3 | C4: N | D4: =YTD!P15 -> Armand F. | E4: Y | F4: N | G4: 2 | H4: 1 | L4: 3.35 | M4: =G4+H4 -> 3 | N4: =L4-(I4*0.2) -> 3.35 | O4: =IF($E4="N",35,IF($M4=0,30,RANK($N4,$N$4:$N$29,0))) -> 12 | P4: =IF(F4="Y",N4,0) -> 0 | Q4: =IF(E4="N",0,(IF(F4="N",0,1))) -> 0
A5: 2 | C5: N | D5: =YTD!P16 -> Bill | E5: N | F5: N | M5: 0 | N5: 0 | O5: =IF($E5="N",35,IF($M5=0,30,RANK($N5,$N$4:$N$29,0))) -> 35 | P5: 0 | Q5: =IF(E5="N",0,(IF(F5="N",0,1))) -> 0
A6: 3 | B6: 6 | C6: N | D6: =YTD!P17 -> Dean | E6: Y | F6: Y | G6: 3 | L6: 3.55 | M6: =G6+H6 -> 3 | N6: =L6-(I6*0.2) -> 3.55 | O6: 11 | P6: =IF(F6="Y",N6,0) -> 3.55 | Q6: 1
A7: 4 | B7: 10 | C7: N | D7: =YTD!P18 -> Jack | E7: Y | F7: Y | M7: 0 | N7: 0 | O7: 30 | P7: 0 | Q7: 1
A8: 5 | B8: 7 | C8: N | D8: =YTD!P19 -> Jason | E8: Y | F8: N | G8: 1 | H8: 1 | L8: 4.06 | M8: =G8+H8 -> 2 | N8: =L8-(I8*0.2) -> 4.06 | O8: 8 | P8: =IF(F8="Y",N8,0) -> 0 | Q8: 0
A9: 6 | B9: 9 | C9: N | D9: =YTD!P20 -> Jeff | E9: Y | F9: N | H9: 3 | L9: 5.36 | M9: 3 | N9: 5.36 | O9: 4 | P9: 0 | Q9: 0
A10: 7 | B10: 4 | C10: N | D10: =YTD!P21 -> Jim B | E10: Y | F10: Y | G10: 2 | H10: 3 | L10: 5.55 | M10: 5 | N10: 5.55 | O10: 2 | P10: 5.55 | Q10: 1
A11: 8 | B11: 3 | C11: N | D11: =YTD!P22 -> Jim H | E11: Y | F11: Y | G11: 4 | L11: 4.82 | M11: =G11+H11 -> 4 | N11: =L11-(I11*0.2) -> 4.82 | O11: 7 | P11: =IF(F11="Y",N11,0) -> 4.82 | Q11: 1
A12: 9 | B12: 9 | C12: N | D12: =YTD!P23 -> Joe | E12: Y | F12: Y | M12: 0 | N12: 0 | O12: 30 | P12: 0 | Q12: 1
A13: 10 | B13: 2 | C13: Y | D13: =YTD!P24 -> Kevin | E13: Y | F13: N | G13: 2 | H13: 2 | L13: 5.54 | M13: 4 | N13: 5.54 | O13: 3 | P13: 0 | Q13: 0
A14: 11 | B14: 5 | C14: N | D14: =YTD!P25 -> Mike | E14: Y | F14: Y | G14: 1 | H14: 2 | L14: 4.94 | M14: 3 | N14: 4.94 | O14: 5 | P14: 4.94 | Q14: 1
A15: 12 | B15: 5 | C15: N | D15: =YTD!P26 -> Morrie | E15: Y | F15: N | M15: 0 | N15: 0 | O15: 30 | P15: 0 | Q15: 0
A16: 13 | B16: 7 | C16: N | D16: =YTD!P27 -> Pete | E16: Y | F16: Y | G16: 3 | L16: 3.63 | M16: 3 | N16: 3.63 | O16: 10 | P16: 3.63 | Q16: 1
A17: 14 | B17: 8 | C17: N | D17: =YTD!P28 -> Rich B | E17: Y | F17: N | G17: 2 | L17: 3.32 | M17: 2 | N17: 3.32 | O17: 13 | P17: 0 | Q17: 0
A18: 15 | B18: 8 | C18: N | D18: =YTD!P29 -> Rich T | E18: Y | F18: Y | M18: =G18+H18 -> 0 | N18: =L18-(I18*0.2) -> 0 | O18: 30 | P18: 0 | Q18: 1
A19: 16 | B19: 10 | C19: N | D19: =YTD!P30 -> Ron | E19: Y | F19: N | G19: 1 | L19: 0.79 | M19: 1 | N19: 0.79 | O19: 15 | P19: 0 | Q19: 0
A20: 17 | B20: 1 | C20: N | D20: =YTD!P31 -> Scott | E20: Y | F20: N | G20: 1 | L20: 0.89 | M20: =G20+H20 -> 1 | N20: =L20-(I20*0.2) -> 0.89 | O20: 14 | P20: =IF(F20="Y",N20,0) -> 0 | Q20: 0
A21: 18 | B21: 4 | C21: N | D21: =YTD!P32 -> Steve D | E21: Y | F21: N | G21: 3 | H21: 2 | L21: 7.44 | M21: 5 | N21: 7.44 | O21: 1 | P21: 0 | Q21: 0
A22: 19 | B22: 1 | C22: N | D22: =YTD!P33 -> Steve S | E22: Y | F22: Y | H22: 2 | J22: 3.57 | K22: smb | L22: 4.85 | M22: 2 | N22: 4.85 | O22: 6 | P22: 4.85 | Q22: 1
A23: 20 | B23: 6 | C23: N | D23: =YTD!P34 -> Tom | E23: Y | F23: N | G23: 1 | H23: 2 | L23: 3.9 | M23: =G23+H23 -> 3 | N23: =L23-(I23*0.2) -> 3.9 | O23: 9 | P23: 0 | Q23: 0
A24: 21 | C24: N | D24: =YTD!P35 -> Vinny | E24: N | F24: N | M24: 0 | N24: 0 | O24: 35 | P24: 0 | Q24: 0
A25: 22 | C25: N | D25: =YTD!P36 -> X | E25: N | F25: N | M25: 0 | N25: 0 | O25: 35 | P25: 0 | Q25: 0
A26: 23 | C26: N | D26: =YTD!P37 -> X | E26: N | F26: N | M26: 0 | N26: 0 | O26: 35 | P26: 0 | Q26: 0
A27: 24 | C27: N | D27: =YTD!P38 -> X | E27: N | F27: N | M27: 0 | N27: 0 | O27: 35 | P27: 0 | Q27: 0
A28: 25 | C28: N | D28: =YTD!P39 -> X | E28: N | F28: N | M28: =G28+H28 -> 0 | N28: =L28-(I28*0.2) -> 0 | O28: 35 | P28: =IF(F28="Y",N28,0) -> 0 | Q28: =IF(E28="N",0,(IF(F28="N",0,1))) -> 0
A29: 26 | C29: N | D29: =YTD!P40 -> X | E29: N | F29: N | M29: =G29+H29 -> 0 | N29: =L29-(I29*0.2) -> 0 | O29: 35 | P29: =IF(F29="Y",N29,0) -> 0 | Q29: =IF(E29="N",0,(IF(F29="N",0,1))) -> 0
D30: Totals | E30: =COUNTIF(E4:E29,"Y") -> 19 | G30: =SUM(G4:G29) -> 26 | H30: =SUM(H4:H29) -> 18 | I30: =SUM(I4:I29) -> 0 | J30: =MAX(J4:J29) -> 3.57 | L30: =SUM(L4:L29) -> 61.99 | M30: =SUM(M4:M29) -> 44 | N30: =SUM(N4:N29) -> 61.99 | P30: =SUM(P4:P29) -> 27.34 | Q30: =SUM(Q4:Q29) -> 9
B31: Place | C31: Team # | D31: Partners | G31: Total Weight | I31: Place | J31: Team # | K31: Partners | N31: Total Weight | P31: NB Avg | Q31: =IF(Q30=0,"No Data",P30/Q30) -> 3.037777778
B32: 1st | C32: =Teams!N34 -> 4 | D32: =VLOOKUP($C32,$B$4:$D$29,3,0) -> Jim B | E32: & | F32: =IF($B$4:$B$29=20,"#N/A",IF(COUNTIF($B$4:$B$29,$C32)=1,"Alone",LOOKUP(2,1/($B$4:$B$29=$C32),$D$4:$D$29))) -> Steve D | G32: =Teams!O34 -> 12.99 | I32: 4th | J32: =Teams!N37 -> 7 | K32: =VLOOKUP($J32,$B$4:$D$29,3,0) -> Jason | L32: & | M32: =IF($B$4:$B$29=20,"#N/A",IF(COUNTIF($B$4:$B$29,$J32)=1,"Alone",LOOKUP(2,1/($B$4:$B$29=$J32),$D$4:$D$29))) -> Pete | N32: =Teams!O37 -> 7.69
B33: 2nd | C33: =Teams!N35 -> 2 | D33: =VLOOKUP($C33,$B$4:$D$29,3,0) -> Kevin | E33: & | F33: =IF($B$4:$B$29=20,"#N/A",IF(COUNTIF($B$4:$B$29,$C33)=1,"Alone",LOOKUP(2,1/($B$4:$B$29=$C33),$D$4:$D$29))) -> Alone | G33: =Teams!O35 -> 8.577777778 | I33: 5th | J33: =Teams!N38 -> 6 | K33: =VLOOKUP($J33,$B$4:$D$29,3,0) -> Dean | L33: & | M33: =IF($B$4:$B$29=20,"#N/A",IF(COUNTIF($B$4:$B$29,$J33)=1,"Alone",LOOKUP(2,1/($B$4:$B$29=$J33),$D$4:$D$29))) -> Tom | N33: =Teams!O38 -> 7.45
B34: 3rd | C34: =Teams!N36 -> 3 | D34: =VLOOKUP($C34,$B$4:$D$29,3,0) -> Armand F. | E34: & | F34: =IF($B$4:$B$29=20,"#N/A",IF(COUNTIF($B$4:$B$29,$C34)=1,"Alone",LOOKUP(2,1/($B$4:$B$29=$C34),$D$4:$D$29))) -> Jim H | G34: =Teams!O36 -> 8.17 | I34: 6th | J34: =Teams!N39 -> 1 | K34: =VLOOKUP($J34,$B$4:$D$29,3,0) -> Scott | L34: & | M34: =IF($B$4:$B$29=20,"#N/A",IF(COUNTIF($B$4:$B$29,$J34)=1,"Alone",LOOKUP(2,1/($B$4:$B$29=$J34),$D$4:$D$29))) -> Steve S | N34: =Teams!O39 -> 5.74

Sheet Quaddic
A1: =YTD!L17 -> Quaddick
B2: Team | C2: Fish | D2: Member | E2: Show | F2: Non | G2: Number | H2: Number | I2: Number | J2: Lunker | K2: Species | L2: Gross | M2: Total | N2: Net | O2: Points | P2: Non Boater | Q2: # Non-
B3: Number | C3: Alone? | D3: Name | E3: Up? | F3: Boater? | G3: of LMB | H3: of SMB | I3: Dead | J3: Weight | K3: LMB/SMB | L3: Weight | M3: Caught | N3: Weight | O3: Awarded | P3: Weight | Q3: Boaters
A4: 1 | B4: 9 | C4: N | D4: =YTD!P15 -> Armand F. | E4: y | F4: N | G4: 5 | L4: 4.54 | M4: =G4+H4 -> 5 | N4: =L4-(I4*0.2) -> 4.54 | O4: =IF($E4="N",35,IF($M4=0,30,RANK($N4,$N$4:$N$29,0))) -> 9 | P4: =IF(F4="Y",N4,0) -> 0 | Q4: =IF(E4="N",0,(IF(F4="N",0,1))) -> 0
A5: 2 | B5: 11 | C5: N | D5: =YTD!P16 -> Bill | E5: y | F5: Y | M5: 0 | N5: 0 | O5: =IF($E5="N",35,IF($M5=0,30,RANK($N5,$N$4:$N$29,0))) -> 30 | P5: 0 | Q5: =IF(E5="N",0,(IF(F5="N",0,1))) -> 1
A6: 3 | B6: 7 | C6: N | D6: =YTD!P17 -> Dean | E6: y | F6: N | G6: 4 | L6: 2.85 | M6: =G6+H6 -> 4 | N6: =L6-(I6*0.2) -> 2.85 | O6: 16 | P6: =IF(F6="Y",N6,0) -> 0 | Q6: 0
A7: 4 | B7: 6 | C7: N | D7: =YTD!P18 -> Jack | E7: y | F7: Y | G7: 4 | L7: 3.04 | M7: 4 | N7: 3.04 | O7: 15 | P7: 3.04 | Q7: 1
A8: 5 | B8: 8 | C8: Y | D8: =YTD!P19 -> Jason | E8: y | F8: N | G8: 5 | L8: 5.62 | M8: =G8+H8 -> 5 | N8: =L8-(I8*0.2) -> 5.62 | O8: 5 | P8: =IF(F8="Y",N8,0) -> 0 | Q8: 0
A9: 6 | B9: 6 | C9: N | D9: =YTD!P20 -> Jeff | E9: y | F9: N | G9: 4 | J9: 3.62 | K9: lmb | L9: 6.19 | M9: 4 | N9: 6.19 | O9: 4 | P9: 0 | Q9: 0
A10: 7 | B10: 1 | C10: N | D10: =YTD!P21 -> Jim B | E10: y | F10: Y | G10: 3 | L10: 3.11 | M10: 3 | N10: 3.11 | O10: 14 | P10: 3.11 | Q10: 1
A11: 8 | B11: 4 | C11: N | D11: =YTD!P22 -> Jim H | E11: y | F11: Y | G11: 2 | L11: 4.39 | M11: =G11+H11 -> 2 | N11: =L11-(I11*0.2) -> 4.39 | O11: 11 | P11: =IF(F11="Y",N11,0) -> 4.39 | Q11: 1
A12: 9 | B12: 9 | C12: N | D12: =YTD!P23 -> Joe | E12: y | F12: Y | G12: 5 | L12: 4.37 | M12: 5 | N12: 4.37 | O12: 12 | P12: 4.37 | Q12: 1
A13: 10 | B13: 10 | C13: N | D13: =YTD!P24 -> Kevin | E13: y | F13: N | G13: 5 | L13: 4.88 | M13: 5 | N13: 4.88 | O13: 7 | P13: 0 | Q13: 0
A14: 11 | B14: 5 | C14: N | D14: =YTD!P25 -> Mike | E14: y | F14: Y | G14: 1 | L14: 2.56 | M14: 1 | N14: 2.56 | O14: 17 | P14: 2.56 | Q14: 1
A15: 12 | B15: 2 | C15: N | D15: =YTD!P26 -> Morrie | E15: y | F15: N | G15: 2 | L15: 2.06 | M15: 2 | N15: 2.06 | O15: 18 | P15: 0 | Q15: 0
A16: 13 | B16: 7 | C16: N | D16: =YTD!P27 -> Pete | E16: y | F16: Y | G16: 4 | L16: 6.45 | M16: 4 | N16: 6.45 | O16: 3 | P16: 6.45 | Q16: 1
A17: 14 | B17: 5 | C17: N | D17: =YTD!P28 -> Rich B | E17: y | F17: N | M17: 0 | N17: 0 | O17: 30 | P17: 0 | Q17: 0
A18: 15 | B18: 3 | C18: N | D18: =YTD!P29 -> Rich T | E18: y | F18: Y | G18: 5 | L18: 4.61 | M18: =G18+H18 -> 5 | N18: =L18-(I18*0.2) -> 4.61 | O18: 8 | P18: 4.61 | Q18: 1
A19: 16 | B19: 11 | C19: N | D19: =YTD!P30 -> Ron | E19: y | F19: N | G19: 4 | L19: 3.43 | M19: 4 | N19: 3.43 | O19: 13 | P19: 0 | Q19: 0
A20: 17 | B20: 4 | C20: N | D20: =YTD!P31 -> Scott | E20: y | F20: N | G20: 5 | L20: 5.05 | M20: =G20+H20 -> 5 | N20: =L20-(I20*0.2) -> 5.05 | O20: 6 | P20: =IF(F20="Y",N20,0) -> 0 | Q20: 0
A21: 18 | B21: 3 | C21: N | D21: =YTD!P32 -> Steve D | E21: y | F21: N | G21: 5 | J21: 3.37 | L21: 6.86 | M21: 5 | N21: 6.86 | O21: 1 | P21: 0 | Q21: 0
A22: 19 | B22: 2 | C22: N | D22: =YTD!P33 -> Steve S | E22: y | F22: Y | M22: 0 | N22: 0 | O22: 30 | P22: 0 | Q22: 1
A23: 20 | B23: 1 | C23: N | D23: =YTD!P34 -> Tom | E23: y | F23: N | G23: 5 | I23: 1 | L23: 6.93 | M23: =G23+H23 -> 5 | N23: =L23-(I23*0.2) -> 6.73 | O23: 2 | P23: 0 | Q23: 0
A24: 21 | B24: 10 | C24: N | D24: =YTD!P35 -> Vinny | E24: y | F24: Y | G24: 5 | L24: 4.54 | M24: 5 | N24: 4.54 | O24: 9 | P24: 4.54 | Q24: 1
A25: 22 | C25: N | D25: =YTD!P36 -> X | E25: N | F25: N | M25: 0 | N25: 0 | O25: 35 | P25: 0 | Q25: 0
A26: 23 | C26: N | D26: =YTD!P37 -> X | E26: N | F26: N | M26: 0 | N26: 0 | O26: 35 | P26: 0 | Q26: 0
A27: 24 | C27: N | D27: =YTD!P38 -> X | E27: N | F27: N | M27: 0 | N27: 0 | O27: 35 | P27: 0 | Q27: 0
A28: 25 | C28: N | D28: =YTD!P39 -> X | E28: N | F28: N | M28: =G28+H28 -> 0 | N28: =L28-(I28*0.2) -> 0 | O28: 35 | P28: =IF(F28="Y",N28,0) -> 0 | Q28: =IF(E28="N",0,(IF(F28="N",0,1))) -> 0
A29: 26 | C29: N | D29: =YTD!P40 -> X | E29: N | F29: N | M29: =G29+H29 -> 0 | N29: =L29-(I29*0.2) -> 0 | O29: 35 | P29: =IF(F29="Y",N29,0) -> 0 | Q29: =IF(E29="N",0,(IF(F29="N",0,1))) -> 0
D30: Totals | E30: =COUNTIF(E4:E29,"Y") -> 21 | G30: =SUM(G4:G29) -> 73 | H30: =SUM(H4:H29) -> 0 | I30: =SUM(I4:I29) -> 1 | J30: =MAX(J4:J29) -> 3.62 | L30: =SUM(L4:L29) -> 81.48 | M30: =SUM(M4:M29) -> 73 | N30: =SUM(N4:N29) -> 81.28 | P30: =SUM(P4:P29) -> 33.07 | Q30: =SUM(Q4:Q29) -> 10
B31: Place | C31: Team # | D31: Partners | G31: Total Weight | I31: Place | J31: Team # | K31: Partners | N31: Total Weight | P31: NB Avg | Q31: =IF(Q30=0,"No Data",P30/Q30) -> 3.307
B32: 1st | C32: =Teams!N64 -> 3 | D32: =VLOOKUP($C32,$B$4:$D$29,3,0) -> Rich T | E32: & | F32: =IF($B$4:$B$29=20,"#N/A",IF(COUNTIF($B$4:$B$29,$C32)=1,"Alone",LOOKUP(2,1/($B$4:$B$29=$C32),$D$4:$D$29))) -> Steve D | G32: =Teams!O64 -> 11.47 | I32: 4th | J32: =Teams!N67 -> 10 | K32: =VLOOKUP($J32,$B$4:$D$29,3,0) -> Kevin | L32: & | M32: =IF($B$4:$B$29=20,"#N/A",IF(COUNTIF($B$4:$B$29,$J32)=1,"Alone",LOOKUP(2,1/($B$4:$B$29=$J32),$D$4:$D$29))) -> Vinny | N32: =Teams!O67 -> 9.42
B33: 2nd | C33: =Teams!N65 -> 1 | D33: =VLOOKUP($C33,$B$4:$D$29,3,0) -> Jim B | E33: & | F33: =IF($B$4:$B$29=20,"#N/A",IF(COUNTIF($B$4:$B$29,$C33)=1,"Alone",LOOKUP(2,1/($B$4:$B$29=$C33),$D$4:$D$29))) -> Tom | G33: =Teams!O65 -> 9.84 | I33: 5th | J33: =Teams!N68 -> 7 | K33: =VLOOKUP($J33,$B$4:$D$29,3,0) -> Dean | L33: & | M33: =IF($B$4:$B$29=20,"#N/A",IF(COUNTIF($B$4:$B$29,$J33)=1,"Alone",LOOKUP(2,1/($B$4:$B$29=$J33),$D$4:$D$29))) -> Pete | N33: =Teams!O68 -> 9.3
B34: 3rd | C34: =Teams!N66 -> 4 | D34: =VLOOKUP($C34,$B$4:$D$29,3,0) -> Jim H | E34: & | F34: =IF($B$4:$B$29=20,"#N/A",IF(COUNTIF($B$4:$B$29,$C34)=1,"Alone",LOOKUP(2,1/($B$4:$B$29=$C34),$D$4:$D$29))) -> Scott | G34: =Teams!O66 -> 9.44 | I34: 6th | J34: =Teams!N69 -> 6 | K34: =VLOOKUP($J34,$B$4:$D$29,3,0) -> Jack | L34: & | M34: =IF($B$4:$B$29=20,"#N/A",IF(COUNTIF($B$4:$B$29,$J34)=1,"Alone",LOOKUP(2,1/($B$4:$B$29=$J34),$D$4:$D$29))) -> Jeff | N34: =Teams!O69 -> 9.23

Sheet Candlewood
A1: =YTD!L18 -> Candlewood
B2: Team | C2: Fish | D2: Member | E2: Show | F2: Non | G2: Number | H2: Number | I2: Number | J2: Lunker | K2: Species | L2: Gross | M2: Total | N2: Net | O2: Points | P2: Non Boater | Q2: # Non-
B3: Number | C3: Alone? | D3: Name | E3: Up? | F3: Boater? | G3: of LMB | H3: of SMB | I3: Dead | J3: Weight | K3: LMB/SMB | L3: Weight | M3: Caught | N3: Weight | O3: Awarded | P3: Weight | Q3: Boaters
A4: 1 | B4: 1 | C4: N | D4: =YTD!P15 -> Armand F. | E4: y | F4: N | G4: 2 | H4: 3 | L4: 7.49 | M4: =G4+H4 -> 5 | N4: =L4-(I4*0.2) -> 7.49 | O4: =IF($E4="N",35,IF($M4=0,30,RANK($N4,$N$4:$N$29,0))) -> 8 | P4: =IF(F4="Y",N4,0) -> 0 | Q4: =IF(E4="N",0,(IF(F4="N",0,1))) -> 0
A5: 2 | B5: 4 | C5: N | D5: =YTD!P16 -> Bill | E5: y | F5: Y | H5: 1 | L5: 1.43 | M5: 1 | N5: 1.43 | O5: =IF($E5="N",35,IF($M5=0,30,RANK($N5,$N$4:$N$29,0))) -> 20 | P5: 1.43 | Q5: =IF(E5="N",0,(IF(F5="N",0,1))) -> 1
A6: 3 | B6: 7 | C6: Y | D6: =YTD!P17 -> Dean | E6: y | F6: N | G6: 4 | H6: 1 | L6: 8.78 | M6: =G6+H6 -> 5 | N6: =L6-(I6*0.2) -> 8.78 | O6: 3 | P6: =IF(F6="Y",N6,0) -> 0 | Q6: 0
A7: 4 | B7: 1 | C7: N | D7: =YTD!P18 -> Jack | E7: y | F7: Y | G7: 2 | H7: 3 | J7: 3.53 | K7: LMB | L7: 12.33 | M7: 5 | N7: 12.33 | O7: 1 | P7: 12.33 | Q7: 1
A8: 5 | B8: 9 | C8: N | D8: =YTD!P19 -> Jason | E8: y | F8: N | G8: 1 | L8: 2.89 | M8: =G8+H8 -> 1 | N8: =L8-(I8*0.2) -> 2.89 | O8: 16 | P8: =IF(F8="Y",N8,0) -> 0 | Q8: 0
A9: 6 | B9: 4 | C9: N | D9: =YTD!P20 -> Jeff | E9: y | F9: N | G9: 2 | H9: 3 | L9: 8.04 | M9: 5 | N9: 8.04 | O9: 5 | P9: 0 | Q9: 0
A10: 7 | B10: 3 | C10: N | D10: =YTD!P21 -> Jim B | E10: y | F10: Y | G10: 1 | H10: 2 | L10: 3.41 | M10: 3 | N10: 3.41 | O10: 13 | P10: 3.41 | Q10: 1
A11: 8 | B11: 2 | C11: N | D11: =YTD!P22 -> Jim H | E11: y | F11: Y | G11: 1 | H11: 1 | L11: 3.36 | M11: =G11+H11 -> 2 | N11: =L11-(I11*0.2) -> 3.36 | O11: 14 | P11: =IF(F11="Y",N11,0) -> 3.36 | Q11: 1
A12: 9 | B12: 8 | C12: N | D12: =YTD!P23 -> Joe | E12: y | F12: Y | G12: 1 | L12: 2.26 | M12: 1 | N12: 2.26 | O12: 17 | P12: 2.26 | Q12: 1
A13: 10 | B13: 3 | C13: N | D13: =YTD!P24 -> Kevin | E13: y | F13: N | G13: 4 | H13: 1 | L13: 8.27 | M13: 5 | N13: 8.27 | O13: 4 | P13: 0 | Q13: 0
A14: 11 | B14: 5 | C14: N | D14: =YTD!P25 -> Mike | E14: y | F14: Y | G14: 2 | H14: 1 | L14: 5.57 | M14: 3 | N14: 5.57 | O14: 10 | P14: 5.57 | Q14: 1
A15: 12 | B15: 2 | C15: N | D15: =YTD!P26 -> Morrie | E15: y | F15: N | H15: 1 | L15: 1.61 | M15: 1 | N15: 1.61 | O15: 18 | P15: 0 | Q15: 0
A16: 13 | B16: 11 | C16: N | D16: =YTD!P27 -> Pete | E16: y | F16: Y | G16: 2 | H16: 1 | L16: 4.48 | M16: 3 | N16: 4.48 | O16: 12 | P16: 4.48 | Q16: 1
A17: 14 | B17: 10 | C17: N | D17: =YTD!P28 -> Rich B | E17: y | F17: N | G17: 1 | H17: 2 | L17: 4.96 | M17: 3 | N17: 4.96 | O17: 11 | P17: 0 | Q17: 0
A18: 15 | B18: 6 | C18: N | D18: =YTD!P29 -> Rich T | E18: y | F18: Y | G18: 3 | H18: 2 | L18: 7.78 | M18: =G18+H18 -> 5 | N18: =L18-(I18*0.2) -> 7.78 | O18: 7 | P18: 7.78 | Q18: 1
A19: 16 | B19: 11 | C19: N | D19: =YTD!P30 -> Ron | E19: y | F19: N | G19: 1 | H19: 4 | L19: 8 | M19: 5 | N19: 8 | O19: 6 | P19: 0 | Q19: 0
A20: 17 | B20: 8 | C20: N | D20: =YTD!P31 -> Scott | E20: y | F20: N | G20: 3 | H20: 1 | L20: 6.51 | M20: =G20+H20 -> 4 | N20: =L20-(I20*0.2) -> 6.51 | O20: 9 | P20: =IF(F20="Y",N20,0) -> 0 | Q20: 0
A21: 18 | B21: 5 | C21: N | D21: =YTD!P32 -> Steve D | E21: y | F21: N | G21: 2 | H21: 3 | L21: 10.22 | M21: 5 | N21: 10.22 | O21: 2 | P21: 0 | Q21: 0
A22: 19 | B22: 10 | C22: N | D22: =YTD!P33 -> Steve S | E22: y | F22: Y | G22: 1 | H22: 1 | L22: 1.51 | M22: 2 | N22: 1.51 | O22: 19 | P22: 1.51 | Q22: 1
A23: 20 | B23: 6 | C23: N | D23: =YTD!P34 -> Tom | E23: y | F23: N | G23: 1 | H23: 1 | I23: 1 | L23: 3.34 | M23: =G23+H23 -> 2 | N23: =L23-(I23*0.2) -> 3.14 | O23: 15 | P23: 0 | Q23: 0
A24: 21 | B24: 9 | C24: N | D24: =YTD!P35 -> Vinny | E24: y | F24: Y | M24: 0 | N24: 0 | O24: 30 | P24: 0 | Q24: 1
A25: 22 | C25: N | D25: =YTD!P36 -> X | E25: N | F25: N | M25: 0 | N25: 0 | O25: 35 | P25: 0 | Q25: 0
A26: 23 | C26: N | D26: =YTD!P37 -> X | E26: N | F26: N | M26: 0 | N26: 0 | O26: 35 | P26: 0 | Q26: 0
A27: 24 | C27: N | D27: =YTD!P38 -> X | E27: N | F27: N | M27: 0 | N27: 0 | O27: 35 | P27: 0 | Q27: 0
A28: 25 | C28: N | D28: =YTD!P39 -> X | E28: N | F28: N | M28: =G28+H28 -> 0 | N28: =L28-(I28*0.2) -> 0 | O28: 35 | P28: =IF(F28="Y",N28,0) -> 0 | Q28: =IF(E28="N",0,(IF(F28="N",0,1))) -> 0
A29: 26 | C29: N | D29: =YTD!P40 -> X | E29: N | F29: N | M29: =G29+H29 -> 0 | N29: =L29-(I29*0.2) -> 0 | O29: 35 | P29: =IF(F29="Y",N29,0) -> 0 | Q29: =IF(E29="N",0,(IF(F29="N",0,1))) -> 0
D30: Totals | E30: =COUNTIF(E4:E29,"Y") -> 21 | G30: =SUM(G4:G29) -> 34 | H30: =SUM(H4:H29) -> 32 | I30: =SUM(I4:I29) -> 1 | J30: =MAX(J4:J29) -> 3.53 | L30: =SUM(L4:L29) -> 112.24 | M30: =SUM(M4:M29) -> 66 | N30: =SUM(N4:N29) -> 112.04 | P30: =SUM(P4:P29) -> 42.13 | Q30: =SUM(Q4:Q29) -> 10
B31: Place | C31: Team # | D31: Partners | G31: Total Weight | I31: Place | J31: Team # | K31: Partners | N31: Total Weight | P31: NB Avg | Q31: =IF(Q30=0,"No Data",P30/Q30) -> 4.213
B32: 1st | C32: =Teams!$N94 -> 1 | D32: =VLOOKUP($C32,$B$4:$D$29,3,0) -> Armand F. | E32: & | F32: =IF($B$4:$B$29=20,"#N/A",IF(COUNTIF($B$4:$B$29,$C32)=1,"Alone",LOOKUP(2,1/($B$4:$B$29=$C32),$D$4:$D$29))) -> Jack | G32: =Teams!O94 -> 19.82 | I32: 4th | J32: =Teams!$N97 -> 11 | K32: =VLOOKUP($J32,$B$4:$D$29,3,0) -> Pete | L32: & | M32: =IF($B$4:$B$29=20,"#N/A",IF(COUNTIF($B$4:$B$29,$J32)=1,"Alone",LOOKUP(2,1/($B$4:$B$29=$J32),$D$4:$D$29))) -> Ron | N32: =Teams!O97 -> 12.48
B33: 2nd | C33: =Teams!$N95 -> 5 | D33: =VLOOKUP($C33,$B$4:$D$29,3,0) -> Mike | E33: & | F33: =IF($B$4:$B$29=20,"#N/A",IF(COUNTIF($B$4:$B$29,$C33)=1,"Alone",LOOKUP(2,1/($B$4:$B$29=$C33),$D$4:$D$29))) -> Steve D | G33: =Teams!O95 -> 15.79 | I33: 5th | J33: =Teams!$N98 -> 3 | K33: =VLOOKUP($J33,$B$4:$D$29,3,0) -> Jim B | L33: & | M33: =IF($B$4:$B$29=20,"#N/A",IF(COUNTIF($B$4:$B$29,$J33)=1,"Alone",LOOKUP(2,1/($B$4:$B$29=$J33),$D$4:$D$29))) -> Kevin | N33: =Teams!O98 -> 11.68
B34: 3rd | C34: =Teams!$N96 -> 7 | D34: =VLOOKUP($C34,$B$4:$D$29,3,0) -> Dean | E34: & | F34: =IF($B$4:$B$29=20,"#N/A",IF(COUNTIF($B$4:$B$29,$C34)=1,"Alone",LOOKUP(2,1/($B$4:$B$29=$C34),$D$4:$D$29))) -> Alone | G34: =Teams!O96 -> 12.993 | I34: 6th | J34: =Teams!$N99 -> 6 | K34: =VLOOKUP($J34,$B$4:$D$29,3,0) -> Rich T | L34: & | M34: =IF($B$4:$B$29=20,"#N/A",IF(COUNTIF($B$4:$B$29,$J34)=1,"Alone",LOOKUP(2,1/($B$4:$B$29=$J34),$D$4:$D$29))) -> Tom | N34: =Teams!O99 -> 10.92

Sheet CT River
A1: =YTD!L19 -> CT River
B2: Team | C2: Fish | D2: Member | E2: Show | F2: Non | G2: Number | H2: Number | I2: Number | J2: Lunker | K2: Species | L2: Gross | M2: Total | N2: Net | O2: Points | P2: Non Boater | Q2: # Non-
B3: Number | C3: Alone? | D3: Name | E3: Up? | F3: Boater? | G3: of LMB | H3: of SMB | I3: Dead | J3: Weight | K3: LMB/SMB | L3: Weight | M3: Caught | N3: Weight | O3: Awarded | P3: Weight | Q3: Boaters
A4: 1 | B4: 6 | C4: N | D4: =YTD!P15 -> Armand F. | E4: y | F4: N | G4: 2 | L4: 2.52 | M4: =G4+H4 -> 2 | N4: =L4-(I4*0.2) -> 2.52 | O4: =IF($E4="N",35,IF($M4=0,30,RANK($N4,$N$4:$N$29,0))) -> 10 | P4: =IF(F4="Y",N4,0) -> 0 | Q4: =IF(E4="N",0,(IF(F4="N",0,1))) -> 0
A5: 2 | B5: 6 | C5: N | D5: =YTD!P16 -> Bill | E5: y | F5: Y | H5: 2 | L5: 2.24 | M5: 2 | N5: 2.24 | O5: =IF($E5="N",35,IF($M5=0,30,RANK($N5,$N$4:$N$29,0))) -> 11 | P5: 2.24 | Q5: =IF(E5="N",0,(IF(F5="N",0,1))) -> 1
A6: 3 | B6: 3 | C6: N | D6: =YTD!P17 -> Dean | E6: y | F6: N | H6: 1 | L6: 0.73 | M6: =G6+H6 -> 1 | N6: =L6-(I6*0.2) -> 0.73 | O6: 14 | P6: =IF(F6="Y",N6,0) -> 0 | Q6: 0
A7: 4 | B7: 7 | C7: N | D7: =YTD!P18 -> Jack | E7: y | F7: Y | G7: 2 | H7: 1 | J7: 2.03 | K7: lmb | L7: 5.14 | M7: 3 | N7: 5.14 | O7: 2 | P7: 5.14 | Q7: 1
A8: 5 | B8: 2 | C8: Y | D8: =YTD!P19 -> Jason | E8: y | F8: N | G8: 1 | H8: 4 | L8: 5.88 | M8: =G8+H8 -> 5 | N8: =L8-(I8*0.2) -> 5.88 | O8: 1 | P8: =IF(F8="Y",N8,0) -> 0 | Q8: 0
A9: 6 | B9: 5 | C9: N | D9: =YTD!P20 -> Jeff | E9: y | F9: N | G9: 2 | L9: 2.81 | M9: 2 | N9: 2.81 | O9: 8 | P9: 0 | Q9: 0
A10: 7 | C10: N | D10: =YTD!P21 -> Jim B | E10: N | F10: Y | M10: 0 | N10: 0 | O10: 35 | P10: 0 | Q10: 0
A11: 8 | B11: 9 | C11: N | D11: =YTD!P22 -> Jim H | E11: y | F11: Y | M11: =G11+H11 -> 0 | N11: =L11-(I11*0.2) -> 0 | O11: 30 | P11: =IF(F11="Y",N11,0) -> 0 | Q11: 1
A12: 9 | B12: 8 | C12: N | D12: =YTD!P23 -> Joe | E12: y | F12: Y | M12: 0 | N12: 0 | O12: 30 | P12: 0 | Q12: 1
A13: 10 | B13: 1 | C13: N | D13: =YTD!P24 -> Kevin | E13: y | F13: N | G13: 1 | H13: 1 | L13: 2.61 | M13: 2 | N13: 2.61 | O13: 9 | P13: 0 | Q13: 0
A14: 11 | B14: 11 | C14: N | D14: =YTD!P25 -> Mike | E14: y | F14: Y | G14: 1 | L14: 1.03 | M14: 1 | N14: 1.03 | O14: 13 | P14: 1.03 | Q14: 1
A15: 12 | B15: 8 | C15: N | D15: =YTD!P26 -> Morrie | E15: y | F15: N | M15: 0 | N15: 0 | O15: 30 | P15: 0 | Q15: 0
A16: 13 | B16: 5 | C16: N | D16: =YTD!P27 -> Pete | E16: y | F16: Y | M16: 0 | N16: 0 | O16: 30 | P16: 0 | Q16: 1
A17: 14 | B17: 9 | C17: N | D17: =YTD!P28 -> Rich B | E17: y | F17: N | G17: 2 | H17: 1 | L17: 4.45 | M17: 3 | N17: 4.45 | O17: 3 | P17: 0 | Q17: 0
A18: 15 | B18: 1 | C18: N | D18: =YTD!P29 -> Rich T | E18: y | F18: Y | H18: 2 | L18: 2.84 | M18: =G18+H18 -> 2 | N18: =L18-(I18*0.2) -> 2.84 | O18: 7 | P18: 2.84 | Q18: 1
A19: 16 | B19: 4 | C19: Y | D19: =YTD!P30 -> Ron | E19: y | F19: N | H19: 3 | L19: 3.99 | M19: 3 | N19: 3.99 | O19: 4 | P19: 0 | Q19: 0
A20: 17 | B20: 7 | C20: N | D20: =YTD!P31 -> Scott | E20: y | F20: N | H20: 3 | L20: 2.94 | M20: =G20+H20 -> 3 | N20: =L20-(I20*0.2) -> 2.94 | O20: 6 | P20: =IF(F20="Y",N20,0) -> 0 | Q20: 0
A21: 18 | B21: 10 | C21: N | D21: =YTD!P32 -> Steve D | E21: y | F21: N | G21: 1 | H21: 2 | L21: 3.11 | M21: 3 | N21: 3.11 | O21: 5 | P21: 0 | Q21: 0
A22: 19 | B22: 10 | C22: N | D22: =YTD!P33 -> Steve S | E22: y | F22: Y | G22: 1 | L22: 1.11 | M22: 1 | N22: 1.11 | O22: 12 | P22: 1.11 | Q22: 1
A23: 20 | B23: 11 | C23: N | D23: =YTD!P34 -> Tom | E23: y | F23: N | M23: =G23+H23 -> 0 | N23: =L23-(I23*0.2) -> 0 | O23: 30 | P23: 0 | Q23: 0
A24: 21 | B24: 3 | C24: N | D24: =YTD!P35 -> Vinny | E24: y | F24: Y | M24: 0 | N24: 0 | O24: 30 | P24: 0 | Q24: 1
A25: 22 | C25: N | D25: =YTD!P36 -> X | E25: N | F25: N | M25: 0 | N25: 0 | O25: 35 | P25: 0 | Q25: 0
A26: 23 | C26: N | D26: =YTD!P37 -> X | E26: N | F26: N | M26: 0 | N26: 0 | O26: 35 | P26: 0 | Q26: 0
A27: 24 | C27: N | D27: =YTD!P38 -> X | E27: N | F27: N | M27: 0 | N27: 0 | O27: 35 | P27: 0 | Q27: 0
A28: 25 | C28: N | D28: =YTD!P39 -> X | E28: N | F28: N | M28: =G28+H28 -> 0 | N28: =L28-(I28*0.2) -> 0 | O28: 35 | P28: =IF(F28="Y",N28,0) -> 0 | Q28: =IF(E28="N",0,(IF(F28="N",0,1))) -> 0
A29: 26 | C29: N | D29: =YTD!P40 -> X | E29: N | F29: N | M29: =G29+H29 -> 0 | N29: =L29-(I29*0.2) -> 0 | O29: 35 | P29: =IF(F29="Y",N29,0) -> 0 | Q29: =IF(E29="N",0,(IF(F29="N",0,1))) -> 0
D30: Totals | E30: =COUNTIF(E4:E29,"Y") -> 20 | G30: =SUM(G4:G29) -> 13 | H30: =SUM(H4:H29) -> 20 | I30: =SUM(I4:I29) -> 0 | J30: =MAX(J4:J29) -> 2.03 | L30: =SUM(L4:L29) -> 41.4 | M30: =SUM(M4:M29) -> 33 | N30: =SUM(N4:N29) -> 41.4 | P30: =SUM(P4:P29) -> 12.36 | Q30: =SUM(Q4:Q29) -> 9
B31: Place | C31: Team # | D31: Partners | G31: Total Weight | I31: Place | J31: Team # | K31: Partners | N31: Total Weight | P31: NB Avg | Q31: =IF(Q30=0,"No Data",P30/Q30) -> 1.373333333
B32: 1st | C32: =Teams!$AD4 -> 7 | D32: =VLOOKUP($C32,$B$4:$D$29,3,0) -> Jack | E32: & | F32: =IF($B$4:$B$29=20,"#N/A",IF(COUNTIF($B$4:$B$29,$C32)=1,"Alone",LOOKUP(2,1/($B$4:$B$29=$C32),$D$4:$D$29))) -> Scott | G32: =Teams!AE4 -> 8.08 | I32: 4th | J32: =Teams!$AD7 -> 4 | K32: =VLOOKUP($J32,$B$4:$D$29,3,0) -> Ron | L32: & | M32: =IF($B$4:$B$29=20,"#N/A",IF(COUNTIF($B$4:$B$29,$J32)=1,"Alone",LOOKUP(2,1/($B$4:$B$29=$J32),$D$4:$D$29))) -> Alone | N32: =Teams!AE7 -> 5.363333333
B33: 2nd | C33: =Teams!$AD5 -> 2 | D33: =VLOOKUP($C33,$B$4:$D$29,3,0) -> Jason | E33: & | F33: =IF($B$4:$B$29=20,"#N/A",IF(COUNTIF($B$4:$B$29,$C33)=1,"Alone",LOOKUP(2,1/($B$4:$B$29=$C33),$D$4:$D$29))) -> Alone | G33: =Teams!AE5 -> 7.253333333 | I33: 5th | J33: =Teams!$AD8 -> 6 | K33: =VLOOKUP($J33,$B$4:$D$29,3,0) -> Armand F. | L33: & | M33: =IF($B$4:$B$29=20,"#N/A",IF(COUNTIF($B$4:$B$29,$J33)=1,"Alone",LOOKUP(2,1/($B$4:$B$29=$J33),$D$4:$D$29))) -> Bill | N33: =Teams!AE8 -> 4.76
B34: 3rd | C34: =Teams!$AD6 -> 1 | D34: =VLOOKUP($C34,$B$4:$D$29,3,0) -> Kevin | E34: & | F34: =IF($B$4:$B$29=20,"#N/A",IF(COUNTIF($B$4:$B$29,$C34)=1,"Alone",LOOKUP(2,1/($B$4:$B$29=$C34),$D$4:$D$29))) -> Rich T | G34: =Teams!AE6 -> 5.45 | I34: 6th | J34: =Teams!$AD9 -> 9 | K34: =VLOOKUP($J34,$B$4:$D$29,3,0) -> Jim H | L34: & | M34: =IF($B$4:$B$29=20,"#N/A",IF(COUNTIF($B$4:$B$29,$J34)=1,"Alone",LOOKUP(2,1/($B$4:$B$29=$J34),$D$4:$D$29))) -> Rich B | N34: =Teams!AE9 -> 4.45

Sheet Hamilton
A1: =YTD!L20 -> Hamilton
B2: Team | C2: Fish | D2: Member | E2: Show | F2: Non | G2: Number | H2: Number | I2: Number | J2: Lunker | K2: Species | L2: Gross | M2: Total | N2: Net | O2: Points | P2: Non Boater | Q2: # Non-
B3: Number | C3: Alone? | D3: Name | E3: Up? | F3: Boater? | G3: of LMB | H3: of SMB | I3: Dead | J3: Weight | K3: LMB/SMB | L3: Weight | M3: Caught | N3: Weight | O3: Awarded | P3: Weight | Q3: Boaters
A4: 1 | B4: 7 | C4: N | D4: =YTD!P15 -> Armand F. | E4: y | F4: N | G4: 5 | L4: 6.02 | M4: =G4+H4 -> 5 | N4: =L4-(I4*0.2) -> 6.02 | O4: =IF($E4="N",35,IF($M4=0,30,RANK($N4,$N$4:$N$29,0))) -> 6 | P4: =IF(F4="Y",N4,0) -> 0 | Q4: =IF(E4="N",0,(IF(F4="N",0,1))) -> 0
A5: 2 | B5: 5 | C5: N | D5: =YTD!P16 -> Bill | E5: y | F5: Y | G5: 3 | L5: 3.65 | M5: 3 | N5: 3.65 | O5: =IF($E5="N",35,IF($M5=0,30,RANK($N5,$N$4:$N$29,0))) -> 12 | P5: 3.65 | Q5: =IF(E5="N",0,(IF(F5="N",0,1))) -> 1
A6: 3 | C6: N | D6: =YTD!P17 -> Dean | E6: N | F6: N | M6: =G6+H6 -> 0 | N6: =L6-(I6*0.2) -> 0 | O6: 35 | P6: =IF(F6="Y",N6,0) -> 0 | Q6: 0
A7: 4 | B7: 9 | C7: N | D7: =YTD!P18 -> Jack | E7: y | F7: Y | G7: 3 | L7: 4.12 | M7: 3 | N7: 4.12 | O7: 9 | P7: 4.12 | Q7: 1
A8: 5 | B8: 1 | C8: N | D8: =YTD!P19 -> Jason | E8: y | F8: N | G8: 3 | L8: 3.15 | M8: =G8+H8 -> 3 | N8: =L8-(I8*0.2) -> 3.15 | O8: 15 | P8: =IF(F8="Y",N8,0) -> 0 | Q8: 0
A9: 6 | B9: 10 | C9: Y | D9: =YTD!P20 -> Jeff | E9: y | F9: N | G9: 4 | L9: 7.09 | M9: 4 | N9: 7.09 | O9: 1 | P9: 0 | Q9: 0
A10: 7 | B10: 4 | C10: N | D10: =YTD!P21 -> Jim B | E10: y | F10: Y | G10: 4 | I10: 1 | L10: 3.73 | M10: 4 | N10: 3.53 | O10: 13 | P10: 3.53 | Q10: 1
A11: 8 | C11: N | D11: =YTD!P22 -> Jim H | E11: n | F11: Y | M11: =G11+H11 -> 0 | N11: =L11-(I11*0.2) -> 0 | O11: 35 | P11: =IF(F11="Y",N11,0) -> 0 | Q11: 0
A12: 9 | B12: 8 | C12: N | D12: =YTD!P23 -> Joe | E12: y | F12: Y | G12: 3 | J12: 2.54 | K12: LMB | L12: 4.34 | M12: 3 | N12: 4.34 | O12: 8 | P12: 4.34 | Q12: 1
A13: 10 | B13: 2 | C13: N | D13: =YTD!P24 -> Kevin | E13: y | F13: N | G13: 3 | L13: 3.91 | M13: 3 | N13: 3.91 | O13: 11 | P13: 0 | Q13: 0
A14: 11 | B14: 2 | C14: N | D14: =YTD!P25 -> Mike | E14: y | F14: Y | G14: 4 | L14: 4.04 | M14: 4 | N14: 4.04 | O14: 10 | P14: 4.04 | Q14: 1
A15: 12 | B15: 9 | C15: N | D15: =YTD!P26 -> Morrie | E15: y | F15: N | G15: 1 | J15: 2.82 | K15: LMB | L15: 2.82 | M15: 1 | N15: 2.82 | O15: 16 | P15: 0 | Q15: 0
A16: 13 | B16: 7 | C16: N | D16: =YTD!P27 -> Pete | E16: y | F16: Y | G16: 5 | L16: 7.04 | M16: 5 | N16: 7.04 | O16: 3 | P16: 7.04 | Q16: 1
A17: 14 | B17: 8 | C17: N | D17: =YTD!P28 -> Rich B | E17: y | F17: N | G17: 2 | L17: 2.54 | M17: 2 | N17: 2.54 | O17: 17 | P17: 0 | Q17: 0
A18: 15 | B18: 1 | C18: N | D18: =YTD!P29 -> Rich T | E18: y | F18: N | G18: 1 | L18: 0.93 | M18: =G18+H18 -> 1 | N18: =L18-(I18*0.2) -> 0.93 | O18: 19 | P18: 0 | Q18: 0
A19: 16 | B19: 6 | C19: N | D19: =YTD!P30 -> Ron | E19: y | F19: N | G19: 5 | L19: 6.93 | M19: 5 | N19: 6.93 | O19: 4 | P19: 0 | Q19: 0
A20: 17 | B20: 5 | C20: N | D20: =YTD!P31 -> Scott | E20: y | F20: N | G20: 5 | L20: 6.53 | M20: =G20+H20 -> 5 | N20: =L20-(I20*0.2) -> 6.53 | O20: 5 | P20: =IF(F20="Y",N20,0) -> 0 | Q20: 0
A21: 18 | B21: 4 | C21: N | D21: =YTD!P32 -> Steve D | E21: y | F21: N | G21: 3 | L21: 3.3 | M21: 3 | N21: 3.3 | O21: 14 | P21: 0 | Q21: 0
A22: 19 | B22: 3 | C22: N | D22: =YTD!P33 -> Steve S | E22: y | F22: Y | G22: 2 | L22: 1.93 | M22: 2 | N22: 1.93 | O22: 18 | P22: 1.93 | Q22: 1
A23: 20 | B23: 3 | C23: N | D23: =YTD!P34 -> Tom | E23: y | F23: N | G23: 5 | J23: 1.27 | K23: LMB | L23: 5.38 | M23: =G23+H23 -> 5 | N23: =L23-(I23*0.2) -> 5.38 | O23: 7 | P23: 0 | Q23: 0
A24: 21 | B24: 6 | C24: N | D24: =YTD!P35 -> Vinny | E24: y | F24: Y | G24: 4 | H24: 1 | L24: 7.06 | M24: 5 | N24: 7.06 | O24: 2 | P24: 7.06 | Q24: 1
A25: 22 | C25: N | D25: =YTD!P36 -> X | E25: N | F25: N | M25: 0 | N25: 0 | O25: 35 | P25: 0 | Q25: 0
A26: 23 | C26: N | D26: =YTD!P37 -> X | E26: N | F26: N | M26: 0 | N26: 0 | O26: 35 | P26: 0 | Q26: 0
A27: 24 | C27: N | D27: =YTD!P38 -> X | E27: N | F27: N | M27: 0 | N27: 0 | O27: 35 | P27: 0 | Q27: 0
A28: 25 | C28: N | D28: =YTD!P39 -> X | E28: N | F28: N | M28: =G28+H28 -> 0 | N28: =L28-(I28*0.2) -> 0 | O28: 35 | P28: =IF(F28="Y",N28,0) -> 0 | Q28: =IF(E28="N",0,(IF(F28="N",0,1))) -> 0
A29: 26 | C29: N | D29: =YTD!P40 -> X | E29: N | F29: N | M29: =G29+H29 -> 0 | N29: =L29-(I29*0.2) -> 0 | O29: 35 | P29: =IF(F29="Y",N29,0) -> 0 | Q29: =IF(E29="N",0,(IF(F29="N",0,1))) -> 0
D30: Totals | E30: =COUNTIF(E4:E29,"Y") -> 19 | G30: =SUM(G4:G29) -> 65 | H30: =SUM(H4:H29) -> 1 | I30: =SUM(I4:I29) -> 1 | J30: =MAX(J4:J29) -> 2.82 | L30: =SUM(L4:L29) -> 84.51 | M30: =SUM(M4:M29) -> 66 | N30: =SUM(N4:N29) -> 84.31 | P30: =SUM(P4:P29) -> 35.71 | Q30: =SUM(Q4:Q29) -> 8
B31: Place | C31: Team # | D31: Partners | G31: Total Weight | I31: Place | J31: Team # | K31: Partners | N31: Total Weight | P31: NB Avg | Q31: =IF(Q30=0,"No Data",P30/Q30) -> 4.46375
B32: 1st | C32: =Teams!$AD34 -> 6 | D32: =VLOOKUP($C32,$B$4:$D$29,3,0) -> Ron | E32: & | F32: =IF($B$4:$B$29=20,"#N/A",IF(COUNTIF($B$4:$B$29,$C32)=1,"Alone",LOOKUP(2,1/($B$4:$B$29=$C32),$D$4:$D$29))) -> Vinny | G32: =Teams!AE34 -> 13.99 | I32: 4th | J32: =Teams!$AD37 -> 5 | K32: =VLOOKUP($J32,$B$4:$D$29,3,0) -> Bill | L32: & | M32: =IF($B$4:$B$29=20,"#N/A",IF(COUNTIF($B$4:$B$29,$J32)=1,"Alone",LOOKUP(2,1/($B$4:$B$29=$J32),$D$4:$D$29))) -> Scott | N32: =Teams!AE37 -> 10.18
B33: 2nd | C33: =Teams!$AD35 -> 7 | D33: =VLOOKUP($C33,$B$4:$D$29,3,0) -> Armand F. | E33: & | F33: =IF($B$4:$B$29=20,"#N/A",IF(COUNTIF($B$4:$B$29,$C33)=1,"Alone",LOOKUP(2,1/($B$4:$B$29=$C33),$D$4:$D$29))) -> Pete | G33: =Teams!AE35 -> 13.06 | I33: 5th | J33: =Teams!$AD38 -> 2 | K33: =VLOOKUP($J33,$B$4:$D$29,3,0) -> Kevin | L33: & | M33: =IF($B$4:$B$29=20,"#N/A",IF(COUNTIF($B$4:$B$29,$J33)=1,"Alone",LOOKUP(2,1/($B$4:$B$29=$J33),$D$4:$D$29))) -> Mike | N33: =Teams!AE38 -> 7.95
B34: 3rd | C34: =Teams!$AD36 -> 10 | D34: =VLOOKUP($C34,$B$4:$D$29,3,0) -> Jeff | E34: & | F34: =IF($B$4:$B$29=20,"#N/A",IF(COUNTIF($B$4:$B$29,$C34)=1,"Alone",LOOKUP(2,1/($B$4:$B$29=$C34),$D$4:$D$29))) -> Alone | G34: =Teams!AE36 -> 11.55375 | I34: 6th | J34: =Teams!$AD39 -> 3 | K34: =VLOOKUP($J34,$B$4:$D$29,3,0) -> Steve S | L34: & | M34: =IF($B$4:$B$29=20,"#N/A",IF(COUNTIF($B$4:$B$29,$J34)=1,"Alone",LOOKUP(2,1/($B$4:$B$29=$J34),$D$4:$D$29))) -> Tom | N34: =Teams!AE39 -> 7.31

Sheet Lilly
A1: =YTD!L21 -> Lilly
B2: Team | C2: Fish | D2: Member | E2: Show | F2: Non | G2: Number | H2: Number | I2: Number | J2: Lunker | K2: Species | L2: Gross | M2: Total | N2: Net | O2: Points | P2: Non Boater | Q2: # Non-
B3: Number | C3: Alone? | D3: Name | E3: Up? | F3: Boater? | G3: of LMB | H3: of SMB | I3: Dead | J3: Weight | K3: LMB/SMB | L3: Weight | M3: Caught | N3: Weight | O3: Awarded | P3: Weight | Q3: Boaters
A4: 1 | B4: 2 | C4: N | D4: =YTD!P15 -> Armand F. | E4: y | F4: Y | G4: 2 | H4: 3 | L4: 5.74 | M4: =G4+H4 -> 5 | N4: =L4-(I4*0.2) -> 5.74 | O4: =IF($E4="N",35,IF($M4=0,30,RANK($N4,$N$4:$N$29,0))) -> 8 | P4: =IF(F4="Y",N4,0) -> 5.74 | Q4: =IF(E4="N",0,(IF(F4="N",0,1))) -> 1
A5: 2 | B5: 10 | C5: N | D5: =YTD!P16 -> Bill | E5: y | F5: Y | G5: 2 | H5: 2 | L5: 4.08 | M5: 4 | N5: 4.08 | O5: =IF($E5="N",35,IF($M5=0,30,RANK($N5,$N$4:$N$29,0))) -> 12 | P5: 4.08 | Q5: =IF(E5="N",0,(IF(F5="N",0,1))) -> 1
A6: 3 | B6: 8 | C6: N | D6: =YTD!P17 -> Dean | E6: y | F6: N | G6: 2 | H6: 3 | L6: 7.17 | M6: =G6+H6 -> 5 | N6: =L6-(I6*0.2) -> 7.17 | O6: 6 | P6: =IF(F6="Y",N6,0) -> 0 | Q6: 0
A7: 4 | B7: 9 | C7: N | D7: =YTD!P18 -> Jack | E7: y | F7: Y | G7: 2 | H7: 3 | L7: 6.18 | M7: 5 | N7: 6.18 | O7: 7 | P7: 6.18 | Q7: 1
A8: 5 | B8: 5 | C8: N | D8: =YTD!P19 -> Jason | E8: y | F8: N | G8: 2 | H8: 3 | J8: 4.23 | K8: SMB | L8: 7.79 | M8: =G8+H8 -> 5 | N8: =L8-(I8*0.2) -> 7.79 | O8: 4 | P8: =IF(F8="Y",N8,0) -> 0 | Q8: 0
A9: 6 | B9: 2 | C9: N | D9: =YTD!P20 -> Jeff | E9: y | F9: N | G9: 2 | H9: 3 | I9: 1 | L9: 8.19 | M9: 5 | N9: 7.99 | O9: 3 | P9: 0 | Q9: 0
A10: 7 | B10: 7 | C10: N | D10: =YTD!P21 -> Jim B | E10: y | F10: Y | M10: 0 | N10: 0 | O10: 30 | P10: 0 | Q10: 1
A11: 8 | B11: 4 | C11: N | D11: =YTD!P22 -> Jim H | E11: y | F11: Y | G11: 2 | H11: 1 | L11: 2.89 | M11: =G11+H11 -> 3 | N11: =L11-(I11*0.2) -> 2.89 | O11: 16 | P11: =IF(F11="Y",N11,0) -> 2.89 | Q11: 1
A12: 9 | B12: 3 | C12: N | D12: =YTD!P23 -> Joe | E12: y | F12: Y | G12: 2 | J12: 3.83 | K12: LMB | L12: 5.54 | M12: 2 | N12: 5.54 | O12: 9 | P12: 5.54 | Q12: 1
A13: 10 | B13: 1 | C13: N | D13: =YTD!P24 -> Kevin | E13: y | F13: N | H13: 4 | L13: 8.25 | M13: 4 | N13: 8.25 | O13: 2 | P13: 0 | Q13: 0
A14: 11 | B14: 5 | C14: N | D14: =YTD!P25 -> Mike | E14: y | F14: Y | H14: 1 | L14: 1.02 | M14: 1 | N14: 1.02 | O14: 19 | P14: 1.02 | Q14: 1
A15: 12 | B15: 10 | C15: N | D15: =YTD!P26 -> Morrie | E15: y | F15: N | G15: 4 | H15: 1 | J15: 3.87 | K15: LMB | L15: 8.38 | M15: 5 | N15: 8.38 | O15: 1 | P15: 0 | Q15: 0
A16: 13 | B16: 6 | C16: N | D16: =YTD!P27 -> Pete | E16: y | F16: Y | G16: 2 | H16: 1 | L16: 3.92 | M16: 3 | N16: 3.92 | O16: 13 | P16: 3.92 | Q16: 1
A17: 14 | B17: 9 | C17: N | D17: =YTD!P28 -> Rich B | E17: y | F17: N | G17: 3 | H17: 2 | I17: 1 | L17: 5.14 | M17: 5 | N17: 4.94 | O17: 10 | P17: 0 | Q17: 0
A18: 15 | B18: 8 | C18: N | D18: =YTD!P29 -> Rich T | E18: y | F18: Y | G18: 4 | H18: 1 | L18: 4.84 | M18: =G18+H18 -> 5 | N18: =L18-(I18*0.2) -> 4.84 | O18: 11 | P18: 4.84 | Q18: 1
A19: 16 | B19: 7 | C19: N | D19: =YTD!P30 -> Ron | E19: y | F19: N | G19: 2 | H19: 1 | L19: 3.48 | M19: 3 | N19: 3.48 | O19: 15 | P19: 0 | Q19: 0
A20: 17 | B20: 6 | C20: N | D20: =YTD!P31 -> Scott | E20: y | F20: N | H20: 2 | L20: 1.86 | M20: =G20+H20 -> 2 | N20: =L20-(I20*0.2) -> 1.86 | O20: 18 | P20: =IF(F20="Y",N20,0) -> 0 | Q20: 0
A21: 18 | B21: 3 | C21: N | D21: =YTD!P32 -> Steve D | E21: y | F21: N | G21: 5 | L21: 7.44 | M21: 5 | N21: 7.44 | O21: 5 | P21: 0 | Q21: 0
A22: 19 | B22: 1 | C22: N | D22: =YTD!P33 -> Steve S | E22: y | F22: Y | G22: 1 | L22: 2.04 | M22: 1 | N22: 2.04 | O22: 17 | P22: 2.04 | Q22: 1
A23: 20 | B23: 4 | C23: N | D23: =YTD!P34 -> Tom | E23: y | F23: N | G23: 1 | H23: 1 | L23: 3.55 | M23: =G23+H23 -> 2 | N23: =L23-(I23*0.2) -> 3.55 | O23: 14 | P23: 0 | Q23: 0
A24: 21 | C24: N | D24: =YTD!P35 -> Vinny | E24: n | F24: Y | M24: 0 | N24: 0 | O24: 35 | P24: 0 | Q24: 0
A25: 22 | C25: N | D25: =YTD!P36 -> X | E25: N | F25: N | M25: 0 | N25: 0 | O25: 35 | P25: 0 | Q25: 0
A26: 23 | C26: N | D26: =YTD!P37 -> X | E26: N | F26: N | M26: 0 | N26: 0 | O26: 35 | P26: 0 | Q26: 0
A27: 24 | C27: N | D27: =YTD!P38 -> X | E27: N | F27: N | M27: 0 | N27: 0 | O27: 35 | P27: 0 | Q27: 0
A28: 25 | C28: N | D28: =YTD!P39 -> X | E28: N | F28: N | M28: =G28+H28 -> 0 | N28: =L28-(I28*0.2) -> 0 | O28: 35 | P28: =IF(F28="Y",N28,0) -> 0 | Q28: =IF(E28="N",0,(IF(F28="N",0,1))) -> 0
A29: 26 | C29: N | D29: =YTD!P40 -> X | E29: N | F29: N | M29: =G29+H29 -> 0 | N29: =L29-(I29*0.2) -> 0 | O29: 35 | P29: =IF(F29="Y",N29,0) -> 0 | Q29: =IF(E29="N",0,(IF(F29="N",0,1))) -> 0
D30: Totals | E30: =COUNTIF(E4:E29,"Y") -> 20 | G30: =SUM(G4:G29) -> 38 | H30: =SUM(H4:H29) -> 32 | I30: =SUM(I4:I29) -> 2 | J30: =MAX(J4:J29) -> 4.23 | L30: =SUM(L4:L29) -> 97.5 | M30: =SUM(M4:M29) -> 70 | N30: =SUM(N4:N29) -> 97.1 | P30: =SUM(P4:P29) -> 36.25 | Q30: =SUM(Q4:Q29) -> 10
B31: Place | C31: Team # | D31: Partners | G31: Total Weight | I31: Place | J31: Team # | K31: Partners | N31: Total Weight | P31: NB Avg | Q31: =IF(Q30=0,"No Data",P30/Q30) -> 3.625
B32: 1st | C32: =Teams!$AD64 -> 2 | D32: =VLOOKUP($C32,$B$4:$D$29,3,0) -> Armand F. | E32: & | F32: =IF($B$4:$B$29=20,"#N/A",IF(COUNTIF($B$4:$B$29,$C32)=1,"Alone",LOOKUP(2,1/($B$4:$B$29=$C32),$D$4:$D$29))) -> Jeff | G32: =Teams!AE64 -> 13.73 | I32: 4th | J32: =Teams!$AD67 -> 8 | K32: =VLOOKUP($J32,$B$4:$D$29,3,0) -> Dean | L32: & | M32: =IF($B$4:$B$29=20,"#N/A",IF(COUNTIF($B$4:$B$29,$J32)=1,"Alone",LOOKUP(2,1/($B$4:$B$29=$J32),$D$4:$D$29))) -> Rich T | N32: =Teams!AE67 -> 12.01
B33: 2nd | C33: =Teams!$AD65 -> 3 | D33: =VLOOKUP($C33,$B$4:$D$29,3,0) -> Joe | E33: & | F33: =IF($B$4:$B$29=20,"#N/A",IF(COUNTIF($B$4:$B$29,$C33)=1,"Alone",LOOKUP(2,1/($B$4:$B$29=$C33),$D$4:$D$29))) -> Steve D | G33: =Teams!AE65 -> 12.98 | I33: 5th | J33: =Teams!$AD68 -> 9 | K33: =VLOOKUP($J33,$B$4:$D$29,3,0) -> Jack | L33: & | M33: =IF($B$4:$B$29=20,"#N/A",IF(COUNTIF($B$4:$B$29,$J33)=1,"Alone",LOOKUP(2,1/($B$4:$B$29=$J33),$D$4:$D$29))) -> Rich B | N33: =Teams!AE68 -> 11.12
B34: 3rd | C34: =Teams!$AD66 -> 10 | D34: =VLOOKUP($C34,$B$4:$D$29,3,0) -> Bill | E34: & | F34: =IF($B$4:$B$29=20,"#N/A",IF(COUNTIF($B$4:$B$29,$C34)=1,"Alone",LOOKUP(2,1/($B$4:$B$29=$C34),$D$4:$D$29))) -> Morrie | G34: =Teams!AE66 -> 12.46 | I34: 6th | J34: =Teams!$AD69 -> 1 | K34: =VLOOKUP($J34,$B$4:$D$29,3,0) -> Kevin | L34: & | M34: =IF($B$4:$B$29=20,"#N/A",IF(COUNTIF($B$4:$B$29,$J34)=1,"Alone",LOOKUP(2,1/($B$4:$B$29=$J34),$D$4:$D$29))) -> Steve S | N34: =Teams!AE69 -> 10.29

Sheet Highland
A1: =YTD!L22 -> Highland
B2: Team | C2: Fish | D2: Member | E2: Show | F2: Non | G2: Number | H2: Number | I2: Number | J2: Lunker | K2: Species | L2: Gross | M2: Total | N2: Net | O2: Points | P2: Non Boater | Q2: # Non-
B3: Number | C3: Alone? | D3: Name | E3: Up? | F3: Boater? | G3: of LMB | H3: of SMB | I3: Dead | J3: Weight | K3: LMB/SMB | L3: Weight | M3: Caught | N3: Weight | O3: Awarded | P3: Weight | Q3: Boaters
A4: 1 | B4: 9 | C4: N | D4: =YTD!P15 -> Armand F. | E4: y | F4: N | G4: 4 | L4: 7.23 | M4: =G4+H4 -> 4 | N4: =L4-(I4*0.2) -> 7.23 | O4: =IF($E4="N",35,IF($M4=0,30,RANK($N4,$N$4:$N$29,0))) -> 2 | P4: =IF(F4="Y",N4,0) -> 0 | Q4: =IF(E4="N",0,(IF(F4="N",0,1))) -> 0
A5: 2 | B5: 5 | C5: N | D5: =YTD!P16 -> Bill | E5: y | F5: Y | G5: 1 | L5: 1.03 | M5: 1 | N5: 1.03 | O5: =IF($E5="N",35,IF($M5=0,30,RANK($N5,$N$4:$N$29,0))) -> 10 | P5: 1.03 | Q5: =IF(E5="N",0,(IF(F5="N",0,1))) -> 1
A6: 3 | C6: N | D6: =YTD!P17 -> Dean | E6: N | F6: N | M6: =G6+H6 -> 0 | N6: =L6-(I6*0.2) -> 0 | O6: 35 | P6: =IF(F6="Y",N6,0) -> 0 | Q6: 0
A7: 4 | B7: 7 | C7: N | D7: =YTD!P18 -> Jack | E7: y | F7: Y | G7: 1 | L7: 1.11 | M7: 1 | N7: 1.11 | O7: 9 | P7: 1.11 | Q7: 1
A8: 5 | B8: 8 | C8: N | D8: =YTD!P19 -> Jason | E8: y | F8: N | G8: 1 | H8: 1 | J8: 3.15 | K8: smb | L8: 4.09 | M8: =G8+H8 -> 2 | N8: =L8-(I8*0.2) -> 4.09 | O8: 6 | P8: =IF(F8="Y",N8,0) -> 0 | Q8: 0
A9: 6 | B9: 2 | C9: y | D9: =YTD!P20 -> Jeff | E9: y | F9: N | G9: 3 | J9: 3.47 | K9: LMB | L9: 5.82 | M9: 3 | N9: 5.82 | O9: 4 | P9: 0 | Q9: 0
A10: 7 | C10: N | D10: =YTD!P21 -> Jim B | E10: N | F10: Y | M10: 0 | N10: 0 | O10: 35 | P10: 0 | Q10: 0
A11: 8 | B11: 1 | C11: N | D11: =YTD!P22 -> Jim H | E11: y | F11: Y | M11: =G11+H11 -> 0 | N11: =L11-(I11*0.2) -> 0 | O11: 30 | P11: =IF(F11="Y",N11,0) -> 0 | Q11: 1
A12: 9 | B12: 3 | C12: N | D12: =YTD!P23 -> Joe | E12: y | F12: Y | M12: 0 | N12: 0 | O12: 30 | P12: 0 | Q12: 1
A13: 10 | B13: 1 | C13: N | D13: =YTD!P24 -> Kevin | E13: y | F13: N | M13: 0 | N13: 0 | O13: 30 | P13: 0 | Q13: 0
A14: 11 | B14: 9 | C14: N | D14: =YTD!P25 -> Mike | E14: y | F14: Y | G14: 2 | L14: 1.79 | M14: 2 | N14: 1.79 | O14: 8 | P14: 1.79 | Q14: 1
A15: 12 | B15: 6 | C15: N | D15: =YTD!P26 -> Morrie | E15: y | F15: N | M15: 0 | N15: 0 | O15: 30 | P15: 0 | Q15: 0
A16: 13 | B16: 6 | C16: N | D16: =YTD!P27 -> Pete | E16: y | F16: Y | M16: 0 | N16: 0 | O16: 30 | P16: 0 | Q16: 1
A17: 14 | B17: 5 | C17: N | D17: =YTD!P28 -> Rich B | E17: y | F17: N | G17: 3 | L17: 3.45 | M17: 3 | N17: 3.45 | O17: 7 | P17: 0 | Q17: 0
A18: 15 | C18: N | D18: =YTD!P29 -> Rich T | E18: N | F18: Y | M18: =G18+H18 -> 0 | N18: =L18-(I18*0.2) -> 0 | O18: 35 | P18: 0 | Q18: 0
A19: 16 | C19: N | D19: =YTD!P30 -> Ron | E19: N | F19: N | M19: 0 | N19: 0 | O19: 35 | P19: 0 | Q19: 0
A20: 17 | B20: 4 | C20: y | D20: =YTD!P31 -> Scott | E20: y | F20: N | G20: 5 | L20: 6.8 | M20: =G20+H20 -> 5 | N20: =L20-(I20*0.2) -> 6.8 | O20: 3 | P20: =IF(F20="Y",N20,0) -> 0 | Q20: 0
A21: 18 | B21: 7 | C21: N | D21: =YTD!P32 -> Steve D | E21: y | F21: N | G21: 4 | L21: 7.37 | M21: 4 | N21: 7.37 | O21: 1 | P21: 0 | Q21: 0
A22: 19 | B22: 8 | C22: N | D22: =YTD!P33 -> Steve S | E22: y | F22: Y | M22: 0 | N22: 0 | O22: 30 | P22: 0 | Q22: 1
A23: 20 | B23: 3 | C23: N | D23: =YTD!P34 -> Tom | E23: y | F23: N | G23: 4 | J23: 2.04 | K23: lmb | L23: 5.54 | M23: =G23+H23 -> 4 | N23: =L23-(I23*0.2) -> 5.54 | O23: 5 | P23: 0 | Q23: 0
A24: 21 | C24: N | D24: =YTD!P35 -> Vinny | E24: N | F24: Y | M24: 0 | N24: 0 | O24: 35 | P24: 0 | Q24: 0
A25: 22 | C25: N | D25: =YTD!P36 -> X | E25: N | F25: N | M25: 0 | N25: 0 | O25: 35 | P25: 0 | Q25: 0
A26: 23 | C26: N | D26: =YTD!P37 -> X | E26: N | F26: N | M26: 0 | N26: 0 | O26: 35 | P26: 0 | Q26: 0
A27: 24 | C27: N | D27: =YTD!P38 -> X | E27: N | F27: N | M27: 0 | N27: 0 | O27: 35 | P27: 0 | Q27: 0
A28: 25 | C28: N | D28: =YTD!P39 -> X | E28: N | F28: N | M28: =G28+H28 -> 0 | N28: =L28-(I28*0.2) -> 0 | O28: 35 | P28: =IF(F28="Y",N28,0) -> 0 | Q28: =IF(E28="N",0,(IF(F28="N",0,1))) -> 0
A29: 26 | C29: N | D29: =YTD!P40 -> X | E29: N | F29: N | M29: =G29+H29 -> 0 | N29: =L29-(I29*0.2) -> 0 | O29: 35 | P29: =IF(F29="Y",N29,0) -> 0 | Q29: =IF(E29="N",0,(IF(F29="N",0,1))) -> 0
D30: Totals | E30: =COUNTIF(E4:E29,"Y") -> 16 | G30: =SUM(G4:G29) -> 28 | H30: =SUM(H4:H29) -> 1 | I30: =SUM(I4:I29) -> 0 | J30: =MAX(J4:J29) -> 3.47 | L30: =SUM(L4:L29) -> 44.23 | M30: =SUM(M4:M29) -> 29 | N30: =SUM(N4:N29) -> 44.23 | P30: =SUM(P4:P29) -> 3.93 | Q30: =SUM(Q4:Q29) -> 7
B31: Place | C31: Team # | D31: Partners | G31: Total Weight | I31: Place | J31: Team # | K31: Partners | N31: Total Weight | P31: NB Avg | Q31: =IF(Q30=0,"No Data",P30/Q30) -> 0.5614285714
B32: 1st | C32: =Teams!$AD94 -> 9 | D32: =VLOOKUP($C32,$B$4:$D$29,3,0) -> Armand F. | E32: & | F32: =IF($B$4:$B$29=20,"#N/A",IF(COUNTIF($B$4:$B$29,$C32)=1,"Alone",LOOKUP(2,1/($B$4:$B$29=$C32),$D$4:$D$29))) -> Mike | G32: =Teams!AE94 -> 9.02 | I32: 4th | J32: =Teams!$AD97 -> 2 | K32: =VLOOKUP($J32,$B$4:$D$29,3,0) -> Jeff | L32: & | M32: =IF($B$4:$B$29=20,"#N/A",IF(COUNTIF($B$4:$B$29,$J32)=1,"Alone",LOOKUP(2,1/($B$4:$B$29=$J32),$D$4:$D$29))) -> Alone | N32: =Teams!AE97 -> 6.381428571
B33: 2nd | C33: =Teams!$AD95 -> 7 | D33: =VLOOKUP($C33,$B$4:$D$29,3,0) -> Jack | E33: & | F33: =IF($B$4:$B$29=20,"#N/A",IF(COUNTIF($B$4:$B$29,$C33)=1,"Alone",LOOKUP(2,1/($B$4:$B$29=$C33),$D$4:$D$29))) -> Steve D | G33: =Teams!AE95 -> 8.48 | I33: 5th | J33: =Teams!$AD98 -> 3 | K33: =VLOOKUP($J33,$B$4:$D$29,3,0) -> Joe | L33: & | M33: =IF($B$4:$B$29=20,"#N/A",IF(COUNTIF($B$4:$B$29,$J33)=1,"Alone",LOOKUP(2,1/($B$4:$B$29=$J33),$D$4:$D$29))) -> Tom | N33: =Teams!AE98 -> 5.54
B34: 3rd | C34: =Teams!$AD96 -> 4 | D34: =VLOOKUP($C34,$B$4:$D$29,3,0) -> Scott | E34: & | F34: =IF($B$4:$B$29=20,"#N/A",IF(COUNTIF($B$4:$B$29,$C34)=1,"Alone",LOOKUP(2,1/($B$4:$B$29=$C34),$D$4:$D$29))) -> Alone | G34: =Teams!AE96 -> 7.361428571 | I34: 6th | J34: =Teams!$AD99 -> 5 | K34: =VLOOKUP($J34,$B$4:$D$29,3,0) -> Bill | L34: & | M34: =IF($B$4:$B$29=20,"#N/A",IF(COUNTIF($B$4:$B$29,$J34)=1,"Alone",LOOKUP(2,1/($B$4:$B$29=$J34),$D$4:$D$29))) -> Rich B | N34: =Teams!AE99 -> 4.48

Sheet Teams
A2: =YTD!L15 -> Pachaug | M2: Sort | N2: Copy | O2: Sort | Q2: =YTD!L19 -> CT River | AC2: Sort | AD2: Copy | AE2: Sort
A3: Team # | B3: Alone? | C3: Name | D3: Net Wt | F3: Team # | G3: Alone? | H3: Name | I3: Net Wt | K3: Totals | L3: Rank | M3: Rank | N3: Team # | O3: Tot Wt | Q3: Team # | R3: Alone? | S3: Name | T3: Net Wt | V3: Team # | W3: Alone? | X3: Name | Y3: Net Wt | AA3: Totals | AB3: Rank | AC3: Rank | AD3: Team # | AE3: Tot Wt
A4: =Pachuag!B4 -> 2 | B4: =Pachuag!C4 -> N | C4: =Pachuag!D4 -> Armand F. | D4: =Pachuag!N4 -> 4.28 | F4: 0 | G4: N | H4: Jim B | I4: 0 | K4: =IF(F4=20,0,IF(F4=F5,I4+I5,IF(G4="Y",I4+I$30,0))) -> 0 | L4: =IF(K4>0,RANK(K4,K$4:K$29,0),"") ->  | M4: 1 | N4: 4 | O4: 14.5 | Q4: ='CT River'!B4 -> 6 | R4: ='CT River'!C4 -> N | S4: ='CT River'!D4 -> Armand F. | T4: ='CT River'!N4 -> 2.52 | V4: 0 | W4: N | X4: Jim B | Y4: 0 | AA4: =IF(V4=20,0,IF(V4=V5,Y4+Y5,IF(W4="Y",Y4+Y$30,0))) -> 0 | AB4: =IF(AA4>0,RANK(AA4,AA$4:AA$29,0),"") ->  | AC4: 1 | AD4: 7 | AE4: 8.08
A5: =Pachuag!B5 -> 8 | B5: =Pachuag!C5 -> N | C5: =Pachuag!D5 -> Bill | D5: =Pachuag!N5 -> 0 | F5: 0 | G5: N | H5: Mike | I5: 0 | K5: =IF(F5=20,0,IF(F5=F6,I5+I6,IF(G5="Y",I5+I$30,0))) -> 0 | L5: =IF(K5>0,RANK(K5,K$4:K$29,0),"") ->  | M5: 2 | N5: 5 | O5: 8.24 | Q5: ='CT River'!B5 -> 6 | R5: ='CT River'!C5 -> N | S5: ='CT River'!D5 -> Bill | T5: ='CT River'!N5 -> 2.24 | V5: 0 | W5: N | X5: X | Y5: 0 | AA5: =IF(V5=20,0,IF(V5=V6,Y5+Y6,IF(W5="Y",Y5+Y$30,0))) -> 0 | AB5: =IF(AA5>0,RANK(AA5,AA$4:AA$29,0),"") ->  | AC5: 2 | AD5: 2 | AE5: 7.253333333
A6: =Pachuag!B6 -> 9 | B6: =Pachuag!C6 -> N | C6: =Pachuag!D6 -> Dean | D6: =Pachuag!N6 -> 0 | F6: 0 | G6: N | H6: Vinny | I6: 0 | K6: 0 | M6: 3 | N6: 2 | O6: 7.87 | Q6: ='CT River'!B6 -> 3 | R6: ='CT River'!C6 -> N | S6: ='CT River'!D6 -> Dean | T6: ='CT River'!N6 -> 0.73 | V6: 0 | W6: N | X6: X | Y6: 0 | AA6: 0 | AC6: 3 | AD6: 1 | AE6: 5.45
A7: =Pachuag!B7 -> 9 | B7: =Pachuag!C7 -> N | C7: =Pachuag!D7 -> Jack | D7: =Pachuag!N7 -> 1.47 | F7: 0 | G7: N | H7: X | I7: 0 | K7: 0 | M7: 4 | N7: 8 | O7: 3.7825 | Q7: ='CT River'!B7 -> 7 | R7: ='CT River'!C7 -> N | S7: ='CT River'!D7 -> Jack | T7: ='CT River'!N7 -> 5.14 | V7: 0 | W7: N | X7: X | Y7: 0 | AA7: 0 | AC7: 4 | AD7: 4 | AE7: 5.363333333
A8: =Pachuag!B8 -> 8 | B8: =Pachuag!C8 -> y | C8: =Pachuag!D8 -> Jason | D8: =Pachuag!N8 -> 1.08 | F8: 0 | G8: N | H8: X | I8: 0 | K8: 0 | M8: 5 | N8: 3 | O8: 2.35 | Q8: ='CT River'!B8 -> 2 | R8: ='CT River'!C8 -> Y | S8: ='CT River'!D8 -> Jason | T8: ='CT River'!N8 -> 5.88 | V8: 0 | W8: N | X8: X | Y8: 0 | AA8: 0 | AC8: 5 | AD8: 6 | AE8: 4.76
A9: =Pachuag!B9 -> 7 | B9: =Pachuag!C9 -> N | C9: =Pachuag!D9 -> Jeff | D9: =Pachuag!N9 -> 0 | F9: 0 | G9: N | H9: X | I9: 0 | K9: 0 | M9: 6 | N9: 9 | O9: 1.47 | Q9: ='CT River'!B9 -> 5 | R9: ='CT River'!C9 -> N | S9: ='CT River'!D9 -> Jeff | T9: ='CT River'!N9 -> 2.81 | V9: 0 | W9: N | X9: X | Y9: 0 | AA9: 0 | AC9: 6 | AD9: 9 | AE9: 4.45
A10: =Pachuag!B10 -> 0 | B10: =Pachuag!C10 -> N | C10: =Pachuag!D10 -> Jim B | D10: =Pachuag!N10 -> 0 | F10: 0 | G10: N | H10: X | I10: 0 | K10: 0 | M10: 7 | N10: 6 | O10: 1.38 | Q10: ='CT River'!B10 -> 0 | R10: ='CT River'!C10 -> N | S10: ='CT River'!D10 -> Jim B | T10: ='CT River'!N10 -> 0 | V10: 1 | W10: N | X10: Kevin | Y10: 2.61 | AA10: 5.45 | AB10: 3 | AC10: 7 | AD10: 10 | AE10: 4.22
A11: =Pachuag!B11 -> 7 | B11: =Pachuag!C11 -> N | C11: =Pachuag!D11 -> Jim H | D11: =Pachuag!N11 -> 1.08 | F11: 0 | G11: N | H11: X | I11: 0 | K11: 0 | M11: 8 | N11: 1 | O11: 1.17 | Q11: ='CT River'!B11 -> 9 | R11: ='CT River'!C11 -> N | S11: ='CT River'!D11 -> Jim H | T11: ='CT River'!N11 -> 0 | V11: 1 | W11: N | X11: Rich T | Y11: 2.84 | AA11: 0 | AC11: 8 | AD11: 5 | AE11: 2.81
A12: =Pachuag!B12 -> 6 | B12: =Pachuag!C12 -> N | C12: =Pachuag!D12 -> Joe | D12: =Pachuag!N12 -> 0 | F12: 1 | G12: N | H12: Rich B | I12: 1.17 | K12: 1.17 | L12: 8 | M12: 9 | N12: 7 | O12: 1.08 | Q12: ='CT River'!B12 -> 8 | R12: ='CT River'!C12 -> N | S12: ='CT River'!D12 -> Joe | T12: ='CT River'!N12 -> 0 | V12: 2 | W12: Y | X12: Jason | Y12: 5.88 | AA12: 7.253333333 | AB12: 2 | AC12: 9 | AD12: 11 | AE12: 1.03
A13: =Pachuag!B13 -> 4 | B13: =Pachuag!C13 -> N | C13: =Pachuag!D13 -> Kevin | D13: =Pachuag!N13 -> 6.76 | F13: 1 | G13: N | H13: Tom | I13: 0 | K13: 0 | M13: 9 | N13: 8 | O13: 1.08 | Q13: ='CT River'!B13 -> 1 | R13: ='CT River'!C13 -> N | S13: ='CT River'!D13 -> Kevin | T13: ='CT River'!N13 -> 2.61 | V13: 3 | W13: N | X13: Dean | Y13: 0.73 | AA13: 0.73 | AB13: 10 | AC13: 10 | AD13: 3 | AE13: 0.73
A14: =Pachuag!B14 -> 0 | B14: =Pachuag!C14 -> N | C14: =Pachuag!D14 -> Mike | D14: =Pachuag!N14 -> 0 | F14: 2 | G14: N | H14: Armand F. | I14: 4.28 | K14: 7.87 | L14: 3 | N14: 0 | O14: 0 | Q14: ='CT River'!B14 -> 11 | R14: ='CT River'!C14 -> N | S14: ='CT River'!D14 -> Mike | T14: ='CT River'!N14 -> 1.03 | V14: 3 | W14: N | X14: Vinny | Y14: 0 | AA14: 0 | AD14: 0 | AE14: 0
A15: =Pachuag!B15 -> 3 | B15: =Pachuag!C15 -> N | C15: =Pachuag!D15 -> Morrie | D15: =Pachuag!N15 -> 0.64 | F15: 2 | G15: N | H15: Steve S | I15: 3.59 | K15: 0 | N15: 0 | O15: 0 | Q15: ='CT River'!B15 -> 8 | R15: ='CT River'!C15 -> N | S15: ='CT River'!D15 -> Morrie | T15: ='CT River'!N15 -> 0 | V15: 4 | W15: Y | X15: Ron | Y15: 3.99 | AA15: 5.363333333 | AB15: 4 | AD15: 0 | AE15: 0
A16: =Pachuag!B16 -> 4 | B16: =Pachuag!C16 -> N | C16: =Pachuag!D16 -> Pete | D16: =Pachuag!N16 -> 7.74 | F16: 3 | G16: N | H16: Morrie | I16: 0.64 | K16: 2.35 | L16: 5 | N16: 0 | O16: 0 | Q16: ='CT River'!B16 -> 5 | R16: ='CT River'!C16 -> N | S16: ='CT River'!D16 -> Pete | T16: ='CT River'!N16 -> 0 | V16: 5 | W16: N | X16: Jeff | Y16: 2.81 | AA16: 2.81 | AB16: 8 | AD16: 0 | AE16: 0
A17: =Pachuag!B17 -> 1 | B17: =Pachuag!C17 -> N | C17: =Pachuag!D17 -> Rich B | D17: =Pachuag!N17 -> 1.17 | F17: 3 | G17: N | H17: Rich T | I17: 1.71 | K17: 0 | N17: 0 | O17: 0 | Q17: ='CT River'!B17 -> 9 | R17: ='CT River'!C17 -> N | S17: ='CT River'!D17 -> Rich B | T17: ='CT River'!N17 -> 4.45 | V17: 5 | W17: N | X17: Pete | Y17: 0 | AA17: 0 | AD17: 0 | AE17: 0
A18: =Pachuag!B18 -> 3 | B18: =Pachuag!C18 -> N | C18: =Pachuag!D18 -> Rich T | D18: =Pachuag!N18 -> 1.71 | F18: 4 | G18: N | H18: Kevin | I18: 6.76 | K18: 14.5 | L18: 1 | N18: 0 | O18: 0 | Q18: ='CT River'!B18 -> 1 | R18: ='CT River'!C18 -> N | S18: ='CT River'!D18 -> Rich T | T18: ='CT River'!N18 -> 2.84 | V18: 6 | W18: N | X18: Armand F. | Y18: 2.52 | AA18: 4.76 | AB18: 5 | AD18: 0 | AE18: 0
A19: =Pachuag!B19 -> 6 | B19: =Pachuag!C19 -> N | C19: =Pachuag!D19 -> Ron | D19: =Pachuag!N19 -> 1.38 | F19: 4 | G19: N | H19: Pete | I19: 7.74 | K19: 0 | N19: 0 | O19: 0 | Q19: ='CT River'!B19 -> 4 | R19: ='CT River'!C19 -> Y | S19: ='CT River'!D19 -> Ron | T19: ='CT River'!N19 -> 3.99 | V19: 6 | W19: N | X19: Bill | Y19: 2.24 | AA19: 0 | AD19: 0 | AE19: 0
A20: =Pachuag!B20 -> 5 | B20: =Pachuag!C20 -> N | C20: =Pachuag!D20 -> Scott | D20: =Pachuag!N20 -> 4.86 | F20: 5 | G20: N | H20: Scott | I20: 4.86 | K20: 8.24 | L20: 2 | N20: 0 | O20: 0 | Q20: ='CT River'!B20 -> 7 | R20: ='CT River'!C20 -> N | S20: ='CT River'!D20 -> Scott | T20: ='CT River'!N20 -> 2.94 | V20: 7 | W20: N | X20: Jack | Y20: 5.14 | AA20: 8.08 | AB20: 1 | AD20: 1 | AE20: 0
A21: =Pachuag!B21 -> 5 | B21: =Pachuag!C21 -> N | C21: =Pachuag!D21 -> Steve D | D21: =Pachuag!N21 -> 3.38 | F21: 5 | G21: N | H21: Steve D | I21: 3.38 | K21: 0 | N21: 0 | O21: 0 | Q21: ='CT River'!B21 -> 10 | R21: ='CT River'!C21 -> N | S21: ='CT River'!D21 -> Steve D | T21: ='CT River'!N21 -> 3.11 | V21: 7 | W21: N | X21: Scott | Y21: 2.94 | AA21: 0 | AD21: 3 | AE21: 0
A22: =Pachuag!B22 -> 2 | B22: =Pachuag!C22 -> N | C22: =Pachuag!D22 -> Steve S | D22: =Pachuag!N22 -> 3.59 | F22: 6 | G22: N | H22: Joe | I22: 0 | K22: 1.38 | L22: 7 | N22: 1 | O22: 0 | Q22: ='CT River'!B22 -> 10 | R22: ='CT River'!C22 -> N | S22: ='CT River'!D22 -> Steve S | T22: ='CT River'!N22 -> 1.11 | V22: 8 | W22: N | X22: Joe | Y22: 0 | AA22: 0 | AD22: 5 | AE22: 0
A23: =Pachuag!B23 -> 1 | B23: =Pachuag!C23 -> N | C23: =Pachuag!D23 -> Tom | D23: =Pachuag!N23 -> 0 | F23: 6 | G23: N | H23: Ron | I23: 1.38 | K23: 0 | N23: 2 | O23: 0 | Q23: ='CT River'!B23 -> 11 | R23: ='CT River'!C23 -> N | S23: ='CT River'!D23 -> Tom | T23: ='CT River'!N23 -> 0 | V23: 8 | W23: N | X23: Morrie | Y23: 0 | AA23: 0 | AD23: 6 | AE23: 0
A24: =Pachuag!B24 -> 0 | B24: =Pachuag!C24 -> N | C24: =Pachuag!D24 -> Vinny | D24: =Pachuag!N24 -> 0 | F24: 7 | G24: N | H24: Jeff | I24: 0 | K24: 1.08 | L24: 9 | N24: 3 | O24: 0 | Q24: ='CT River'!B24 -> 3 | R24: ='CT River'!C24 -> N | S24: ='CT River'!D24 -> Vinny | T24: ='CT River'!N24 -> 0 | V24: 9 | W24: N | X24: Jim H | Y24: 0 | AA24: 4.45 | AB24: 6 | AD24: 7 | AE24: 0
A25: =Pachuag!B25 -> 0 | B25: =Pachuag!C25 -> N | C25: =Pachuag!D25 -> X | D25: =Pachuag!N25 -> 0 | F25: 7 | G25: N | H25: Jim H | I25: 1.08 | K25: 0 | N25: 4 | O25: 0 | Q25: ='CT River'!B25 -> 0 | R25: ='CT River'!C25 -> N | S25: ='CT River'!D25 -> X | T25: ='CT River'!N25 -> 0 | V25: 9 | W25: N | X25: Rich B | Y25: 4.45 | AA25: 0 | AD25: 8 | AE25: 0
A26: =Pachuag!B26 -> 0 | B26: =Pachuag!C26 -> N | C26: =Pachuag!D26 -> X | D26: =Pachuag!N26 -> 0 | F26: 8 | G26: N | H26: Bill | I26: 0 | K26: 1.08 | L26: 9 | N26: 5 | O26: 0 | Q26: ='CT River'!B26 -> 0 | R26: ='CT River'!C26 -> N | S26: ='CT River'!D26 -> X | T26: ='CT River'!N26 -> 0 | V26: 10 | W26: N | X26: Steve D | Y26: 3.11 | AA26: 4.22 | AB26: 7 | AD26: 8 | AE26: 0
A27: =Pachuag!B27 -> 0 | B27: =Pachuag!C27 -> N | C27: =Pachuag!D27 -> X | D27: =Pachuag!N27 -> 0 | F27: 8 | G27: y | H27: Jason | I27: 1.08 | K27: 3.7825 | L27: 4 | N27: 6 | O27: 0 | Q27: ='CT River'!B27 -> 0 | R27: ='CT River'!C27 -> N | S27: ='CT River'!D27 -> X | T27: ='CT River'!N27 -> 0 | V27: 10 | W27: N | X27: Steve S | Y27: 1.11 | AA27: 0 | AD27: 9 | AE27: 0
A28: =Pachuag!B28 -> 0 | B28: =Pachuag!C28 -> N | C28: =Pachuag!D28 -> X | D28: =Pachuag!N28 -> 0 | F28: 9 | G28: N | H28: Dean | I28: 0 | K28: 1.47 | L28: 6 | N28: 7 | O28: 0 | Q28: ='CT River'!B28 -> 0 | R28: ='CT River'!C28 -> N | S28: ='CT River'!D28 -> X | T28: ='CT River'!N28 -> 0 | V28: 11 | W28: N | X28: Mike | Y28: 1.03 | AA28: 1.03 | AB28: 9 | AD28: 10 | AE28: 0
A29: =Pachuag!B29 -> 0 | B29: =Pachuag!C29 -> N | C29: =Pachuag!D29 -> X | D29: =Pachuag!N29 -> 0 | F29: 9 | G29: N | H29: Jack | I29: 1.47 | K29: 0 | N29: 9 | O29: 0 | Q29: ='CT River'!B29 -> 0 | R29: ='CT River'!C29 -> N | S29: ='CT River'!D29 -> X | T29: ='CT River'!N29 -> 0 | V29: 11 | W29: N | X29: Tom | Y29: 0 | AA29: 0 | AD29: 11 | AE29: 0
B30: Macro | C30: CTL+M | D30: Teams | E30: 1 | H30: NB Avg | I30: =Pachuag!Q31 -> 2.7025 | R30: Macro | S30: CTL+Y | T30: Teams | U30: 5 | X30: NB Avg | Y30: ='CT River'!Q31 -> 1.373333333
A32: =YTD!L16 -> Zoar | M32: Sort | N32: Copy | O32: Sort | Q32: =YTD!L20 -> Hamilton | AC32: Sort | AD32: Copy | AE32: Sort
A33: Team # | B33: Alone? | C33: Name | D33: Net Wt | F33: Team # | G33: Alone? | H33: Name | I33: Net Wt | K33: Totals | L33: Rank | M33: Rank | N33: Team # | O33: Tot Wt | Q33: Team # | R33: Alone? | S33: Name | T33: Net Wt | V33: Team # | W33: Alone? | X33: Name | Y33: Net Wt | AA33: Totals | AB33: Rank | AC33: Rank | AD33: Team # | AE33: Tot Wt
A34: =Zoar!B4 -> 3 | B34: =Zoar!C4 -> N | C34: =Zoar!D4 -> Armand F. | D34: =Zoar!N4 -> 3.35 | F34: 0 | G34: N | H34: Bill | I34: 0 | K34: =IF(F34=20,0,IF(F34=F35,I34+I35,IF(G34="Y",I34+I$60,0))) -> 0 | L34: =IF(K34>0,RANK(K34,K$34:K$59,0),"") ->  | M34: 1 | N34: 4 | O34: 12.99 | Q34: =Hamilton!B4 -> 7 | R34: =Hamilton!C4 -> N | S34: =Hamilton!D4 -> Armand F. | T34: =Hamilton!N4 -> 6.02 | V34: 0 | W34: N | X34: Dean | Y34: 0 | AA34: =IF(V34=20,0,IF(V34=V35,Y34+Y35,IF(W34="Y",Y34+Y$60,0))) -> 0 | AB34: =IF(AA34>0,RANK(AA34,AA$34:AA$59,0),"") ->  | AC34: 1 | AD34: 6 | AE34: 13.99
A35: =Zoar!B5 -> 0 | B35: =Zoar!C5 -> N | C35: =Zoar!D5 -> Bill | D35: =Zoar!N5 -> 0 | F35: 0 | G35: N | H35: Vinny | I35: 0 | K35: =IF(F35=20,0,IF(F35=F36,I35+I36,IF(G35="Y",I35+I$60,0))) -> 0 | L35: =IF(K35>0,RANK(K35,K$34:K$59,0),"") ->  | M35: 2 | N35: 2 | O35: 8.577777778 | Q35: =Hamilton!B5 -> 5 | R35: =Hamilton!C5 -> N | S35: =Hamilton!D5 -> Bill | T35: =Hamilton!N5 -> 3.65 | V35: 0 | W35: N | X35: Jim H | Y35: 0 | AA35: =IF(V35=20,0,IF(V35=V36,Y35+Y36,IF(W35="Y",Y35+$Y$60,0))) -> 0 | AB35: =IF(AA35>0,RANK(AA35,AA$34:AA$59,0),"") ->  | AC35: 2 | AD35: 7 | AE35: 13.06
A36: =Zoar!B6 -> 6 | B36: =Zoar!C6 -> N | C36: =Zoar!D6 -> Dean | D36: =Zoar!N6 -> 3.55 | F36: 0 | G36: N | H36: X | I36: 0 | K36: 0 | M36: 3 | N36: 3 | O36: 8.17 | Q36: =Hamilton!B6 -> 0 | R36: =Hamilton!C6 -> N | S36: =Hamilton!D6 -> Dean | T36: =Hamilton!N6 -> 0 | V36: 0 | W36: N | X36: X | Y36: 0 | AA36: 0 | AC36: 3 | AD36: 10 | AE36: 11.55375
A37: =Zoar!B7 -> 10 | B37: =Zoar!C7 -> N | C37: =Zoar!D7 -> Jack | D37: =Zoar!N7 -> 0 | F37: 0 | G37: N | H37: X | I37: 0 | K37: 0 | M37: 4 | N37: 7 | O37: 7.69 | Q37: =Hamilton!B7 -> 9 | R37: =Hamilton!C7 -> N | S37: =Hamilton!D7 -> Jack | T37: =Hamilton!N7 -> 4.12 | V37: 0 | W37: N | X37: X | Y37: 0 | AA37: 0 | AC37: 4 | AD37: 5 | AE37: 10.18
A38: =Zoar!B8 -> 7 | B38: =Zoar!C8 -> N | C38: =Zoar!D8 -> Jason | D38: =Zoar!N8 -> 4.06 | F38: 0 | G38: N | H38: X | I38: 0 | K38: 0 | M38: 5 | N38: 6 | O38: 7.45 | Q38: =Hamilton!B8 -> 1 | R38: =Hamilton!C8 -> N | S38: =Hamilton!D8 -> Jason | T38: =Hamilton!N8 -> 3.15 | V38: 0 | W38: N | X38: X | Y38: 0 | AA38: 0 | AC38: 5 | AD38: 2 | AE38: 7.95
A39: =Zoar!B9 -> 9 | B39: =Zoar!C9 -> N | C39: =Zoar!D9 -> Jeff | D39: =Zoar!N9 -> 5.36 | F39: 0 | G39: N | H39: X | I39: 0 | K39: 0 | M39: 6 | N39: 1 | O39: 5.74 | Q39: =Hamilton!B9 -> 10 | R39: =Hamilton!C9 -> Y | S39: =Hamilton!D9 -> Jeff | T39: =Hamilton!N9 -> 7.09 | V39: 0 | W39: N | X39: X | Y39: 0 | AA39: 0 | AC39: 6 | AD39: 3 | AE39: 7.31
A40: =Zoar!B10 -> 4 | B40: =Zoar!C10 -> N | C40: =Zoar!D10 -> Jim B | D40: =Zoar!N10 -> 5.55 | F40: 0 | G40: N | H40: X | I40: 0 | K40: 0 | M40: 7 | N40: 9 | O40: 5.36 | Q40: =Hamilton!B10 -> 4 | R40: =Hamilton!C10 -> N | S40: =Hamilton!D10 -> Jim B | T40: =Hamilton!N10 -> 3.53 | V40: 0 | W40: N | X40: X | Y40: 0 | AA40: 0 | AC40: 7 | AD40: 9 | AE40: 6.94
A41: =Zoar!B11 -> 3 | B41: =Zoar!C11 -> N | C41: =Zoar!D11 -> Jim H | D41: =Zoar!N11 -> 4.82 | F41: 1 | G41: N | H41: Scott | I41: 0.89 | K41: 5.74 | L41: 6 | M41: 8 | N41: 5 | O41: 4.94 | Q41: =Hamilton!B11 -> 0 | R41: =Hamilton!C11 -> N | S41: =Hamilton!D11 -> Jim H | T41: =Hamilton!N11 -> 0 | V41: 1 | W41: N | X41: Jason | Y41: 3.15 | AA41: 4.08 | AB41: 10 | AC41: 8 | AD41: 8 | AE41: 6.88
A42: =Zoar!B12 -> 9 | B42: =Zoar!C12 -> N | C42: =Zoar!D12 -> Joe | D42: =Zoar!N12 -> 0 | F42: 1 | G42: N | H42: Steve S | I42: 4.85 | K42: 0 | M42: 9 | N42: 8 | O42: 3.32 | Q42: =Hamilton!B12 -> 8 | R42: =Hamilton!C12 -> N | S42: =Hamilton!D12 -> Joe | T42: =Hamilton!N12 -> 4.34 | V42: 1 | W42: N | X42: Rich T | Y42: 0.93 | AA42: 0 | AC42: 9 | AD42: 4 | AE42: 6.83
A43: =Zoar!B13 -> 2 | B43: =Zoar!C13 -> Y | C43: =Zoar!D13 -> Kevin | D43: =Zoar!N13 -> 5.54 | F43: 2 | G43: Y | H43: Kevin | I43: 5.54 | K43: 8.577777778 | L43: 2 | M43: 10 | N43: 10 | O43: 0.79 | Q43: =Hamilton!B13 -> 2 | R43: =Hamilton!C13 -> N | S43: =Hamilton!D13 -> Kevin | T43: =Hamilton!N13 -> 3.91 | V43: 2 | W43: N | X43: Kevin | Y43: 3.91 | AA43: 7.95 | AB43: 5 | AC43: 10 | AD43: 1 | AE43: 4.08
A44: =Zoar!B14 -> 5 | B44: =Zoar!C14 -> N | C44: =Zoar!D14 -> Mike | D44: =Zoar!N14 -> 4.94 | F44: 3 | G44: N | H44: Armand F. | I44: 3.35 | K44: 8.17 | L44: 3 | N44: 0 | O44: 0 | Q44: =Hamilton!B14 -> 2 | R44: =Hamilton!C14 -> N | S44: =Hamilton!D14 -> Mike | T44: =Hamilton!N14 -> 4.04 | V44: 2 | W44: N | X44: Mike | Y44: 4.04 | AA44: 0 | AD44: 0 | AE44: 0
A45: =Zoar!B15 -> 5 | B45: =Zoar!C15 -> N | C45: =Zoar!D15 -> Morrie | D45: =Zoar!N15 -> 0 | F45: 3 | G45: N | H45: Jim H | I45: 4.82 | K45: 0 | N45: 0 | O45: 0 | Q45: =Hamilton!B15 -> 9 | R45: =Hamilton!C15 -> N | S45: =Hamilton!D15 -> Morrie | T45: =Hamilton!N15 -> 2.82 | V45: 3 | W45: N | X45: Steve S | Y45: 1.93 | AA45: 7.31 | AB45: 6 | AD45: 0 | AE45: 0
A46: =Zoar!B16 -> 7 | B46: =Zoar!C16 -> N | C46: =Zoar!D16 -> Pete | D46: =Zoar!N16 -> 3.63 | F46: 4 | G46: N | H46: Jim B | I46: 5.55 | K46: 12.99 | L46: 1 | N46: 0 | O46: 0 | Q46: =Hamilton!B16 -> 7 | R46: =Hamilton!C16 -> N | S46: =Hamilton!D16 -> Pete | T46: =Hamilton!N16 -> 7.04 | V46: 3 | W46: N | X46: Tom | Y46: 5.38 | AA46: 0 | AD46: 0 | AE46: 0
A47: =Zoar!B17 -> 8 | B47: =Zoar!C17 -> N | C47: =Zoar!D17 -> Rich B | D47: =Zoar!N17 -> 3.32 | F47: 4 | G47: N | H47: Steve D | I47: 7.44 | K47: 0 | N47: 0 | O47: 0 | Q47: =Hamilton!B17 -> 8 | R47: =Hamilton!C17 -> N | S47: =Hamilton!D17 -> Rich B | T47: =Hamilton!N17 -> 2.54 | V47: 4 | W47: N | X47: Jim B | Y47: 3.53 | AA47: 6.83 | AB47: 9 | AD47: 0 | AE47: 0
A48: =Zoar!B18 -> 8 | B48: =Zoar!C18 -> N | C48: =Zoar!D18 -> Rich T | D48: =Zoar!N18 -> 0 | F48: 5 | G48: N | H48: Mike | I48: 4.94 | K48: 4.94 | L48: 8 | N48: 0 | O48: 0 | Q48: =Hamilton!B18 -> 1 | R48: =Hamilton!C18 -> N | S48: =Hamilton!D18 -> Rich T | T48: =Hamilton!N18 -> 0.93 | V48: 4 | W48: N | X48: Steve D | Y48: 3.3 | AA48: 0 | AD48: 0 | AE48: 0
A49: =Zoar!B19 -> 10 | B49: =Zoar!C19 -> N | C49: =Zoar!D19 -> Ron | D49: =Zoar!N19 -> 0.79 | F49: 5 | G49: N | H49: Morrie | I49: 0 | K49: 0 | N49: 0 | O49: 0 | Q49: =Hamilton!B19 -> 6 | R49: =Hamilton!C19 -> N | S49: =Hamilton!D19 -> Ron | T49: =Hamilton!N19 -> 6.93 | V49: 5 | W49: N | X49: Bill | Y49: 3.65 | AA49: 10.18 | AB49: 4 | AD49: 0 | AE49: 0
A50: =Zoar!B20 -> 1 | B50: =Zoar!C20 -> N | C50: =Zoar!D20 -> Scott | D50: =Zoar!N20 -> 0.89 | F50: 6 | G50: N | H50: Dean | I50: 3.55 | K50: 7.45 | L50: 5 | N50: 0 | O50: 0 | Q50: =Hamilton!B20 -> 5 | R50: =Hamilton!C20 -> N | S50: =Hamilton!D20 -> Scott | T50: =Hamilton!N20 -> 6.53 | V50: 5 | W50: N | X50: Scott | Y50: 6.53 | AA50: 0 | AD50: 0 | AE50: 0
A51: =Zoar!B21 -> 4 | B51: =Zoar!C21 -> N | C51: =Zoar!D21 -> Steve D | D51: =Zoar!N21 -> 7.44 | F51: 6 | G51: N | H51: Tom | I51: 3.9 | K51: 0 | N51: 1 | O51: 0 | Q51: =Hamilton!B21 -> 4 | R51: =Hamilton!C21 -> N | S51: =Hamilton!D21 -> Steve D | T51: =Hamilton!N21 -> 3.3 | V51: 6 | W51: N | X51: Ron | Y51: 6.93 | AA51: 13.99 | AB51: 1 | AD51: 1 | AE51: 0
A52: =Zoar!B22 -> 1 | B52: =Zoar!C22 -> N | C52: =Zoar!D22 -> Steve S | D52: =Zoar!N22 -> 4.85 | F52: 7 | G52: N | H52: Jason | I52: 4.06 | K52: 7.69 | L52: 4 | N52: 3 | O52: 0 | Q52: =Hamilton!B22 -> 3 | R52: =Hamilton!C22 -> N | S52: =Hamilton!D22 -> Steve S | T52: =Hamilton!N22 -> 1.93 | V52: 6 | W52: N | X52: Vinny | Y52: 7.06 | AA52: 0 | AD52: 2 | AE52: 0
A53: =Zoar!B23 -> 6 | B53: =Zoar!C23 -> N | C53: =Zoar!D23 -> Tom | D53: =Zoar!N23 -> 3.9 | F53: 7 | G53: N | H53: Pete | I53: 3.63 | K53: 0 | N53: 4 | O53: 0 | Q53: =Hamilton!B23 -> 3 | R53: =Hamilton!C23 -> N | S53: =Hamilton!D23 -> Tom | T53: =Hamilton!N23 -> 5.38 | V53: 7 | W53: N | X53: Armand F. | Y53: 6.02 | AA53: 13.06 | AB53: 2 | AD53: 3 | AE53: 0
A54: =Zoar!B24 -> 0 | B54: =Zoar!C24 -> N | C54: =Zoar!D24 -> Vinny | D54: =Zoar!N24 -> 0 | F54: 8 | G54: N | H54: Rich B | I54: 3.32 | K54: 3.32 | L54: 9 | N54: 5 | O54: 0 | Q54: =Hamilton!B24 -> 6 | R54: =Hamilton!C24 -> N | S54: =Hamilton!D24 -> Vinny | T54: =Hamilton!N24 -> 7.06 | V54: 7 | W54: N | X54: Pete | Y54: 7.04 | AA54: 0 | AD54: 4 | AE54: 0
A55: =Zoar!B25 -> 0 | B55: =Zoar!C25 -> N | C55: =Zoar!D25 -> X | D55: =Zoar!N25 -> 0 | F55: 8 | G55: N | H55: Rich T | I55: 0 | K55: 0 | N55: 6 | O55: 0 | Q55: =Hamilton!B25 -> 0 | R55: =Hamilton!C25 -> N | S55: =Hamilton!D25 -> X | T55: =Hamilton!N25 -> 0 | V55: 8 | W55: N | X55: Joe | Y55: 4.34 | AA55: 6.88 | AB55: 8 | AD55: 5 | AE55: 0
A56: =Zoar!B26 -> 0 | B56: =Zoar!C26 -> N | C56: =Zoar!D26 -> X | D56: =Zoar!N26 -> 0 | F56: 9 | G56: N | H56: Jeff | I56: 5.36 | K56: 5.36 | L56: 7 | N56: 7 | O56: 0 | Q56: =Hamilton!B26 -> 0 | R56: =Hamilton!C26 -> N | S56: =Hamilton!D26 -> X | T56: =Hamilton!N26 -> 0 | V56: 8 | W56: N | X56: Rich B | Y56: 2.54 | AA56: 0 | AD56: 6 | AE56: 0
A57: =Zoar!B27 -> 0 | B57: =Zoar!C27 -> N | C57: =Zoar!D27 -> X | D57: =Zoar!N27 -> 0 | F57: 9 | G57: N | H57: Joe | I57: 0 | K57: 0 | N57: 8 | O57: 0 | Q57: =Hamilton!B27 -> 0 | R57: =Hamilton!C27 -> N | S57: =Hamilton!D27 -> X | T57: =Hamilton!N27 -> 0 | V57: 9 | W57: N | X57: Jack | Y57: 4.12 | AA57: 6.94 | AB57: 7 | AD57: 7 | AE57: 0
A58: =Zoar!B28 -> 0 | B58: =Zoar!C28 -> N | C58: =Zoar!D28 -> X | D58: =Zoar!N28 -> 0 | F58: 10 | G58: N | H58: Jack | I58: 0 | K58: 0.79 | L58: 10 | N58: 9 | O58: 0 | Q58: =Hamilton!B28 -> 0 | R58: =Hamilton!C28 -> N | S58: =Hamilton!D28 -> X | T58: =Hamilton!N28 -> 0 | V58: 9 | W58: N | X58: Morrie | Y58: 2.82 | AA58: 0 | AD58: 8 | AE58: 0
A59: =Zoar!B29 -> 0 | B59: =Zoar!C29 -> N | C59: =Zoar!D29 -> X | D59: =Zoar!N29 -> 0 | F59: 10 | G59: N | H59: Ron | I59: 0.79 | K59: 0 | N59: 10 | O59: 0 | Q59: =Hamilton!B29 -> 0 | R59: =Hamilton!C29 -> N | S59: =Hamilton!D29 -> X | T59: =Hamilton!N29 -> 0 | V59: 10 | W59: Y | X59: Jeff | Y59: 7.09 | AA59: 11.55375 | AB59: 3 | AD59: 9 | AE59: 0
B60: Macro | C60: CTL+D | D60: Teams | E60: 2 | H60: NB Avg | I60: =Zoar!Q31 -> 3.037777778 | R60: Macro | S60: CTL+T | T60: Teams | U60: 6 | X60: NB Avg | Y60: =Hamilton!Q31 -> 4.46375
A62: =YTD!L17 -> Quaddick | M62: Sort | N62: Copy | O62: Sort | Q62: =YTD!L21 -> Lilly | AC62: Sort | AD62: Copy | AE62: Sort
A63: Team # | B63: Alone? | C63: Name | D63: Net Wt | F63: Team # | G63: Alone? | H63: Name | I63: Net Wt | K63: Totals | L63: Rank | M63: Rank | N63: Team # | O63: Tot Wt | Q63: Team # | R63: Alone? | S63: Name | T63: Net Wt | V63: Team # | W63: Alone? | X63: Name | Y63: Net Wt | AA63: Totals | AB63: Rank | AC63: Rank | AD63: Team # | AE63: Tot Wt
A64: =Quaddic!B4 -> 9 | B64: =Quaddic!C4 -> N | C64: =Quaddic!D4 -> Armand F. | D64: =Quaddic!N4 -> 4.54 | F64: 0 | G64: N | H64: X | I64: 0 | K64: =IF(F64=20,0,IF(F64=F65,I64+I65,IF(G64="Y",I64+I$90,0))) -> 0 | L64: =IF(K64>0,RANK(K64,K$64:K$89,0),"") ->  | M64: 1 | N64: 3 | O64: 11.47 | Q64: =Lilly!B4 -> 2 | R64: =Lilly!C4 -> N | S64: =Lilly!D4 -> Armand F. | T64: =Lilly!N4 -> 5.74 | V64: 0 | W64: N | X64: Vinny | Y64: 0 | AA64: =IF(V64=20,0,IF(V64=V65,Y64+Y65,IF(W64="Y",Y64+Y$90,0))) -> 0 | AB64: =IF(AA64>0,RANK(AA64,AA$64:AA$89,0),"") ->  | AC64: 1 | AD64: 2 | AE64: 13.73
A65: =Quaddic!B5 -> 11 | B65: =Quaddic!C5 -> N | C65: =Quaddic!D5 -> Bill | D65: =Quaddic!N5 -> 0 | F65: 0 | G65: N | H65: X | I65: 0 | K65: =IF(F65=20,0,IF(F65=F66,I65+I66,IF(G65="Y",I65+I$90,0))) -> 0 | L65: =IF(K65>0,RANK(K65,K$64:K$89,0),"") ->  | M65: 2 | N65: 1 | O65: 9.84 | Q65: =Lilly!B5 -> 10 | R65: =Lilly!C5 -> N | S65: =Lilly!D5 -> Bill | T65: =Lilly!N5 -> 4.08 | V65: 0 | W65: N | X65: X | Y65: 0 | AA65: =IF(V65=20,0,IF(V65=V66,Y65+Y66,IF(W65="Y",Y65+Y$90,0))) -> 0 | AB65: =IF(AA65>0,RANK(AA65,AA$64:AA$89,0),"") ->  | AC65: 2 | AD65: 3 | AE65: 12.98
A66: =Quaddic!B6 -> 7 | B66: =Quaddic!C6 -> N | C66: =Quaddic!D6 -> Dean | D66: =Quaddic!N6 -> 2.85 | F66: 0 | G66: N | H66: X | I66: 0 | K66: 0 | M66: 3 | N66: 4 | O66: 9.44 | Q66: =Lilly!B6 -> 8 | R66: =Lilly!C6 -> N | S66: =Lilly!D6 -> Dean | T66: =Lilly!N6 -> 7.17 | V66: 0 | W66: N | X66: X | Y66: 0 | AA66: 0 | AC66: 3 | AD66: 10 | AE66: 12.46
A67: =Quaddic!B7 -> 6 | B67: =Quaddic!C7 -> N | C67: =Quaddic!D7 -> Jack | D67: =Quaddic!N7 -> 3.04 | F67: 0 | G67: N | H67: X | I67: 0 | K67: 0 | M67: 4 | N67: 10 | O67: 9.42 | Q67: =Lilly!B7 -> 9 | R67: =Lilly!C7 -> N | S67: =Lilly!D7 -> Jack | T67: =Lilly!N7 -> 6.18 | V67: 0 | W67: N | X67: X | Y67: 0 | AA67: 0 | AC67: 4 | AD67: 8 | AE67: 12.01
A68: =Quaddic!B8 -> 8 | B68: =Quaddic!C8 -> Y | C68: =Quaddic!D8 -> Jason | D68: =Quaddic!N8 -> 5.62 | F68: 0 | G68: N | H68: X | I68: 0 | K68: 0 | M68: 5 | N68: 7 | O68: 9.3 | Q68: =Lilly!B8 -> 5 | R68: =Lilly!C8 -> N | S68: =Lilly!D8 -> Jason | T68: =Lilly!N8 -> 7.79 | V68: 0 | W68: N | X68: X | Y68: 0 | AA68: 0 | AC68: 5 | AD68: 9 | AE68: 11.12
A69: =Quaddic!B9 -> 6 | B69: =Quaddic!C9 -> N | C69: =Quaddic!D9 -> Jeff | D69: =Quaddic!N9 -> 6.19 | F69: 1 | G69: N | H69: Jim B | I69: 3.11 | K69: 9.84 | L69: 2 | M69: 6 | N69: 6 | O69: 9.23 | Q69: =Lilly!B9 -> 2 | R69: =Lilly!C9 -> N | S69: =Lilly!D9 -> Jeff | T69: =Lilly!N9 -> 7.99 | V69: 0 | W69: N | X69: X | Y69: 0 | AA69: 0 | AC69: 6 | AD69: 1 | AE69: 10.29
A70: =Quaddic!B10 -> 1 | B70: =Quaddic!C10 -> N | C70: =Quaddic!D10 -> Jim B | D70: =Quaddic!N10 -> 3.11 | F70: 1 | G70: N | H70: Tom | I70: 6.73 | K70: 0 | M70: 7 | N70: 8 | O70: 8.927 | Q70: =Lilly!B10 -> 7 | R70: =Lilly!C10 -> N | S70: =Lilly!D10 -> Jim B | T70: =Lilly!N10 -> 0 | V70: 1 | W70: N | X70: Kevin | Y70: 8.25 | AA70: 10.29 | AB70: 6 | AC70: 7 | AD70: 5 | AE70: 8.81
A71: =Quaddic!B11 -> 4 | B71: =Quaddic!C11 -> N | C71: =Quaddic!D11 -> Jim H | D71: =Quaddic!N11 -> 4.39 | F71: 2 | G71: N | H71: Morrie | I71: 2.06 | K71: 2.06 | L71: 11 | M71: 8 | N71: 9 | O71: 8.91 | Q71: =Lilly!B11 -> 4 | R71: =Lilly!C11 -> N | S71: =Lilly!D11 -> Jim H | T71: =Lilly!N11 -> 2.89 | V71: 1 | W71: N | X71: Steve S | Y71: 2.04 | AA71: 0 | AC71: 8 | AD71: 4 | AE71: 6.44
A72: =Quaddic!B12 -> 9 | B72: =Quaddic!C12 -> N | C72: =Quaddic!D12 -> Joe | D72: =Quaddic!N12 -> 4.37 | F72: 2 | G72: N | H72: Steve S | I72: 0 | K72: 0 | M72: 9 | N72: 11 | O72: 3.43 | Q72: =Lilly!B12 -> 3 | R72: =Lilly!C12 -> N | S72: =Lilly!D12 -> Joe | T72: =Lilly!N12 -> 5.54 | V72: 2 | W72: N | X72: Armand F. | Y72: 5.74 | AA72: 13.73 | AB72: 1 | AC72: 9 | AD72: 6 | AE72: 5.78
A73: =Quaddic!B13 -> 10 | B73: =Quaddic!C13 -> N | C73: =Quaddic!D13 -> Kevin | D73: =Quaddic!N13 -> 4.88 | F73: 3 | G73: N | H73: Rich T | I73: 4.61 | K73: 11.47 | L73: 1 | M73: 10 | N73: 5 | O73: 2.56 | Q73: =Lilly!B13 -> 1 | R73: =Lilly!C13 -> N | S73: =Lilly!D13 -> Kevin | T73: =Lilly!N13 -> 8.25 | V73: 2 | W73: N | X73: Jeff | Y73: 7.99 | AA73: 0 | AC73: 10 | AD73: 7 | AE73: 3.48
A74: =Quaddic!B14 -> 5 | B74: =Quaddic!C14 -> N | C74: =Quaddic!D14 -> Mike | D74: =Quaddic!N14 -> 2.56 | F74: 3 | G74: N | H74: Steve D | I74: 6.86 | K74: 0 | M74: 11 | N74: 2 | O74: 2.06 | Q74: =Lilly!B14 -> 5 | R74: =Lilly!C14 -> N | S74: =Lilly!D14 -> Mike | T74: =Lilly!N14 -> 1.02 | V74: 3 | W74: N | X74: Joe | Y74: 5.54 | AA74: 12.98 | AB74: 2 | AD74: 0 | AE74: 0
A75: =Quaddic!B15 -> 2 | B75: =Quaddic!C15 -> N | C75: =Quaddic!D15 -> Morrie | D75: =Quaddic!N15 -> 2.06 | F75: 4 | G75: N | H75: Jim H | I75: 4.39 | K75: 9.44 | L75: 3 | N75: 0 | O75: 0 | Q75: =Lilly!B15 -> 10 | R75: =Lilly!C15 -> N | S75: =Lilly!D15 -> Morrie | T75: =Lilly!N15 -> 8.38 | V75: 3 | W75: N | X75: Steve D | Y75: 7.44 | AA75: 0 | AD75: 0 | AE75: 0
A76: =Quaddic!B16 -> 7 | B76: =Quaddic!C16 -> N | C76: =Quaddic!D16 -> Pete | D76: =Quaddic!N16 -> 6.45 | F76: 4 | G76: N | H76: Scott | I76: 5.05 | K76: 0 | N76: 0 | O76: 0 | Q76: =Lilly!B16 -> 6 | R76: =Lilly!C16 -> N | S76: =Lilly!D16 -> Pete | T76: =Lilly!N16 -> 3.92 | V76: 4 | W76: N | X76: Jim H | Y76: 2.89 | AA76: 6.44 | AB76: 8 | AD76: 0 | AE76: 0
A77: =Quaddic!B17 -> 5 | B77: =Quaddic!C17 -> N | C77: =Quaddic!D17 -> Rich B | D77: =Quaddic!N17 -> 0 | F77: 5 | G77: N | H77: Mike | I77: 2.56 | K77: 2.56 | L77: 10 | N77: 0 | O77: 0 | Q77: =Lilly!B17 -> 9 | R77: =Lilly!C17 -> N | S77: =Lilly!D17 -> Rich B | T77: =Lilly!N17 -> 4.94 | V77: 4 | W77: N | X77: Tom | Y77: 3.55 | AA77: 0 | AD77: 0 | AE77: 0
A78: =Quaddic!B18 -> 3 | B78: =Quaddic!C18 -> N | C78: =Quaddic!D18 -> Rich T | D78: =Quaddic!N18 -> 4.61 | F78: 5 | G78: N | H78: Rich B | I78: 0 | K78: 0 | N78: 0 | O78: 0 | Q78: =Lilly!B18 -> 8 | R78: =Lilly!C18 -> N | S78: =Lilly!D18 -> Rich T | T78: =Lilly!N18 -> 4.84 | V78: 5 | W78: N | X78: Jason | Y78: 7.79 | AA78: 8.81 | AB78: 7 | AD78: 0 | AE78: 0
A79: =Quaddic!B19 -> 11 | B79: =Quaddic!C19 -> N | C79: =Quaddic!D19 -> Ron | D79: =Quaddic!N19 -> 3.43 | F79: 6 | G79: N | H79: Jack | I79: 3.04 | K79: 9.23 | L79: 6 | N79: 0 | O79: 0 | Q79: =Lilly!B19 -> 7 | R79: =Lilly!C19 -> N | S79: =Lilly!D19 -> Ron | T79: =Lilly!N19 -> 3.48 | V79: 5 | W79: N | X79: Mike | Y79: 1.02 | AA79: 0 | AD79: 0 | AE79: 0
A80: =Quaddic!B20 -> 4 | B80: =Quaddic!C20 -> N | C80: =Quaddic!D20 -> Scott | D80: =Quaddic!N20 -> 5.05 | F80: 6 | G80: N | H80: Jeff | I80: 6.19 | K80: 0 | N80: 1 | O80: 0 | Q80: =Lilly!B20 -> 6 | R80: =Lilly!C20 -> N | S80: =Lilly!D20 -> Scott | T80: =Lilly!N20 -> 1.86 | V80: 6 | W80: N | X80: Pete | Y80: 3.92 | AA80: 5.78 | AB80: 9 | AD80: 1 | AE80: 0
A81: =Quaddic!B21 -> 3 | B81: =Quaddic!C21 -> N | C81: =Quaddic!D21 -> Steve D | D81: =Quaddic!N21 -> 6.86 | F81: 7 | G81: N | H81: Dean | I81: 2.85 | K81: 9.3 | L81: 5 | N81: 2 | O81: 0 | Q81: =Lilly!B21 -> 3 | R81: =Lilly!C21 -> N | S81: =Lilly!D21 -> Steve D | T81: =Lilly!N21 -> 7.44 | V81: 6 | W81: N | X81: Scott | Y81: 1.86 | AA81: 0 | AD81: 2 | AE81: 0
A82: =Quaddic!B22 -> 2 | B82: =Quaddic!C22 -> N | C82: =Quaddic!D22 -> Steve S | D82: =Quaddic!N22 -> 0 | F82: 7 | G82: N | H82: Pete | I82: 6.45 | K82: 0 | N82: 3 | O82: 0 | Q82: =Lilly!B22 -> 1 | R82: =Lilly!C22 -> N | S82: =Lilly!D22 -> Steve S | T82: =Lilly!N22 -> 2.04 | V82: 7 | W82: N | X82: Jim B | Y82: 0 | AA82: 3.48 | AB82: 10 | AD82: 3 | AE82: 0
A83: =Quaddic!B23 -> 1 | B83: =Quaddic!C23 -> N | C83: =Quaddic!D23 -> Tom | D83: =Quaddic!N23 -> 6.73 | F83: 8 | G83: Y | H83: Jason | I83: 5.62 | K83: 8.927 | L83: 7 | N83: 4 | O83: 0 | Q83: =Lilly!B23 -> 4 | R83: =Lilly!C23 -> N | S83: =Lilly!D23 -> Tom | T83: =Lilly!N23 -> 3.55 | V83: 7 | W83: N | X83: Ron | Y83: 3.48 | AA83: 0 | AD83: 4 | AE83: 0
A84: =Quaddic!B24 -> 10 | B84: =Quaddic!C24 -> N | C84: =Quaddic!D24 -> Vinny | D84: =Quaddic!N24 -> 4.54 | F84: 9 | G84: N | H84: Armand F. | I84: 4.54 | K84: 8.91 | L84: 8 | N84: 5 | O84: 0 | Q84: =Lilly!B24 -> 0 | R84: =Lilly!C24 -> N | S84: =Lilly!D24 -> Vinny | T84: =Lilly!N24 -> 0 | V84: 8 | W84: N | X84: Dean | Y84: 7.17 | AA84: 12.01 | AB84: 4 | AD84: 5 | AE84: 0
A85: =Quaddic!B25 -> 0 | B85: =Quaddic!C25 -> N | C85: =Quaddic!D25 -> X | D85: =Quaddic!N25 -> 0 | F85: 9 | G85: N | H85: Joe | I85: 4.37 | K85: 0 | N85: 6 | O85: 0 | Q85: =Lilly!B25 -> 0 | R85: =Lilly!C25 -> N | S85: =Lilly!D25 -> X | T85: =Lilly!N25 -> 0 | V85: 8 | W85: N | X85: Rich T | Y85: 4.84 | AA85: 0 | AD85: 6 | AE85: 0
A86: =Quaddic!B26 -> 0 | B86: =Quaddic!C26 -> N | C86: =Quaddic!D26 -> X | D86: =Quaddic!N26 -> 0 | F86: 10 | G86: N | H86: Kevin | I86: 4.88 | K86: 9.42 | L86: 4 | N86: 7 | O86: 0 | Q86: =Lilly!B26 -> 0 | R86: =Lilly!C26 -> N | S86: =Lilly!D26 -> X | T86: =Lilly!N26 -> 0 | V86: 9 | W86: N | X86: Jack | Y86: 6.18 | AA86: 11.12 | AB86: 5 | AD86: 7 | AE86: 0
A87: =Quaddic!B27 -> 0 | B87: =Quaddic!C27 -> N | C87: =Quaddic!D27 -> X | D87: =Quaddic!N27 -> 0 | F87: 10 | G87: N | H87: Vinny | I87: 4.54 | K87: 0 | N87: 9 | O87: 0 | Q87: =Lilly!B27 -> 0 | R87: =Lilly!C27 -> N | S87: =Lilly!D27 -> X | T87: =Lilly!N27 -> 0 | V87: 9 | W87: N | X87: Rich B | Y87: 4.94 | AA87: 0 | AD87: 8 | AE87: 0
A88: =Quaddic!B28 -> 0 | B88: =Quaddic!C28 -> N | C88: =Quaddic!D28 -> X | D88: =Quaddic!N28 -> 0 | F88: 11 | G88: N | H88: Bill | I88: 0 | K88: 3.43 | L88: 9 | N88: 10 | O88: 0 | Q88: =Lilly!B28 -> 0 | R88: =Lilly!C28 -> N | S88: =Lilly!D28 -> X | T88: =Lilly!N28 -> 0 | V88: 10 | W88: N | X88: Bill | Y88: 4.08 | AA88: 12.46 | AB88: 3 | AD88: 9 | AE88: 0
A89: =Quaddic!B29 -> 0 | B89: =Quaddic!C29 -> N | C89: =Quaddic!D29 -> X | D89: =Quaddic!N29 -> 0 | F89: 11 | G89: N | H89: Ron | I89: 3.43 | K89: 0 | N89: 11 | O89: 0 | Q89: =Lilly!B29 -> 0 | R89: =Lilly!C29 -> N | S89: =Lilly!D29 -> X | T89: =Lilly!N29 -> 0 | V89: 10 | W89: N | X89: Morrie | Y89: 8.38 | AA89: 0 | AD89: 10 | AE89: 0
B90: Macro | C90: CTL+H | D90: Teams | E90: 3 | H90: NB Avg | I90: =Quaddic!Q31 -> 3.307 | R90: Macro | S90: CTL+E | T90: Teams | U90: 7 | X90: NB Avg | Y90: =Lilly!Q31 -> 3.625
A92: =YTD!L18 -> Candlewood | M92: Sort | N92: Copy | O92: Sort | Q92: =YTD!L22 -> Highland | AC92: Sort | AD92: Copy | AE92: Sort
A93: Team # | B93: Alone? | C93: Name | D93: Net Wt | F93: Team # | G93: Alone? | H93: Name | I93: Net Wt | K93: Totals | L93: Rank | M93: Rank | N93: Team # | O93: Tot Wt | Q93: Team # | R93: Alone? | S93: Name | T93: Net Wt | V93: Team # | W93: Alone? | X93: Name | Y93: Net Wt | AA93: Totals | AB93: Rank | AC93: Rank | AD93: Team # | AE93: Tot Wt
A94: =Candlewood!B4 -> 1 | B94: =Candlewood!C4 -> N | C94: =Candlewood!D4 -> Armand F. | D94: =Candlewood!N4 -> 7.49 | F94: 0 | G94: N | H94: X | I94: 0 | K94: =IF(F94=20,0,IF(F94=F95,I94+I95,IF(G94="Y",I94+I$120,0))) -> 0 | L94: =IF(K94>0,RANK(K94,K$94:K$119,0),"") ->  | M94: 1 | N94: 1 | O94: 19.82 | Q94: =Highland!B4 -> 9 | R94: =Highland!C4 -> N | S94: =Highland!D4 -> Armand F. | T94: =Highland!N4 -> 7.23 | V94: 0 | W94: N | X94: Dean | Y94: 0 | AA94: =IF(V94=20,0,IF(V94=V95,Y94+Y95,IF(W94="Y",Y94+Y$120,0))) -> 0 | AB94: =IF(AA94>0,RANK(AA94,AA$94:AA$119,0),"") ->  | AC94: 1 | AD94: 9 | AE94: 9.02
A95: =Candlewood!B5 -> 4 | B95: =Candlewood!C5 -> N | C95: =Candlewood!D5 -> Bill | D95: =Candlewood!N5 -> 1.43 | F95: 0 | G95: N | H95: X | I95: 0 | K95: =IF(F95=20,0,IF(F95=F96,I95+I96,IF(G95="Y",I95+I$120,0))) -> 0 | L95: =IF(K95>0,RANK(K95,K$94:K$119,0),"") ->  | M95: 2 | N95: 5 | O95: 15.79 | Q95: =Highland!B5 -> 5 | R95: =Highland!C5 -> N | S95: =Highland!D5 -> Bill | T95: =Highland!N5 -> 1.03 | V95: 0 | W95: N | X95: Jim B | Y95: 0 | AA95: =IF(V95=20,0,IF(V95=V96,Y95+Y96,IF(W95="Y",Y95+Y$120,0))) -> 0 | AB95: =IF(AA95>0,RANK(AA95,AA$94:AA$119,0),"") ->  | AC95: 2 | AD95: 7 | AE95: 8.48
A96: =Candlewood!B6 -> 7 | B96: =Candlewood!C6 -> Y | C96: =Candlewood!D6 -> Dean | D96: =Candlewood!N6 -> 8.78 | F96: 0 | G96: N | H96: X | I96: 0 | K96: 0 | M96: 3 | N96: 7 | O96: 12.993 | Q96: =Highland!B6 -> 0 | R96: =Highland!C6 -> N | S96: =Highland!D6 -> Dean | T96: =Highland!N6 -> 0 | V96: 0 | W96: N | X96: Rich T | Y96: 0 | AA96: 0 | AC96: 3 | AD96: 4 | AE96: 7.361428571
A97: =Candlewood!B7 -> 1 | B97: =Candlewood!C7 -> N | C97: =Candlewood!D7 -> Jack | D97: =Candlewood!N7 -> 12.33 | F97: 0 | G97: N | H97: X | I97: 0 | K97: 0 | M97: 4 | N97: 11 | O97: 12.48 | Q97: =Highland!B7 -> 7 | R97: =Highland!C7 -> N | S97: =Highland!D7 -> Jack | T97: =Highland!N7 -> 1.11 | V97: 0 | W97: N | X97: Ron | Y97: 0 | AA97: 0 | AC97: 4 | AD97: 2 | AE97: 6.381428571
A98: =Candlewood!B8 -> 9 | B98: =Candlewood!C8 -> N | C98: =Candlewood!D8 -> Jason | D98: =Candlewood!N8 -> 2.89 | F98: 0 | G98: N | H98: X | I98: 0 | K98: 0 | M98: 5 | N98: 3 | O98: 11.68 | Q98: =Highland!B8 -> 8 | R98: =Highland!C8 -> N | S98: =Highland!D8 -> Jason | T98: =Highland!N8 -> 4.09 | V98: 0 | W98: N | X98: Vinny | Y98: 0 | AA98: 0 | AC98: 5 | AD98: 3 | AE98: 5.54
A99: =Candlewood!B9 -> 4 | B99: =Candlewood!C9 -> N | C99: =Candlewood!D9 -> Jeff | D99: =Candlewood!N9 -> 8.04 | F99: 1 | G99: N | H99: Armand F. | I99: 7.49 | K99: 19.82 | L99: 1 | M99: 6 | N99: 6 | O99: 10.92 | Q99: =Highland!B9 -> 2 | R99: =Highland!C9 -> y | S99: =Highland!D9 -> Jeff | T99: =Highland!N9 -> 5.82 | V99: 0 | W99: N | X99: X | Y99: 0 | AA99: 0 | AC99: 6 | AD99: 5 | AE99: 4.48
A100: =Candlewood!B10 -> 3 | B100: =Candlewood!C10 -> N | C100: =Candlewood!D10 -> Jim B | D100: =Candlewood!N10 -> 3.41 | F100: 1 | G100: N | H100: Jack | I100: 12.33 | K100: 0 | M100: 7 | N100: 4 | O100: 9.47 | Q100: =Highland!B10 -> 0 | R100: =Highland!C10 -> N | S100: =Highland!D10 -> Jim B | T100: =Highland!N10 -> 0 | V100: 0 | W100: N | X100: X | Y100: 0 | AA100: 0 | AC100: 7 | AD100: 8 | AE100: 4.09
A101: =Candlewood!B11 -> 2 | B101: =Candlewood!C11 -> N | C101: =Candlewood!D11 -> Jim H | D101: =Candlewood!N11 -> 3.36 | F101: 2 | G101: N | H101: Jim H | I101: 3.36 | K101: 4.97 | L101: 10 | M101: 8 | N101: 8 | O101: 8.77 | Q101: =Highland!B11 -> 1 | R101: =Highland!C11 -> N | S101: =Highland!D11 -> Jim H | T101: =Highland!N11 -> 0 | V101: 0 | W101: N | X101: X | Y101: 0 | AA101: 0 | AD101: 0 | AE101: 0
A102: =Candlewood!B12 -> 8 | B102: =Candlewood!C12 -> N | C102: =Candlewood!D12 -> Joe | D102: =Candlewood!N12 -> 2.26 | F102: 2 | G102: N | H102: Morrie | I102: 1.61 | K102: 0 | M102: 9 | N102: 10 | O102: 6.47 | Q102: =Highland!B12 -> 3 | R102: =Highland!C12 -> N | S102: =Highland!D12 -> Joe | T102: =Highland!N12 -> 0 | V102: 0 | W102: N | X102: X | Y102: 0 | AA102: 0 | AD102: 0 | AE102: 0
A103: =Candlewood!B13 -> 3 | B103: =Candlewood!C13 -> N | C103: =Candlewood!D13 -> Kevin | D103: =Candlewood!N13 -> 8.27 | F103: 3 | G103: N | H103: Jim B | I103: 3.41 | K103: 11.68 | L103: 5 | M103: 10 | N103: 2 | O103: 4.97 | Q103: =Highland!B13 -> 1 | R103: =Highland!C13 -> N | S103: =Highland!D13 -> Kevin | T103: =Highland!N13 -> 0 | V103: 0 | W103: N | X103: X | Y103: 0 | AA103: 0 | AD103: 0 | AE103: 0
A104: =Candlewood!B14 -> 5 | B104: =Candlewood!C14 -> N | C104: =Candlewood!D14 -> Mike | D104: =Candlewood!N14 -> 5.57 | F104: 3 | G104: N | H104: Kevin | I104: 8.27 | K104: 0 | M104: 11 | N104: 9 | O104: 2.89 | Q104: =Highland!B14 -> 9 | R104: =Highland!C14 -> N | S104: =Highland!D14 -> Mike | T104: =Highland!N14 -> 1.79 | V104: 1 | W104: N | X104: Jim H | Y104: 0 | AA104: 0 | AD104: 0 | AE104: 0
A105: =Candlewood!B15 -> 2 | B105: =Candlewood!C15 -> N | C105: =Candlewood!D15 -> Morrie | D105: =Candlewood!N15 -> 1.61 | F105: 4 | G105: N | H105: Bill | I105: 1.43 | K105: 9.47 | L105: 7 | N105: 0 | O105: 0 | Q105: =Highland!B15 -> 6 | R105: =Highland!C15 -> N | S105: =Highland!D15 -> Morrie | T105: =Highland!N15 -> 0 | V105: 1 | W105: N | X105: Kevin | Y105: 0 | AA105: 0 | AD105: 0 | AE105: 0
A106: =Candlewood!B16 -> 11 | B106: =Candlewood!C16 -> N | C106: =Candlewood!D16 -> Pete | D106: =Candlewood!N16 -> 4.48 | F106: 4 | G106: N | H106: Jeff | I106: 8.04 | K106: 0 | N106: 0 | O106: 0 | Q106: =Highland!B16 -> 6 | R106: =Highland!C16 -> N | S106: =Highland!D16 -> Pete | T106: =Highland!N16 -> 0 | V106: 2 | W106: y | X106: Jeff | Y106: 5.82 | AA106: 6.381428571 | AB106: 4 | AD106: 0 | AE106: 0
A107: =Candlewood!B17 -> 10 | B107: =Candlewood!C17 -> N | C107: =Candlewood!D17 -> Rich B | D107: =Candlewood!N17 -> 4.96 | F107: 5 | G107: N | H107: Mike | I107: 5.57 | K107: 15.79 | L107: 2 | N107: 0 | O107: 0 | Q107: =Highland!B17 -> 5 | R107: =Highland!C17 -> N | S107: =Highland!D17 -> Rich B | T107: =Highland!N17 -> 3.45 | V107: 3 | W107: N | X107: Joe | Y107: 0 | AA107: 5.54 | AB107: 5 | AD107: 0 | AE107: 0
A108: =Candlewood!B18 -> 6 | B108: =Candlewood!C18 -> N | C108: =Candlewood!D18 -> Rich T | D108: =Candlewood!N18 -> 7.78 | F108: 5 | G108: N | H108: Steve D | I108: 10.22 | K108: 0 | N108: 0 | O108: 0 | Q108: =Highland!B18 -> 0 | R108: =Highland!C18 -> N | S108: =Highland!D18 -> Rich T | T108: =Highland!N18 -> 0 | V108: 3 | W108: N | X108: Tom | Y108: 5.54 | AA108: 0 | AD108: 0 | AE108: 0
A109: =Candlewood!B19 -> 11 | B109: =Candlewood!C19 -> N | C109: =Candlewood!D19 -> Ron | D109: =Candlewood!N19 -> 8 | F109: 6 | G109: N | H109: Rich T | I109: 7.78 | K109: 10.92 | L109: 6 | N109: 0 | O109: 0 | Q109: =Highland!B19 -> 0 | R109: =Highland!C19 -> N | S109: =Highland!D19 -> Ron | T109: =Highland!N19 -> 0 | V109: 4 | W109: y | X109: Scott | Y109: 6.8 | AA109: 7.361428571 | AB109: 3 | AD109: 0 | AE109: 0
A110: =Candlewood!B20 -> 8 | B110: =Candlewood!C20 -> N | C110: =Candlewood!D20 -> Scott | D110: =Candlewood!N20 -> 6.51 | F110: 6 | G110: N | H110: Tom | I110: 3.14 | K110: 0 | N110: 1 | O110: 0 | Q110: =Highland!B20 -> 4 | R110: =Highland!C20 -> y | S110: =Highland!D20 -> Scott | T110: =Highland!N20 -> 6.8 | V110: 5 | W110: N | X110: Bill | Y110: 1.03 | AA110: 4.48 | AB110: 6 | AD110: 0 | AE110: 0
A111: =Candlewood!B21 -> 5 | B111: =Candlewood!C21 -> N | C111: =Candlewood!D21 -> Steve D | D111: =Candlewood!N21 -> 10.22 | F111: 7 | G111: Y | H111: Dean | I111: 8.78 | K111: 12.993 | L111: 3 | N111: 2 | O111: 0 | Q111: =Highland!B21 -> 7 | R111: =Highland!C21 -> N | S111: =Highland!D21 -> Steve D | T111: =Highland!N21 -> 7.37 | V111: 5 | W111: N | X111: Rich B | Y111: 3.45 | AA111: 0 | AD111: 1 | AE111: 0
A112: =Candlewood!B22 -> 10 | B112: =Candlewood!C22 -> N | C112: =Candlewood!D22 -> Steve S | D112: =Candlewood!N22 -> 1.51 | F112: 8 | G112: N | H112: Joe | I112: 2.26 | K112: 8.77 | L112: 8 | N112: 3 | O112: 0 | Q112: =Highland!B22 -> 8 | R112: =Highland!C22 -> N | S112: =Highland!D22 -> Steve S | T112: =Highland!N22 -> 0 | V112: 6 | W112: N | X112: Morrie | Y112: 0 | AA112: 0 | AD112: 1 | AE112: 0
A113: =Candlewood!B23 -> 6 | B113: =Candlewood!C23 -> N | C113: =Candlewood!D23 -> Tom | D113: =Candlewood!N23 -> 3.14 | F113: 8 | G113: N | H113: Scott | I113: 6.51 | K113: 0 | N113: 4 | O113: 0 | Q113: =Highland!B23 -> 3 | R113: =Highland!C23 -> N | S113: =Highland!D23 -> Tom | T113: =Highland!N23 -> 5.54 | V113: 6 | W113: N | X113: Pete | Y113: 0 | AA113: 0 | AD113: 3 | AE113: 0
A114: =Candlewood!B24 -> 9 | B114: =Candlewood!C24 -> N | C114: =Candlewood!D24 -> Vinny | D114: =Candlewood!N24 -> 0 | F114: 9 | G114: N | H114: Jason | I114: 2.89 | K114: 2.89 | L114: 11 | N114: 5 | O114: 0 | Q114: =Highland!B24 -> 0 | R114: =Highland!C24 -> N | S114: =Highland!D24 -> Vinny | T114: =Highland!N24 -> 0 | V114: 7 | W114: N | X114: Jack | Y114: 1.11 | AA114: 8.48 | AB114: 2 | AD114: 5 | AE114: 0
A115: =Candlewood!B25 -> 0 | B115: =Candlewood!C25 -> N | C115: =Candlewood!D25 -> X | D115: =Candlewood!N25 -> 0 | F115: 9 | G115: N | H115: Vinny | I115: 0 | K115: 0 | N115: 6 | O115: 0 | Q115: =Highland!B25 -> 0 | R115: =Highland!C25 -> N | S115: =Highland!D25 -> X | T115: =Highland!N25 -> 0 | V115: 7 | W115: N | X115: Steve D | Y115: 7.37 | AA115: 0 | AD115: 6 | AE115: 0
A116: =Candlewood!B26 -> 0 | B116: =Candlewood!C26 -> N | C116: =Candlewood!D26 -> X | D116: =Candlewood!N26 -> 0 | F116: 10 | G116: N | H116: Rich B | I116: 4.96 | K116: 6.47 | L116: 9 | N116: 8 | O116: 0 | Q116: =Highland!B26 -> 0 | R116: =Highland!C26 -> N | S116: =Highland!D26 -> X | T116: =Highland!N26 -> 0 | V116: 8 | W116: N | X116: Jason | Y116: 4.09 | AA116: 4.09 | AB116: 7 | AD116: 6 | AE116: 0
A117: =Candlewood!B27 -> 0 | B117: =Candlewood!C27 -> N | C117: =Candlewood!D27 -> X | D117: =Candlewood!N27 -> 0 | F117: 10 | G117: N | H117: Steve S | I117: 1.51 | K117: 0 | N117: 9 | O117: 0 | Q117: =Highland!B27 -> 0 | R117: =Highland!C27 -> N | S117: =Highland!D27 -> X | T117: =Highland!N27 -> 0 | V117: 8 | W117: N | X117: Steve S | Y117: 0 | AA117: 0 | AD117: 7 | AE117: 0
A118: =Candlewood!B28 -> 0 | B118: =Candlewood!C28 -> N | C118: =Candlewood!D28 -> X | D118: =Candlewood!N28 -> 0 | F118: 11 | G118: N | H118: Pete | I118: 4.48 | K118: 12.48 | L118: 4 | N118: 10 | O118: 0 | Q118: =Highland!B28 -> 0 | R118: =Highland!C28 -> N | S118: =Highland!D28 -> X | T118: =Highland!N28 -> 0 | V118: 9 | W118: N | X118: Armand F. | Y118: 7.23 | AA118: 9.02 | AB118: 1 | AD118: 8 | AE118: 0
A119: =Candlewood!B29 -> 0 | B119: =Candlewood!C29 -> N | C119: =Candlewood!D29 -> X | D119: =Candlewood!N29 -> 0 | F119: 11 | G119: N | H119: Ron | I119: 8 | K119: 0 | N119: 11 | O119: 0 | Q119: =Highland!B29 -> 0 | R119: =Highland!C29 -> N | S119: =Highland!D29 -> X | T119: =Highland!N29 -> 0 | V119: 9 | W119: N | X119: Mike | Y119: 1.79 | AA119: 0 | AD119: 9 | AE119: 0
B120: Macro | C120: CTL+N | D120: Teams | E120: 4 | H120: NB Avg | I120: =Candlewood!Q31 -> 4.213 | R120: Macro | S120: CTL+Q | T120: Teams | U120: 8 | X120: NB Avg | Y120: =Highland!Q31 -> 0.5614285714

Sheet YTD
B1: =P15 -> Armand F. | C1: =P16 -> Bill | D1: =P17 -> Dean | E1: =P18 -> Jack | F1: =P19 -> Jason | G1: =P20 -> Jeff | H1: =P21 -> Jim B | I1: =P22 -> Jim H | J1: =P23 -> Joe | K1: =P24 -> Kevin | L1: =P25 -> Mike | M1: =P26 -> Morrie | N1: =P27 -> Pete | O1: =P28 -> Rich B | P1: =P29 -> Rich T | Q1: =P30 -> Ron | R1: =P31 -> Scott | S1: =P32 -> Steve D | T1: =P33 -> Steve S | U1: =P34 -> Tom | V1: =P35 -> Vinny | W1: =P36 -> X | X1: =P37 -> X | Y1: =P38 -> X | Z1: =P39 -> X | AA1: =P40 -> X
B2: =Highland!O4 -> 2 | C2: =Highland!O5 -> 10 | D2: =Candlewood!O6 -> 3 | E2: =Candlewood!O7 -> 1 | F2: ='CT River'!O8 -> 1 | G2: =Hamilton!O9 -> 1 | H2: =Zoar!O10 -> 2 | I2: =Zoar!O11 -> 7 | J2: =Hamilton!O12 -> 8 | K2: =Pachuag!O13 -> 2 | L2: =Zoar!O14 -> 5 | M2: =Lilly!O15 -> 1 | N2: =Pachuag!O16 -> 1 | O2: ='CT River'!O17 -> 3 | P2: =Pachuag!O18 -> 7 | Q2: ='CT River'!O19 -> 4 | R2: =Pachuag!O20 -> 3 | S2: =Zoar!O21 -> 1 | T2: =Pachuag!O22 -> 5 | U2: =Quaddic!O23 -> 2 | V2: =Hamilton!O24 -> 2 | W2: =Zoar!O25 -> 35 | X2: =Hamilton!O26 -> 35 | Y2: =Candlewood!O27 -> 35 | Z2: ='CT River'!O28 -> 35 | AA2: =Highland!O29 -> 35
B3: =Pachuag!O4 -> 4 | C3: ='CT River'!O5 -> 11 | D3: =Lilly!O6 -> 6 | E3: ='CT River'!O7 -> 2 | F3: =Lilly!O8 -> 4 | G3: =Lilly!O9 -> 3 | H3: =Candlewood!O10 -> 13 | I3: =Pachuag!O11 -> 11 | J3: =Lilly!O12 -> 9 | K3: =Lilly!O13 -> 2 | L3: =Highland!O14 -> 8 | M3: =Pachuag!O15 -> 13 | N3: =Quaddic!O16 -> 3 | O3: =Highland!O17 -> 7 | P3: ='CT River'!O18 -> 7 | Q3: =Hamilton!O19 -> 4 | R3: =Highland!O20 -> 3 | S3: =Quaddic!O21 -> 1 | T3: =Zoar!O22 -> 6 | U3: =Highland!O23 -> 5 | V3: =Quaddic!O24 -> 9 | W3: =Quaddic!O25 -> 35 | X3: =Lilly!O26 -> 35 | Y3: =Hamilton!O27 -> 35 | Z3: =Quaddic!O28 -> 35 | AA3: =Pachuag!O29 -> 35
B4: =Hamilton!O4 -> 6 | C4: =Hamilton!O5 -> 12 | D4: =Zoar!O6 -> 11 | E4: =Lilly!O7 -> 7 | F4: =Quaddic!O8 -> 5 | G4: =Zoar!O9 -> 4 | H4: =Hamilton!O10 -> 13 | I4: =Quaddic!O11 -> 11 | J4: =Quaddic!O12 -> 12 | K4: =Zoar!O13 -> 3 | L4: =Candlewood!O14 -> 10 | M4: =Hamilton!O15 -> 16 | N4: =Hamilton!O16 -> 3 | O4: =Pachuag!O17 -> 10 | P4: =Candlewood!O18 -> 7 | Q4: =Candlewood!O19 -> 6 | R4: =Hamilton!O20 -> 5 | S4: =Highland!O21 -> 1 | T4: ='CT River'!O22 -> 12 | U4: =Hamilton!O23 -> 7 | V4: ='CT River'!O24 -> 30 | W4: =Candlewood!O25 -> 35 | X4: =Quaddic!O26 -> 35 | Y4: =Zoar!O27 -> 35 | Z4: =Highland!O28 -> 35 | AA4: ='CT River'!O29 -> 35
B5: =Candlewood!O4 -> 8 | C5: =Lilly!O5 -> 12 | D5: ='CT River'!O6 -> 14 | E5: =Pachuag!O7 -> 8 | F5: =Highland!O8 -> 6 | G5: =Quaddic!O9 -> 4 | H5: =Quaddic!O10 -> 14 | I5: =Candlewood!O11 -> 14 | J5: =Candlewood!O12 -> 17 | K5: =Candlewood!O13 -> 4 | L5: =Hamilton!O14 -> 10 | M5: =Quaddic!O15 -> 18 | N5: =Zoar!O16 -> 10 | O5: =Lilly!O17 -> 10 | P5: =Quaddic!O18 -> 8 | Q5: =Pachuag!O19 -> 9 | R5: =Quaddic!O20 -> 6 | S5: =Candlewood!O21 -> 2 | T5: =Lilly!O22 -> 17 | U5: =Zoar!O23 -> 9 | V5: =Candlewood!O24 -> 30 | W5: =Pachuag!O25 -> 35 | X5: =Zoar!O26 -> 35 | Y5: =Highland!O27 -> 35 | Z5: =Pachuag!O28 -> 35 | AA5: =Candlewood!O29 -> 35
B6: =Lilly!O4 -> 8 | C6: =Candlewood!O5 -> 20 | D6: =Quaddic!O6 -> 16 | E6: =Hamilton!O7 -> 9 | F6: =Zoar!O8 -> 8 | G6: =Highland!O9 -> 4 | H6: =Lilly!O10 -> 30 | I6: =Lilly!O11 -> 16 | J6: =Pachuag!O12 -> 30 | K6: =Quaddic!O13 -> 7 | L6: ='CT River'!O14 -> 13 | M6: =Candlewood!O15 -> 18 | N6: =Candlewood!O16 -> 12 | O6: =Candlewood!O17 -> 11 | P6: =Lilly!O18 -> 11 | Q6: =Quaddic!O19 -> 13 | R6: ='CT River'!O20 -> 6 | S6: ='CT River'!O21 -> 5 | T6: =Hamilton!O22 -> 18 | U6: =Lilly!O23 -> 14 | V6: =Highland!O24 -> 35 | W6: =Hamilton!O25 -> 35 | X6: =Pachuag!O26 -> 35 | Y6: ='CT River'!O27 -> 35 | Z6: =Candlewood!O28 -> 35 | AA6: =Zoar!O29 -> 35
B7: =Quaddic!O4 -> 9 | C7: =Quaddic!O5 -> 30 | D7: =Pachuag!O6 -> 30 | E7: =Highland!O7 -> 9 | F7: =Pachuag!O8 -> 11 | G7: =Candlewood!O9 -> 5 | H7: ='CT River'!O10 -> 35 | I7: ='CT River'!O11 -> 30 | J7: =Zoar!O12 -> 30 | K7: ='CT River'!O13 -> 9 | L7: =Quaddic!O14 -> 17 | M7: =Zoar!O15 -> 30 | N7: =Lilly!O16 -> 13 | O7: =Zoar!O17 -> 13 | P7: =Hamilton!O18 -> 19 | Q7: =Zoar!O19 -> 15 | R7: =Candlewood!O20 -> 9 | S7: =Lilly!O21 -> 5 | T7: =Candlewood!O22 -> 19 | U7: =Candlewood!O23 -> 15 | V7: =Lilly!O24 -> 35 | W7: =Lilly!O25 -> 35 | X7: =Highland!O26 -> 35 | Y7: =Pachuag!O27 -> 35 | Z7: =Zoar!O28 -> 35 | AA7: =Quaddic!O29 -> 35
B8: ='CT River'!O4 -> 10 | C8: =Zoar!O5 -> 35 | D8: =Highland!O6 -> 35 | E8: =Quaddic!O7 -> 15 | F8: =Hamilton!O8 -> 15 | G8: ='CT River'!O9 -> 8 | H8: =Highland!O10 -> 35 | I8: =Highland!O11 -> 30 | J8: ='CT River'!O12 -> 30 | K8: =Hamilton!O13 -> 11 | L8: =Lilly!O14 -> 19 | M8: ='CT River'!O15 -> 30 | N8: ='CT River'!O16 -> 30 | O8: =Hamilton!O17 -> 17 | P8: =Zoar!O18 -> 30 | Q8: =Lilly!O19 -> 15 | R8: =Zoar!O20 -> 14 | S8: =Pachuag!O21 -> 6 | T8: =Quaddic!O22 -> 30 | U8: =Pachuag!O23 -> 30 | V8: =Zoar!O24 -> 35 | W8: ='CT River'!O25 -> 35 | X8: ='CT River'!O26 -> 35 | Y8: =Lilly!O27 -> 35 | Z8: =Hamilton!O28 -> 35 | AA8: =Hamilton!O29 -> 35
B9: =Zoar!O4 -> 12 | C9: =Pachuag!O5 -> 35 | D9: =Hamilton!O6 -> 35 | E9: =Zoar!O7 -> 30 | F9: =Candlewood!O8 -> 16 | G9: =Pachuag!O9 -> 30 | H9: =Pachuag!O10 -> 35 | I9: =Hamilton!O11 -> 35 | J9: =Highland!O12 -> 30 | K9: =Highland!O13 -> 30 | L9: =Pachuag!O14 -> 35 | M9: =Highland!O15 -> 30 | N9: =Highland!O16 -> 30 | O9: =Quaddic!O17 -> 30 | P9: =Highland!O18 -> 35 | Q9: =Highland!O19 -> 35 | R9: =Lilly!O20 -> 18 | S9: =Hamilton!O21 -> 14 | T9: =Highland!O22 -> 30 | U9: ='CT River'!O23 -> 30 | V9: =Pachuag!O24 -> 35 | W9: =Highland!O25 -> 35 | X9: =Candlewood!O26 -> 35 | Y9: =Quaddic!O27 -> 35 | Z9: =Lilly!O28 -> 35 | AA9: =Lilly!O29 -> 35
A10: Pts. YTD | B10: =SUM(B2:B7) -> 37 | C10: 95 | D10: 80 | E10: 36 | F10: 35 | G10: 21 | H10: 107 | I10: =SUM(I2:I7) -> 89 | J10: 106 | K10: 27 | L10: 63 | M10: 96 | N10: 42 | O10: 54 | P10: 59 | Q10: 51 | R10: =SUM(R2:R7) -> 32 | S10: 15 | T10: 77 | U10: 52 | V10: 141 | W10: 210 | X10: 210 | Y10: 210 | Z10: 210 | AA10: 210
A11: Position | B11: =RANK(B10,Pts._YTD,1) -> 7 | C11: 17 | D11: 15 | E11: 6 | F11: 5 | G11: 2 | H11: 20 | I11: 16 | J11: =RANK(J10,Pts._YTD,1) -> 19 | K11: 3 | L11: =RANK(L10,Pts._YTD,1) -> 13 | M11: 18 | N11: 8 | O11: 11 | P11: 12 | Q11: 9 | R11: 4 | S11: =RANK(S10,Pts._YTD,1) -> 1 | T11: 14 | U11: 10 | V11: 21 | W11: 22 | X11: 22 | Y11: 22 | Z11: 22 | AA11: 22
W13: Use macro ctl-f
A14: Name | B14: Position | C14: Pts. YTD | E14: Name | F14: Position | G14: Pts. YTD | I14: Total Weight | L14: Lake / River 2015 | P14: Members | S14: Top 3 Finishers for Each Tournament
A15: =B1 -> Armand F. | B15: =B11 -> 7 | C15: =B10 -> 37 | E15: Steve D | F15: 1 | G15: 15 | I15: =P15 -> Armand F. | J15: =Highland!N4+Pachuag!N4+Hamilton!N4+Quaddic!N4+Lilly!N4+Zoar!N4+Candlewood!N4+'CT River'!N4 -> 41.17 | L15: Pachaug | P15: Armand F. | S15: =L15 -> Pachaug | U15: =L16 -> Zoar | W15: =L17 -> Quaddick | Y15: =L18 -> Candlewood | AA15: =L19 -> CT River | AC15: =L20 -> Hamilton | AE15: =L21 -> Lilly | AG15: =L22 -> Highland
A16: =C1 -> Bill | B16: =C11 -> 17 | C16: =C10 -> 95 | E16: Jeff | F16: 2 | G16: 21 | I16: Bill | J16: =Highland!N5+Pachuag!N5+Hamilton!N5+Quaddic!N5+Lilly!N5+Zoar!N5+Candlewood!N5+'CT River'!N5 -> 12.43 | L16: Zoar | P16: Bill | S16: =Pachuag!D16 -> Pete | T16: =Pachuag!O16 -> 1 | U16: =Zoar!D21 -> Steve D | V16: =Zoar!O21 -> 1 | W16: =Quaddic!D21 -> Steve D | X16: =Quaddic!O21 -> 1 | Y16: =Candlewood!D7 -> Jack | Z16: =Candlewood!O7 -> 1 | AA16: ='CT River'!D8 -> Jason | AB16: ='CT River'!O8 -> 1 | AC16: =Hamilton!D9 -> Jeff | AD16: =Hamilton!O9 -> 1 | AE16: =Lilly!D15 -> Morrie | AF16: =Lilly!O15 -> 1 | AG16: =Highland!D21 -> Steve D | AH16: =Highland!O21 -> 1
A17: =D1 -> Dean | B17: =D11 -> 15 | C17: =D10 -> 80 | E17: Kevin | F17: 3 | G17: 27 | I17: Dean | J17: =Highland!N6+Pachuag!N6+Hamilton!N6+Quaddic!N6+Lilly!N6+Zoar!N6+Candlewood!N6+'CT River'!N6 -> 23.08 | L17: Quaddick | P17: Dean | S17: =Pachuag!D13 -> Kevin | T17: =Pachuag!O13 -> 2 | U17: =Zoar!D10 -> Jim B | V17: =Zoar!O10 -> 2 | W17: =Quaddic!D23 -> Tom | X17: =Quaddic!O23 -> 2 | Y17: =Candlewood!D21 -> Steve D | Z17: =Candlewood!O21 -> 2 | AA17: ='CT River'!D7 -> Jack | AB17: ='CT River'!O7 -> 2 | AC17: =Hamilton!D24 -> Vinny | AD17: =Hamilton!O24 -> 2 | AE17: =Lilly!D13 -> Kevin | AF17: =Lilly!O13 -> 2 | AG17: =Highland!D4 -> Armand F. | AH17: =Highland!O4 -> 2
A18: =E1 -> Jack | B18: =E11 -> 6 | C18: =E10 -> 36 | E18: Scott | F18: 4 | G18: 32 | I18: Jack | J18: =Highland!N7+Pachuag!N7+Hamilton!N7+Quaddic!N7+Lilly!N7+Zoar!N7+Candlewood!N7+'CT River'!N7 -> 33.39 | L18: Candlewood | P18: Jack | S18: =Pachuag!D20 -> Scott | T18: =Pachuag!O20 -> 3 | U18: =Zoar!D13 -> Kevin | V18: =Zoar!O13 -> 3 | W18: =Quaddic!D16 -> Pete | X18: =Quaddic!O16 -> 3 | Y18: =Candlewood!D6 -> Dean | Z18: =Candlewood!O6 -> 3 | AA18: ='CT River'!D17 -> Rich B | AB18: ='CT River'!O17 -> 3 | AC18: =Hamilton!D16 -> Pete | AD18: =Hamilton!O16 -> 3 | AE18: =Lilly!D9 -> Jeff | AF18: =Lilly!O9 -> 3 | AG18: =Highland!D20 -> Scott | AH18: =Highland!O20 -> 3
A19: =F1 -> Jason | B19: =F11 -> 5 | C19: =F10 -> 35 | E19: Jason | F19: 5 | G19: 35 | I19: Jason | J19: =Highland!N8+Pachuag!N8+Hamilton!N8+Quaddic!N8+Lilly!N8+Zoar!N8+Candlewood!N8+'CT River'!N8 -> 34.56 | L19: CT River | P19: Jason | S19: =Pachuag!D4 -> Armand F. | T19: =Pachuag!O4 -> 4 | U19: =Zoar!D9 -> Jeff | V19: =Zoar!O9 -> 4 | W19: =Quaddic!D9 -> Jeff | X19: =Quaddic!O9 -> 4 | Y19: =Candlewood!D13 -> Kevin | Z19: =Candlewood!O13 -> 4 | AA19: ='CT River'!D19 -> Ron | AB19: ='CT River'!O19 -> 4 | AC19: =Hamilton!D19 -> Ron | AD19: =Hamilton!O19 -> 4 | AE19: =Lilly!D8 -> Jason | AF19: =Lilly!O8 -> 4 | AG19: =Highland!D9 -> Jeff | AH19: =Highland!O9 -> 4
A20: =G1 -> Jeff | B20: =G11 -> 2 | C20: =G10 -> 21 | E20: Jack | F20: 6 | G20: 36 | I20: Jeff | J20: =Highland!N9+Pachuag!N9+Hamilton!N9+Quaddic!N9+Lilly!N9+Zoar!N9+Candlewood!N9+'CT River'!N9 -> 43.3 | L20: Hamilton | P20: Jeff | S20: =Pachuag!D22 -> Steve S | T20: =Pachuag!O22 -> 5 | U20: =Zoar!D14 -> Mike | V20: =Zoar!O14 -> 5 | W20: =Quaddic!D8 -> Jason | X20: =Quaddic!O8 -> 5 | Y20: =Candlewood!D9 -> Jeff | Z20: =Candlewood!O9 -> 5 | AA20: ='CT River'!D21 -> Steve D | AB20: ='CT River'!O21 -> 5 | AC20: =Hamilton!D20 -> Scott | AD20: =Hamilton!O20 -> 5 | AE20: =Lilly!D21 -> Steve D | AF20: =Lilly!O21 -> 5 | AG20: =Highland!D23 -> Tom | AH20: =Highland!O23 -> 5
A21: =H1 -> Jim B | B21: =H11 -> 20 | C21: =H10 -> 107 | E21: Armand F. | F21: 7 | G21: 37 | I21: Jim B | J21: =Highland!N10+Pachuag!N10+Hamilton!N10+Quaddic!N10+Lilly!N10+Zoar!N10+Candlewood!N10+'CT River'!N10 -> 15.6 | L21: Lilly | P21: Jim B | S21: =Pachuag!D21 -> Steve D | T21: =Pachuag!O21 -> 6 | U21: =Zoar!D22 -> Steve S | V21: =Zoar!O22 -> 6 | W21: =Quaddic!D20 -> Scott | X21: =Quaddic!O20 -> 6 | Y21: =Candlewood!D19 -> Ron | Z21: =Candlewood!O19 -> 6 | AA21: ='CT River'!D20 -> Scott | AB21: ='CT River'!O20 -> 6 | AC21: =Hamilton!D4 -> Armand F. | AD21: =Hamilton!O4 -> 6 | AE21: =Lilly!D6 -> Dean | AF21: =Lilly!O6 -> 6 | AG21: =Highland!D8 -> Jason | AH21: =Highland!O8 -> 6
A22: =I1 -> Jim H | B22: =I11 -> 16 | C22: =I10 -> 89 | E22: Pete | F22: 8 | G22: 42 | I22: Jim H | J22: =Highland!N11+Pachuag!N11+Hamilton!N11+Quaddic!N11+Lilly!N11+Zoar!N11+Candlewood!N11+'CT River'!N11 -> 16.54 | L22: Highland | P22: Jim H | S22: =Pachuag!D18 -> Rich T | T22: =Pachuag!O18 -> 7 | U22: =Zoar!D11 -> Jim H | V22: =Zoar!O11 -> 7 | W22: =Quaddic!D13 -> Kevin | X22: =Quaddic!O13 -> 7 | Y22: =Candlewood!D18 -> Rich T | Z22: =Candlewood!O18 -> 7 | AA22: ='CT River'!D18 -> Rich T | AB22: ='CT River'!O18 -> 7 | AC22: =Hamilton!D23 -> Tom | AD22: =Hamilton!O23 -> 7 | AE22: =Lilly!D7 -> Jack | AF22: =Lilly!O7 -> 7 | AG22: =Highland!D17 -> Rich B | AH22: =Highland!O17 -> 7
A23: =J1 -> Joe | B23: =J11 -> 19 | C23: =J10 -> 106 | E23: Ron | F23: 9 | G23: 51 | I23: Joe | J23: =Highland!N12+Pachuag!N12+Hamilton!N12+Quaddic!N12+Lilly!N12+Zoar!N12+Candlewood!N12+'CT River'!N12 -> 16.51 | P23: Joe | S23: =Pachuag!D7 -> Jack | T23: =Pachuag!O7 -> 8 | U23: =Zoar!D8 -> Jason | V23: =Zoar!O8 -> 8 | W23: =Quaddic!D18 -> Rich T | X23: =Quaddic!O18 -> 8 | Y23: =Candlewood!D4 -> Armand F. | Z23: =Candlewood!O4 -> 8 | AA23: ='CT River'!D9 -> Jeff | AB23: ='CT River'!O9 -> 8 | AC23: =Hamilton!D12 -> Joe | AD23: =Hamilton!O12 -> 8 | AE23: =Lilly!D4 -> Armand F. | AF23: =Lilly!O4 -> 8 | AG23: =Highland!D14 -> Mike | AH23: =Highland!O14 -> 8
A24: =K1 -> Kevin | B24: =K11 -> 3 | C24: =K10 -> 27 | E24: Tom | F24: 10 | G24: 52 | I24: Kevin | J24: =Highland!N13+Pachuag!N13+Hamilton!N13+Quaddic!N13+Lilly!N13+Zoar!N13+Candlewood!N13+'CT River'!N13 -> 40.22 | P24: Kevin | S24: =Pachuag!D19 -> Ron | T24: =Pachuag!O19 -> 9 | U24: =Zoar!D23 -> Tom | V24: =Zoar!O23 -> 9 | W24: =Quaddic!D4 -> Armand F. | X24: =Quaddic!O4 -> 9 | Y24: =Candlewood!D20 -> Scott | Z24: =Candlewood!O20 -> 9 | AA24: ='CT River'!D13 -> Kevin | AB24: ='CT River'!O13 -> 9 | AC24: =Hamilton!D7 -> Jack | AD24: =Hamilton!O7 -> 9 | AE24: =Lilly!D12 -> Joe | AF24: =Lilly!O12 -> 9 | AG24: =Highland!D7 -> Jack | AH24: =Highland!O7 -> 9
A25: =L1 -> Mike | B25: =L11 -> 13 | C25: =L10 -> 63 | E25: Rich B | F25: 11 | G25: 54 | I25: Mike | J25: =Highland!N14+Pachuag!N14+Hamilton!N14+Quaddic!N14+Lilly!N14+Zoar!N14+Candlewood!N14+'CT River'!N14 -> 20.95 | P25: Mike | S25: =Pachuag!D17 -> Rich B | T25: =Pachuag!O17 -> 10 | U25: =Zoar!D16 -> Pete | V25: =Zoar!O16 -> 10 | W25: =Quaddic!D24 -> Vinny | X25: =Quaddic!O24 -> 9 | Y25: =Candlewood!D14 -> Mike | Z25: =Candlewood!O14 -> 10 | AA25: ='CT River'!D4 -> Armand F. | AB25: ='CT River'!O4 -> 10 | AC25: =Hamilton!D14 -> Mike | AD25: =Hamilton!O14 -> 10 | AE25: =Lilly!D17 -> Rich B | AF25: =Lilly!O17 -> 10 | AG25: =Highland!D5 -> Bill | AH25: =Highland!O5 -> 10
A26: =M1 -> Morrie | B26: =M11 -> 18 | C26: =M10 -> 96 | E26: Rich T | F26: 12 | G26: 59 | I26: Morrie | J26: =Highland!N15+Pachuag!N15+Hamilton!N15+Quaddic!N15+Lilly!N15+Zoar!N15+Candlewood!N15+'CT River'!N15 -> 15.51 | L26: Macros | P26: Morrie | S26: =Pachuag!D11 -> Jim H | T26: =Pachuag!O11 -> 11 | U26: =Zoar!D6 -> Dean | V26: =Zoar!O6 -> 11 | W26: =Quaddic!D11 -> Jim H | X26: =Quaddic!O11 -> 11 | Y26: =Candlewood!D17 -> Rich B | Z26: =Candlewood!O17 -> 11 | AA26: ='CT River'!D5 -> Bill | AB26: ='CT River'!O5 -> 11 | AC26: =Hamilton!D13 -> Kevin | AD26: =Hamilton!O13 -> 11 | AE26: =Lilly!D18 -> Rich T | AF26: =Lilly!O18 -> 11 | AG26: =Highland!D22 -> Steve S | AH26: =Highland!O22 -> 30
A27: =N1 -> Pete | B27: =N11 -> 8 | C27: =N10 -> 42 | E27: Mike | F27: 13 | G27: 63 | I27: Pete | J27: =Highland!N16+Pachuag!N16+Hamilton!N16+Quaddic!N16+Lilly!N16+Zoar!N16+Candlewood!N16+'CT River'!N16 -> 33.26 | L27: ctl-S Sort Upper Section | P27: Pete | S27: =Pachuag!D8 -> Jason | T27: =Pachuag!O8 -> 11 | U27: =Zoar!D4 -> Armand F. | V27: =Zoar!O4 -> 12 | W27: =Quaddic!D12 -> Joe | X27: =Quaddic!O12 -> 12 | Y27: =Candlewood!D16 -> Pete | Z27: =Candlewood!O16 -> 12 | AA27: ='CT River'!D22 -> Steve S | AB27: ='CT River'!O22 -> 12 | AC27: =Hamilton!D5 -> Bill | AD27: =Hamilton!O5 -> 12 | AE27: =Lilly!D5 -> Bill | AF27: =Lilly!O5 -> 12 | AG27: =Highland!D16 -> Pete | AH27: =Highland!O16 -> 30
A28: =O1 -> Rich B | B28: =O11 -> 11 | C28: =O10 -> 54 | E28: Steve S | F28: 14 | G28: 77 | I28: Rich B | J28: =Highland!N17+Pachuag!N17+Hamilton!N17+Quaddic!N17+Lilly!N17+Zoar!N17+Candlewood!N17+'CT River'!N17 -> 24.83 | L28: ctl-K Copy and Paste for Position | P28: Rich B | S28: =Pachuag!D15 -> Morrie | T28: =Pachuag!O15 -> 13 | U28: =Zoar!D17 -> Rich B | V28: =Zoar!O17 -> 13 | W28: =Quaddic!D19 -> Ron | X28: =Quaddic!O19 -> 13 | Y28: =Candlewood!D10 -> Jim B | Z28: =Candlewood!O10 -> 13 | AA28: ='CT River'!D14 -> Mike | AB28: ='CT River'!O14 -> 13 | AC28: =Hamilton!D10 -> Jim B | AD28: =Hamilton!O10 -> 13 | AE28: =Lilly!D16 -> Pete | AF28: =Lilly!O16 -> 13 | AG28: =Highland!D13 -> Kevin | AH28: =Highland!O13 -> 30
A29: =P1 -> Rich T | B29: =P11 -> 12 | C29: =P10 -> 59 | E29: Dean | F29: 15 | G29: 80 | I29: Rich T | J29: =Highland!N18+Pachuag!N18+Hamilton!N18+Quaddic!N18+Lilly!N18+Zoar!N18+Candlewood!N18+'CT River'!N18 -> 22.71 | L29: ctl-L Sort For Lunker | P29: Rich T | S29: =Pachuag!D9 -> Jeff | T29: =Pachuag!O9 -> 30 | U29: =Zoar!D20 -> Scott | V29: =Zoar!O20 -> 14 | W29: =Quaddic!D10 -> Jim B | X29: =Quaddic!O10 -> 14 | Y29: =Candlewood!D11 -> Jim H | Z29: =Candlewood!O11 -> 14 | AA29: ='CT River'!D6 -> Dean | AB29: ='CT River'!O6 -> 14 | AC29: =Hamilton!D21 -> Steve D | AD29: =Hamilton!O21 -> 14 | AE29: =Lilly!D23 -> Tom | AF29: =Lilly!O23 -> 14 | AG29: =Highland!D11 -> Jim H | AH29: =Highland!O11 -> 30
A30: =Q1 -> Ron | B30: =Q11 -> 9 | C30: =Q10 -> 51 | E30: Jim H | F30: 16 | G30: 89 | I30: Ron | J30: =Highland!N19+Pachuag!N19+Hamilton!N19+Quaddic!N19+Lilly!N19+Zoar!N19+Candlewood!N19+'CT River'!N19 -> 28 | L30: ctl-F Sort Top 3 Finishers | P30: Ron | S30: =Pachuag!D6 -> Dean | T30: =Pachuag!O6 -> 30 | U30: =Zoar!D19 -> Ron | V30: =Zoar!O19 -> 15 | W30: =Quaddic!D7 -> Jack | X30: =Quaddic!O7 -> 15 | Y30: =Candlewood!D23 -> Tom | Z30: =Candlewood!O23 -> 15 | AA30: ='CT River'!D15 -> Morrie | AB30: ='CT River'!O15 -> 30 | AC30: =Hamilton!D8 -> Jason | AD30: =Hamilton!O8 -> 15 | AE30: =Lilly!D19 -> Ron | AF30: =Lilly!O19 -> 15 | AG30: =Highland!D15 -> Morrie | AH30: =Highland!O15 -> 30
A31: =R1 -> Scott | B31: =R11 -> 4 | C31: =R10 -> 32 | E31: Bill | F31: 17 | G31: 95 | I31: Scott | J31: =Highland!N20+Pachuag!N20+Hamilton!N20+Quaddic!N20+Lilly!N20+Zoar!N20+Candlewood!N20+'CT River'!N20 -> 35.44 | L31: ctl-W Sort for Total Weight | P31: Scott | S31: =Pachuag!D12 -> Joe | T31: =Pachuag!O12 -> 30 | U31: =Zoar!D18 -> Rich T | V31: =Zoar!O18 -> 30 | W31: =Quaddic!D6 -> Dean | X31: =Quaddic!O6 -> 16 | Y31: =Candlewood!D8 -> Jason | Z31: =Candlewood!O8 -> 16 | AA31: ='CT River'!D12 -> Joe | AB31: ='CT River'!O12 -> 30 | AC31: =Hamilton!D15 -> Morrie | AD31: =Hamilton!O15 -> 16 | AE31: =Lilly!D11 -> Jim H | AF31: =Lilly!O11 -> 16 | AG31: =Highland!D12 -> Joe | AH31: =Highland!O12 -> 30
A32: =S1 -> Steve D | B32: =S11 -> 1 | C32: =S10 -> 15 | E32: Morrie | F32: 18 | G32: 96 | I32: Steve D | J32: =Highland!N21+Pachuag!N21+Hamilton!N21+Quaddic!N21+Lilly!N21+Zoar!N21+Candlewood!N21+'CT River'!N21 -> 49.12 | P32: Steve D | S32: =Pachuag!D23 -> Tom | T32: =Pachuag!O23 -> 30 | U32: =Zoar!D7 -> Jack | V32: =Zoar!O7 -> 30 | W32: =Quaddic!D14 -> Mike | X32: =Quaddic!O14 -> 17 | Y32: =Candlewood!D12 -> Joe | Z32: =Candlewood!O12 -> 17 | AA32: ='CT River'!D24 -> Vinny | AB32: ='CT River'!O24 -> 30 | AC32: =Hamilton!D17 -> Rich B | AD32: =Hamilton!O17 -> 17 | AE32: =Lilly!D22 -> Steve S | AF32: =Lilly!O22 -> 17 | AG32: =Highland!D18 -> Rich T | AH32: =Highland!O18 -> 35
A33: =T1 -> Steve S | B33: =T11 -> 14 | C33: =T10 -> 77 | E33: Joe | F33: 19 | G33: 106 | I33: Steve S | J33: =Highland!N22+Pachuag!N22+Hamilton!N22+Quaddic!N22+Lilly!N22+Zoar!N22+Candlewood!N22+'CT River'!N22 -> 15.03 | P33: Steve S | S33: =Pachuag!D5 -> Bill | T33: =Pachuag!O5 -> 35 | U33: =Zoar!D12 -> Joe | V33: =Zoar!O12 -> 30 | W33: =Quaddic!D15 -> Morrie | X33: =Quaddic!O15 -> 18 | Y33: =Candlewood!D15 -> Morrie | Z33: =Candlewood!O15 -> 18 | AA33: ='CT River'!D11 -> Jim H | AB33: ='CT River'!O11 -> 30 | AC33: =Hamilton!D22 -> Steve S | AD33: =Hamilton!O22 -> 18 | AE33: =Lilly!D20 -> Scott | AF33: =Lilly!O20 -> 18 | AG33: =Highland!D19 -> Ron | AH33: =Highland!O19 -> 35
A34: =U1 -> Tom | B34: =U11 -> 10 | C34: =U10 -> 52 | E34: Jim B | F34: 20 | G34: 107 | I34: Tom | J34: =Highland!N23+Pachuag!N23+Hamilton!N23+Quaddic!N23+Lilly!N23+Zoar!N23+Candlewood!N23+'CT River'!N23 -> 28.24 | P34: Tom | S34: =Pachuag!D10 -> Jim B | T34: =Pachuag!O10 -> 35 | U34: =Zoar!D15 -> Morrie | V34: =Zoar!O15 -> 30 | W34: =Quaddic!D17 -> Rich B | X34: =Quaddic!O17 -> 30 | Y34: =Candlewood!D22 -> Steve S | Z34: =Candlewood!O22 -> 19 | AA34: ='CT River'!D23 -> Tom | AB34: ='CT River'!O23 -> 30 | AC34: =Hamilton!D18 -> Rich T | AD34: =Hamilton!O18 -> 19 | AE34: =Lilly!D14 -> Mike | AF34: =Lilly!O14 -> 19 | AG34: =Highland!D6 -> Dean | AH34: =Highland!O6 -> 35
A35: =V1 -> Vinny | B35: =V11 -> 21 | C35: =V10 -> 141 | E35: Vinny | F35: 21 | G35: 141 | I35: Vinny | J35: =Highland!N24+Pachuag!N24+Hamilton!N24+Quaddic!N24+Lilly!N24+Zoar!N24+Candlewood!N24+'CT River'!N24 -> 11.6 | P35: Vinny | S35: =Pachuag!D14 -> Mike | T35: =Pachuag!O14 -> 35 | U35: =Zoar!D5 -> Bill | V35: =Zoar!O5 -> 35 | W35: =Quaddic!D22 -> Steve S | X35: =Quaddic!O22 -> 30 | Y35: =Candlewood!D5 -> Bill | Z35: =Candlewood!O5 -> 20 | AA35: ='CT River'!D16 -> Pete | AB35: ='CT River'!O16 -> 30 | AC35: =Hamilton!D6 -> Dean | AD35: =Hamilton!O6 -> 35 | AE35: =Lilly!D10 -> Jim B | AF35: =Lilly!O10 -> 30 | AG35: =Highland!D10 -> Jim B | AH35: =Highland!O10 -> 35
A36: =W1 -> X | B36: =W11 -> 22 | C36: =W10 -> 210 | E36: X | F36: 22 | G36: 210 | I36: X | J36: =Highland!N25+Pachuag!N25+Hamilton!N25+Quaddic!N25+Lilly!N25+Zoar!N25+Candlewood!N25+'CT River'!N25 -> 0 | P36: X | S36: =Pachuag!D24 -> Vinny | T36: =Pachuag!O24 -> 35 | U36: =Zoar!D24 -> Vinny | V36: =Zoar!O24 -> 35 | W36: =Quaddic!D5 -> Bill | X36: =Quaddic!O5 -> 30 | Y36: =Candlewood!D24 -> Vinny | Z36: =Candlewood!O24 -> 30 | AA36: ='CT River'!D10 -> Jim B | AB36: ='CT River'!O10 -> 35 | AC36: =Hamilton!D11 -> Jim H | AD36: =Hamilton!O11 -> 35 | AE36: =Lilly!D24 -> Vinny | AF36: =Lilly!O24 -> 35 | AG36: =Highland!D24 -> Vinny | AH36: =Highland!O24 -> 35
A37: =X1 -> X | B37: =X11 -> 22 | C37: =X10 -> 210 | E37: X | F37: 22 | G37: 210 | I37: X | J37: =Highland!N26+Pachuag!N26+Hamilton!N26+Quaddic!N26+Lilly!N26+Zoar!N26+Candlewood!N26+'CT River'!N26 -> 0 | P37: X | S37: =Pachuag!D25 -> X | T37: =Pachuag!O25 -> 35 | U37: =Zoar!D25 -> X | V37: =Zoar!O25 -> 35 | W37: =Quaddic!D25 -> X | X37: =Quaddic!O25 -> 35 | Y37: =Candlewood!D25 -> X | Z37: =Candlewood!O25 -> 35 | AA37: ='CT River'!D25 -> X | AB37: ='CT River'!O25 -> 35 | AC37: =Hamilton!D25 -> X | AD37: =Hamilton!O25 -> 35 | AE37: =Lilly!D25 -> X | AF37: =Lilly!O25 -> 35 | AG37: =Highland!D25 -> X | AH37: =Highland!O25 -> 35
A38: =Y1 -> X | B38: =Y11 -> 22 | C38: =Y10 -> 210 | E38: X | F38: 22 | G38: 210 | I38: X | J38: =Highland!N27+Pachuag!N27+Hamilton!N27+Quaddic!N27+Lilly!N27+Zoar!N27+Candlewood!N27+'CT River'!N27 -> 0 | P38: X | S38: =Pachuag!D26 -> X | T38: =Pachuag!O26 -> 35 | U38: =Zoar!D27 -> X | V38: =Zoar!O27 -> 35 | W38: =Quaddic!D26 -> X | X38: =Quaddic!O26 -> 35 | Y38: =Candlewood!D26 -> X | Z38: =Candlewood!O26 -> 35 | AA38: ='CT River'!D26 -> X | AB38: ='CT River'!O26 -> 35 | AC38: =Hamilton!D26 -> X | AD38: =Hamilton!O26 -> 35 | AE38: =Lilly!D26 -> X | AF38: =Lilly!O26 -> 35 | AG38: =Highland!D26 -> X | AH38: =Highland!O26 -> 35
A39: =Z1 -> X | B39: =Z11 -> 22 | C39: =Z10 -> 210 | E39: X | F39: 22 | G39: 210 | I39: X | J39: =Highland!N28+Pachuag!N28+Hamilton!N28+Quaddic!N28+Lilly!N28+Zoar!N28+Candlewood!N28+'CT River'!N28 -> 0 | P39: X | S39: =Pachuag!D27 -> X | T39: =Pachuag!O27 -> 35 | U39: =Zoar!D26 -> X | V39: =Zoar!O26 -> 35 | W39: =Quaddic!D27 -> X | X39: =Quaddic!O27 -> 35 | Y39: =Candlewood!D27 -> X | Z39: =Candlewood!O27 -> 35 | AA39: ='CT River'!D27 -> X | AB39: ='CT River'!O27 -> 35 | AC39: =Hamilton!D27 -> X | AD39: =Hamilton!O27 -> 35 | AE39: =Lilly!D27 -> X | AF39: =Lilly!O27 -> 35 | AG39: =Highland!D27 -> X | AH39: =Highland!O27 -> 35
A40: =AA1 -> X | B40: =AA11 -> 22 | C40: =AA10 -> 210 | E40: X | F40: 22 | G40: 210 | I40: X | J40: =Highland!N29+Pachuag!N29+Hamilton!N29+Quaddic!N29+Lilly!N29+Zoar!N29+Candlewood!N29+'CT River'!N29 -> 0 | P40: X | S40: =Pachuag!D28 -> X | T40: =Pachuag!O28 -> 35 | U40: =Zoar!D28 -> X | V40: =Zoar!O28 -> 35 | W40: =Quaddic!D28 -> X | X40: =Quaddic!O28 -> 35 | Y40: =Candlewood!D28 -> X | Z40: =Candlewood!O28 -> 35 | AA40: ='CT River'!D28 -> X | AB40: ='CT River'!O28 -> 35 | AC40: =Hamilton!D28 -> X | AD40: =Hamilton!O28 -> 35 | AE40: =Lilly!D28 -> X | AF40: =Lilly!O28 -> 35 | AG40: =Highland!D28 -> X | AH40: =Highland!O28 -> 35
S41: =Pachuag!D29 -> X | T41: =Pachuag!O29 -> 35 | U41: =Zoar!D29 -> X | V41: =Zoar!O29 -> 35 | W41: =Quaddic!D29 -> X | X41: =Quaddic!O29 -> 35 | Y41: =Candlewood!D29 -> X | Z41: =Candlewood!O29 -> 35 | AA41: ='CT River'!D29 -> X | AB41: ='CT River'!O29 -> 35 | AC41: =Hamilton!D29 -> X | AD41: =Hamilton!O29 -> 35 | AE41: =Lilly!D29 -> X | AF41: =Lilly!O29 -> 35 | AG41: =Highland!D29 -> X | AH41: =Highland!O29 -> 35
A44: Total Weight
A45: =L15 -> Pachaug | C45: =L16 -> Zoar | E45: =L17 -> Quaddick | G45: =L18 -> Candlewood | I45: =L19 -> CT River | K45: =L20 -> Hamilton | M45: =L21 -> Lilly | O45: =L22 -> Highland | Q45: Lbs | S45: Total Weight YTD
A46: Name | B46: Weight | C46: Name | D46: Weight | E46: Name | F46: Weight | G46: Name | H46: Weight | I46: Name | J46: Weight | K46: Name | L46: Weight | M46: Name | N46: Weight | O46: Name | P46: Weight | Q46: Ytd | S46: Name | T46: Weight
A47: =P15 -> Armand F. | B47: =Pachuag!L4 -> 4.28 | C47: Armand F. | D47: =Zoar!L4 -> 3.35 | E47: Armand F. | F47: =Quaddic!L4 -> 4.54 | G47: Armand F. | H47: =Candlewood!L4 -> 7.49 | I47: Armand F. | J47: ='CT River'!L4 -> 2.52 | K47: Armand F. | L47: =Hamilton!L4 -> 6.02 | M47: Armand F. | N47: =Lilly!L4 -> 5.74 | O47: Armand F. | P47: =Highland!L4 -> 7.23 | Q47: =SUM(A47:P47) -> 41.17 | S47: Armand F. | T47: =Q47 -> 41.17
A48: =P16 -> Bill | B48: =Pachuag!L5 -> 0 | C48: Bill | D48: =Zoar!L5 -> 0 | E48: Bill | F48: =Quaddic!L5 -> 0 | G48: Bill | H48: =Candlewood!L5 -> 1.43 | I48: Bill | J48: ='CT River'!L5 -> 2.24 | K48: Bill | L48: =Hamilton!L5 -> 3.65 | M48: Bill | N48: =Lilly!L5 -> 4.08 | O48: Bill | P48: =Highland!L5 -> 1.03 | Q48: 12.43 | S48: Bill | T48: =Q48 -> 12.43
A49: =P17 -> Dean | B49: =Pachuag!L6 -> 0 | C49: Dean | D49: =Zoar!L6 -> 3.55 | E49: Dean | F49: =Quaddic!L6 -> 2.85 | G49: Dean | H49: =Candlewood!L6 -> 8.78 | I49: Dean | J49: ='CT River'!L6 -> 0.73 | K49: Dean | L49: =Hamilton!L6 -> 0 | M49: Dean | N49: =Lilly!L6 -> 7.17 | O49: Dean | P49: =Highland!L6 -> 0 | Q49: 23.08 | S49: Dean | T49: 23.08
A50: =P18 -> Jack | B50: =Pachuag!L7 -> 1.47 | C50: Jack | D50: =Zoar!L7 -> 0 | E50: Jack | F50: =Quaddic!L7 -> 3.04 | G50: Jack | H50: =Candlewood!L7 -> 12.33 | I50: Jack | J50: ='CT River'!L7 -> 5.14 | K50: Jack | L50: =Hamilton!L7 -> 4.12 | M50: Jack | N50: =Lilly!L7 -> 6.18 | O50: Jack | P50: =Highland!L7 -> 1.11 | Q50: 33.39 | S50: Jack | T50: 33.39
A51: =P19 -> Jason | B51: =Pachuag!L8 -> 1.08 | C51: Jason | D51: =Zoar!L8 -> 4.06 | E51: Jason | F51: =Quaddic!L8 -> 5.62 | G51: Jason | H51: =Candlewood!L8 -> 2.89 | I51: Jason | J51: ='CT River'!L8 -> 5.88 | K51: Jason | L51: =Hamilton!L8 -> 3.15 | M51: Jason | N51: =Lilly!L8 -> 7.79 | O51: Jason | P51: =Highland!L8 -> 4.09 | Q51: 34.56 | S51: Jason | T51: 34.56
A52: Jeff | B52: =Pachuag!L9 -> 0 | C52: Jeff | D52: =Zoar!L9 -> 5.36 | E52: Jeff | F52: =Quaddic!L9 -> 6.19 | G52: Jeff | H52: =Candlewood!L9 -> 8.04 | I52: Jeff | J52: ='CT River'!L9 -> 2.81 | K52: Jeff | L52: =Hamilton!L9 -> 7.09 | M52: Jeff | N52: =Lilly!L9 -> 8.19 | O52: Jeff | P52: =Highland!L9 -> 5.82 | Q52: 43.5 | S52: Jeff | T52: 43.5
A53: Jim B | B53: =Pachuag!L10 -> 0 | C53: Jim B | D53: =Zoar!L10 -> 5.55 | E53: Jim B | F53: =Quaddic!L10 -> 3.11 | G53: Jim B | H53: =Candlewood!L10 -> 3.41 | I53: Jim B | J53: ='CT River'!L10 -> 0 | K53: Jim B | L53: =Hamilton!L10 -> 3.73 | M53: Jim B | N53: =Lilly!L10 -> 0 | O53: Jim B | P53: =Highland!L10 -> 0 | Q53: 15.8 | S53: Jim B | T53: 15.8
A54: Jim H | B54: =Pachuag!L11 -> 1.08 | C54: Jim H | D54: =Zoar!L11 -> 4.82 | E54: Jim H | F54: =Quaddic!L11 -> 4.39 | G54: Jim H | H54: =Candlewood!L11 -> 3.36 | I54: Jim H | J54: ='CT River'!L11 -> 0 | K54: Jim H | L54: =Hamilton!L11 -> 0 | M54: Jim H | N54: =Lilly!L11 -> 2.89 | O54: Jim H | P54: =Highland!L11 -> 0 | Q54: 16.54 | S54: Jim H | T54: 16.54
A55: Joe | B55: =Pachuag!L12 -> 0 | C55: Joe | D55: =Zoar!L12 -> 0 | E55: Joe | F55: =Quaddic!L12 -> 4.37 | G55: Joe | H55: =Candlewood!L12 -> 2.26 | I55: Joe | J55: ='CT River'!L12 -> 0 | K55: Joe | L55: =Hamilton!L12 -> 4.34 | M55: Joe | N55: =Lilly!L12 -> 5.54 | O55: Joe | P55: =Highland!L12 -> 0 | Q55: 16.51 | S55: Joe | T55: 16.51
A56: Kevin | B56: =Pachuag!L13 -> 6.76 | C56: Kevin | D56: =Zoar!L13 -> 5.54 | E56: Kevin | F56: =Quaddic!L13 -> 4.88 | G56: Kevin | H56: =Candlewood!L13 -> 8.27 | I56: Kevin | J56: ='CT River'!L13 -> 2.61 | K56: Kevin | L56: =Hamilton!L13 -> 3.91 | M56: Kevin | N56: =Lilly!L13 -> 8.25 | O56: Kevin | P56: =Highland!L13 -> 0 | Q56: 40.22 | S56: Kevin | T56: 40.22
A57: Mike | B57: =Pachuag!L14 -> 0 | C57: Mike | D57: =Zoar!L14 -> 4.94 | E57: Mike | F57: =Quaddic!L14 -> 2.56 | G57: Mike | H57: =Candlewood!L14 -> 5.57 | I57: Mike | J57: ='CT River'!L14 -> 1.03 | K57: Mike | L57: =Hamilton!L14 -> 4.04 | M57: Mike | N57: =Lilly!L14 -> 1.02 | O57: Mike | P57: =Highland!L14 -> 1.79 | Q57: 20.95 | S57: Mike | T57: 20.95
A58: Morrie | B58: =Pachuag!L15 -> 0.64 | C58: Morrie | D58: =Zoar!L15 -> 0 | E58: Morrie | F58: =Quaddic!L15 -> 2.06 | G58: Morrie | H58: =Candlewood!L15 -> 1.61 | I58: Morrie | J58: ='CT River'!L15 -> 0 | K58: Morrie | L58: =Hamilton!L15 -> 2.82 | M58: Morrie | N58: =Lilly!L15 -> 8.38 | O58: Morrie | P58: =Highland!L15 -> 0 | Q58: 15.51 | S58: Morrie | T58: 15.51
A59: Pete | B59: =Pachuag!L16 -> 7.74 | C59: Pete | D59: =Zoar!L16 -> 3.63 | E59: Pete | F59: =Quaddic!L16 -> 6.45 | G59: Pete | H59: =Candlewood!L16 -> 4.48 | I59: Pete | J59: ='CT River'!L16 -> 0 | K59: Pete | L59: =Hamilton!L16 -> 7.04 | M59: Pete | N59: =Lilly!L16 -> 3.92 | O59: Pete | P59: =Highland!L16 -> 0 | Q59: 33.26 | S59: Pete | T59: 33.26
A60: Rich B | B60: =Pachuag!L17 -> 1.17 | C60: Rich B | D60: =Zoar!L17 -> 3.32 | E60: Rich B | F60: =Quaddic!L17 -> 0 | G60: Rich B | H60: =Candlewood!L17 -> 4.96 | I60: Rich B | J60: ='CT River'!L17 -> 4.45 | K60: Rich B | L60: =Hamilton!L17 -> 2.54 | M60: Rich B | N60: =Lilly!L17 -> 5.14 | O60: Rich B | P60: =Highland!L17 -> 3.45 | Q60: 25.03 | S60: Rich B | T60: 25.03
A61: Rich T | B61: =Pachuag!L18 -> 1.71 | C61: Rich T | D61: =Zoar!L18 -> 0 | E61: Rich T | F61: =Quaddic!L18 -> 4.61 | G61: Rich T | H61: =Candlewood!L18 -> 7.78 | I61: Rich T | J61: ='CT River'!L18 -> 2.84 | K61: Rich T | L61: =Hamilton!L18 -> 0.93 | M61: Rich T | N61: =Lilly!L18 -> 4.84 | O61: Rich T | P61: =Highland!L18 -> 0 | Q61: 22.71 | S61: Rich T | T61: 22.71
A62: Ron | B62: =Pachuag!L19 -> 1.38 | C62: Ron | D62: =Zoar!L19 -> 0.79 | E62: Ron | F62: =Quaddic!L19 -> 3.43 | G62: Ron | H62: =Candlewood!L19 -> 8 | I62: Ron | J62: ='CT River'!L19 -> 3.99 | K62: Ron | L62: =Hamilton!L19 -> 6.93 | M62: Ron | N62: =Lilly!L19 -> 3.48 | O62: Ron | P62: =Highland!L19 -> 0 | Q62: 28 | S62: Ron | T62: 28
A63: Scott | B63: =Pachuag!L20 -> 4.86 | C63: Scott | D63: =Zoar!L20 -> 0.89 | E63: Scott | F63: =Quaddic!L20 -> 5.05 | G63: Scott | H63: =Candlewood!L20 -> 6.51 | I63: Scott | J63: ='CT River'!L20 -> 2.94 | K63: Scott | L63: =Hamilton!L20 -> 6.53 | M63: Scott | N63: =Lilly!L20 -> 1.86 | O63: Scott | P63: =Highland!L20 -> 6.8 | Q63: 35.44 | S63: Scott | T63: 35.44
A64: Steve D | B64: =Pachuag!L21 -> 3.38 | C64: Steve D | D64: =Zoar!L21 -> 7.44 | E64: Steve D | F64: =Quaddic!L21 -> 6.86 | G64: Steve D | H64: =Candlewood!L21 -> 10.22 | I64: Steve D | J64: ='CT River'!L21 -> 3.11 | K64: Steve D | L64: =Hamilton!L21 -> 3.3 | M64: Steve D | N64: =Lilly!L21 -> 7.44 | O64: Steve D | P64: =Highland!L21 -> 7.37 | Q64: 49.12 | S64: Steve D | T64: 49.12
A65: Steve S | B65: =Pachuag!L22 -> 3.59 | C65: Steve S | D65: =Zoar!L22 -> 4.85 | E65: Steve S | F65: =Quaddic!L22 -> 0 | G65: Steve S | H65: =Candlewood!L22 -> 1.51 | I65: Steve S | J65: ='CT River'!L22 -> 1.11 | K65: Steve S | L65: =Hamilton!L22 -> 1.93 | M65: Steve S | N65: =Lilly!L22 -> 2.04 | O65: Steve S | P65: =Highland!L22 -> 0 | Q65: 15.03 | S65: Steve S | T65: 15.03
A66: Tom | B66: =Pachuag!L23 -> 0 | C66: Tom | D66: =Zoar!L23 -> 3.9 | E66: Tom | F66: =Quaddic!L23 -> 6.93 | G66: Tom | H66: =Candlewood!L23 -> 3.34 | I66: Tom | J66: ='CT River'!L23 -> 0 | K66: Tom | L66: =Hamilton!L23 -> 5.38 | M66: Tom | N66: =Lilly!L23 -> 3.55 | O66: Tom | P66: =Highland!L23 -> 5.54 | Q66: 28.64 | S66: Tom | T66: 28.64
A67: =P35 -> Vinny | B67: =Pachuag!L24 -> 0 | C67: Vinny | D67: =Zoar!L24 -> 0 | E67: Vinny | F67: =Quaddic!L24 -> 4.54 | G67: Vinny | H67: =Candlewood!L24 -> 0 | I67: Vinny | J67: ='CT River'!L24 -> 0 | K67: Vinny | L67: =Hamilton!L24 -> 7.06 | M67: Vinny | N67: =Lilly!L24 -> 0 | O67: Vinny | P67: =Highland!L24 -> 0 | Q67: 11.6 | S67: Vinny | T67: 11.6
A68: X | B68: =Pachuag!L25 -> 0 | C68: X | D68: =Zoar!L25 -> 0 | E68: X | F68: =Quaddic!L25 -> 0 | G68: X | H68: =Candlewood!L25 -> 0 | I68: X | J68: ='CT River'!L25 -> 0 | K68: X | L68: =Hamilton!L25 -> 0 | M68: X | N68: =Lilly!L25 -> 0 | O68: X | P68: =Highland!L25 -> 0 | Q68: 0 | S68: X | T68: 0
A69: X | B69: =Pachuag!L26 -> 0 | C69: X | D69: =Zoar!L26 -> 0 | E69: X | F69: =Quaddic!L26 -> 0 | G69: X | H69: =Candlewood!L26 -> 0 | I69: X | J69: ='CT River'!L26 -> 0 | K69: X | L69: =Hamilton!L26 -> 0 | M69: X | N69: =Lilly!L26 -> 0 | O69: X | P69: =Highland!L26 -> 0 | Q69: 0 | S69: X | T69: 0
A70: X | B70: =Pachuag!L27 -> 0 | C70: X | D70: =Zoar!L27 -> 0 | E70: X | F70: =Quaddic!L27 -> 0 | G70: X | H70: =Candlewood!L27 -> 0 | I70: X | J70: ='CT River'!L27 -> 0 | K70: X | L70: =Hamilton!L27 -> 0 | M70: X | N70: =Lilly!L27 -> 0 | O70: X | P70: =Highland!L27 -> 0 | Q70: 0 | S70: X | T70: 0
A71: X | B71: =Pachuag!L28 -> 0 | C71: X | D71: =Zoar!L28 -> 0 | E71: X | F71: =Quaddic!L28 -> 0 | G71: X | H71: =Candlewood!L28 -> 0 | I71: X | J71: ='CT River'!L28 -> 0 | K71: X | L71: =Hamilton!L28 -> 0 | M71: X | N71: =Lilly!L28 -> 0 | O71: X | P71: =Highland!L28 -> 0 | Q71: 0 | S71: X | T71: 0
A72: X | B72: =Pachuag!L29 -> 0 | C72: X | D72: =Zoar!L29 -> 0 | E72: X | F72: =Quaddic!L29 -> 0 | G72: X | H72: =Candlewood!L29 -> 0 | I72: X | J72: ='CT River'!L29 -> 0 | K72: X | L72: =Hamilton!L29 -> 0 | M72: X | N72: =Lilly!L29 -> 0 | O72: X | P72: =Highland!L29 -> 0 | Q72: 0 | S72: X | T72: 0
A74: Lunkers
A75: =A45 -> Pachaug | D75: =C45 -> Zoar | G75: =E45 -> Quaddick | J75: =G45 -> Candlewood | M75: =I45 -> CT River | P75: =K45 -> Hamilton | S75: =M45 -> Lilly | V75: =O45 -> Highland
A76: Name | B76: Weight | C76: L or S | D76: Name | E76: Weight | F76: L or S | G76: Name | H76: Weight | I76: L or S | J76: Name | K76: Weight | L76: L or S | M76: Name | N76: Weight | O76: L or S | P76: Name | Q76: Weight | R76: L or S | S76: Name | T76: Weight | U76: L or S | V76: Name | W76: Weight | X76: L or S
A77: Armand F. | B77: =Pachuag!J4 -> 0 | C77: =Pachuag!K4 -> 0 | D77: Armand F. | E77: =Zoar!J4 -> 0 | F77: =Pachuag!N4 -> 4.28 | G77: Armand F. | H77: =Quaddic!J4 -> 0 | I77: =Quaddic!K4 -> 0 | J77: Armand F. | K77: =Candlewood!J4 -> 0 | L77: =Candlewood!K4 -> 0 | M77: Armand F. | N77: ='CT River'!J4 -> 0 | O77: ='CT River'!K4 -> 0 | P77: Armand F. | Q77: =Hamilton!J4 -> 0 | R77: =Hamilton!K4 -> 0 | S77: Armand F. | T77: =Lilly!J4 -> 0 | U77: =Lilly!K4 -> 0 | V77: Armand F. | W77: =Highland!J4 -> 0 | X77: =Highland!K4 -> 0
A78: Bill | B78: =Pachuag!J5 -> 0 | C78: =Pachuag!K5 -> 0 | D78: Bill | E78: =Zoar!J5 -> 0 | F78: =Pachuag!N5 -> 0 | G78: Bill | H78: =Quaddic!J25 -> 0 | I78: =Quaddic!K25 -> 0 | J78: Bill | K78: =Candlewood!J5 -> 0 | L78: =Candlewood!K5 -> 0 | M78: Bill | N78: ='CT River'!J24 -> 0 | O78: ='CT River'!K24 -> 0 | P78: Bill | Q78: =Hamilton!J24 -> 0 | R78: =Hamilton!K24 -> 0 | S78: Bill | T78: =Lilly!J24 -> 0 | U78: =Lilly!K24 -> 0 | V78: Bill | W78: =Highland!J24 -> 0 | X78: =Highland!K24 -> 0
A79: Dean | B79: =Pachuag!J6 -> 0 | C79: =Pachuag!K6 -> 0 | D79: Dean | E79: =Zoar!J6 -> 0 | F79: =Pachuag!N6 -> 0 | G79: Dean | H79: =Quaddic!J5 -> 0 | I79: =Quaddic!K5 -> 0 | J79: Dean | K79: =Candlewood!J6 -> 0 | L79: =Candlewood!K6 -> 0 | M79: Dean | N79: ='CT River'!J5 -> 0 | O79: ='CT River'!K5 -> 0 | P79: Dean | Q79: =Hamilton!J5 -> 0 | R79: =Hamilton!K5 -> 0 | S79: Dean | T79: =Lilly!J5 -> 0 | U79: =Lilly!K5 -> 0 | V79: Dean | W79: =Highland!J5 -> 0 | X79: =Highland!K5 -> 0
A80: Jack | B80: =Pachuag!J7 -> 0 | C80: =Pachuag!K7 -> 0 | D80: Jack | E80: =Zoar!J7 -> 0 | F80: =Pachuag!N7 -> 1.47 | G80: Jack | H80: =Quaddic!J6 -> 0 | I80: =Quaddic!K6 -> 0 | J80: Jason | K80: =Candlewood!J8 -> 0 | L80: =Candlewood!K8 -> 0 | M80: Jack | N80: ='CT River'!J6 -> 0 | O80: ='CT River'!K6 -> 0 | P80: Jack | Q80: =Hamilton!J6 -> 0 | R80: =Hamilton!K6 -> 0 | S80: Jack | T80: =Lilly!J6 -> 0 | U80: =Lilly!K6 -> 0 | V80: Jack | W80: =Highland!J6 -> 0 | X80: =Highland!K6 -> 0
A81: Jason | B81: =Pachuag!J8 -> 0 | C81: =Pachuag!K8 -> 0 | D81: Jason | E81: =Zoar!J8 -> 0 | F81: =Pachuag!N8 -> 1.08 | G81: Jason | H81: =Quaddic!J8 -> 0 | I81: =Quaddic!K8 -> 0 | J81: Jeff | K81: =Candlewood!J9 -> 0 | L81: =Candlewood!K9 -> 0 | M81: Jeff | N81: ='CT River'!J8 -> 0 | O81: ='CT River'!K8 -> 0 | P81: Jason | Q81: =Hamilton!J7 -> 0 | R81: =Hamilton!K7 -> 0 | S81: Jason | T81: =Lilly!J7 -> 0 | U81: =Lilly!K7 -> 0 | V81: Jason | W81: =Highland!J7 -> 0 | X81: =Highland!K7 -> 0
A82: Jeff | B82: =Pachuag!J9 -> 0 | C82: =Pachuag!K9 -> 0 | D82: Jeff | E82: =Zoar!J9 -> 0 | F82: =Pachuag!N9 -> 0 | G82: Jim B | H82: =Quaddic!J10 -> 0 | I82: =Quaddic!K10 -> 0 | J82: Jim B | K82: =Candlewood!J10 -> 0 | L82: =Candlewood!K10 -> 0 | M82: Jim B | N82: ='CT River'!J9 -> 0 | O82: ='CT River'!K9 -> 0 | P82: Jeff | Q82: =Hamilton!J8 -> 0 | R82: =Hamilton!K8 -> 0 | S82: Jim B | T82: =Lilly!J9 -> 0 | U82: =Lilly!K9 -> 0 | V82: Jim H | W82: =Highland!J10 -> 0 | X82: =Highland!K10 -> 0
A83: Jim B | B83: =Pachuag!J10 -> 0 | C83: =Pachuag!K10 -> 0 | D83: Jim B | E83: =Zoar!J10 -> 0 | F83: =Pachuag!N10 -> 0 | G83: Jim H | H83: =Quaddic!J11 -> 0 | I83: =Quaddic!K11 -> 0 | J83: Jim H | K83: =Candlewood!J11 -> 0 | L83: =Candlewood!K11 -> 0 | M83: Jim H | N83: ='CT River'!J10 -> 0 | O83: ='CT River'!K10 -> 0 | P83: Jim B | Q83: =Hamilton!J9 -> 0 | R83: =Hamilton!K9 -> 0 | S83: Jim H | T83: =Lilly!J10 -> 0 | U83: =Lilly!K10 -> 0 | V83: Joe | W83: =Highland!J11 -> 0 | X83: =Highland!K11 -> 0
A84: Jim H | B84: =Pachuag!J11 -> 0 | C84: =Pachuag!K11 -> 0 | D84: Jim H | E84: =Zoar!J11 -> 0 | F84: =Pachuag!N11 -> 1.08 | G84: Joe | H84: =Quaddic!J12 -> 0 | I84: =Quaddic!K12 -> 0 | J84: Joe | K84: =Candlewood!J12 -> 0 | L84: =Candlewood!K12 -> 0 | M84: Joe | N84: ='CT River'!J11 -> 0 | O84: ='CT River'!K11 -> 0 | P84: Jim H | Q84: =Hamilton!J10 -> 0 | R84: =Hamilton!K10 -> 0 | S84: Joe | T84: =Lilly!J11 -> 0 | U84: =Lilly!K11 -> 0 | V84: Kevin | W84: =Highland!J12 -> 0 | X84: =Highland!K12 -> 0
A85: Joe | B85: =Pachuag!J12 -> 0 | C85: =Pachuag!K12 -> 0 | D85: Joe | E85: =Zoar!J12 -> 0 | F85: =Pachuag!N12 -> 0 | G85: Kevin | H85: =Quaddic!J14 -> 0 | I85: =Quaddic!K14 -> 0 | J85: Kevin | K85: =Candlewood!J13 -> 0 | L85: =Candlewood!K13 -> 0 | M85: Kevin | N85: ='CT River'!J12 -> 0 | O85: ='CT River'!K12 -> 0 | P85: Joe | Q85: =Hamilton!J11 -> 0 | R85: =Hamilton!K11 -> 0 | S85: Mike | T85: =Lilly!J13 -> 0 | U85: =Lilly!K13 -> 0 | V85: Mike | W85: =Highland!J13 -> 0 | X85: =Highland!K13 -> 0
A86: Kevin | B86: =Pachuag!J13 -> 0 | C86: =Pachuag!K13 -> 0 | D86: Kevin | E86: =Zoar!J13 -> 0 | F86: =Pachuag!N13 -> 6.76 | G86: Mike | H86: =Quaddic!J15 -> 0 | I86: =Quaddic!K15 -> 0 | J86: Mike | K86: =Candlewood!J14 -> 0 | L86: =Candlewood!K14 -> 0 | M86: Mike | N86: ='CT River'!J13 -> 0 | O86: ='CT River'!K13 -> 0 | P86: Mike | Q86: =Hamilton!J13 -> 0 | R86: =Hamilton!K13 -> 0 | S86: Morrie | T86: =Lilly!J14 -> 0 | U86: =Lilly!K14 -> 0 | V86: Morrie | W86: =Highland!J14 -> 0 | X86: =Highland!K14 -> 0
A87: Mike | B87: =Pachuag!J14 -> 0 | C87: =Pachuag!K14 -> 0 | D87: Mike | E87: =Zoar!J14 -> 0 | F87: =Pachuag!N14 -> 0 | G87: Morrie | H87: =Quaddic!J16 -> 0 | I87: =Quaddic!K16 -> 0 | J87: Morrie | K87: =Candlewood!J15 -> 0 | L87: =Candlewood!K15 -> 0 | M87: Morrie | N87: ='CT River'!J14 -> 0 | O87: ='CT River'!K14 -> 0 | P87: Morrie | Q87: =Hamilton!J14 -> 0 | R87: =Hamilton!K14 -> 0 | S87: Rich B | T87: =Lilly!J16 -> 0 | U87: =Lilly!K16 -> 0 | V87: Pete | W87: =Highland!J15 -> 0 | X87: =Highland!K15 -> 0
A88: Morrie | B88: =Pachuag!J15 -> 0 | C88: =Pachuag!K15 -> 0 | D88: Morrie | E88: =Zoar!J15 -> 0 | F88: =Pachuag!N15 -> 0.64 | G88: Pete | H88: =Quaddic!J17 -> 0 | I88: =Quaddic!K17 -> 0 | J88: Pete | K88: =Candlewood!J16 -> 0 | L88: =Candlewood!K16 -> 0 | M88: Pete | N88: ='CT River'!J15 -> 0 | O88: ='CT River'!K15 -> 0 | P88: Rich B | Q88: =Hamilton!J16 -> 0 | R88: =Hamilton!K16 -> 0 | S88: Rich T | T88: =Lilly!J17 -> 0 | U88: =Lilly!K17 -> 0 | V88: Rich B | W88: =Highland!J16 -> 0 | X88: =Highland!K16 -> 0
A89: Pete | B89: =Pachuag!J16 -> 0 | C89: =Pachuag!K16 -> 0 | D89: Pete | E89: =Zoar!J16 -> 0 | F89: =Pachuag!N16 -> 7.74 | G89: Rich B | H89: =Quaddic!J18 -> 0 | I89: =Quaddic!K18 -> 0 | J89: Rich B | K89: =Candlewood!J17 -> 0 | L89: =Candlewood!K17 -> 0 | M89: Rich B | N89: ='CT River'!J16 -> 0 | O89: ='CT River'!K16 -> 0 | P89: Rich T | Q89: =Hamilton!J17 -> 0 | R89: =Hamilton!K17 -> 0 | S89: Ron | T89: =Lilly!J18 -> 0 | U89: =Lilly!K18 -> 0 | V89: Rich T | W89: =Highland!J17 -> 0 | X89: =Highland!K17 -> 0
A90: Rich B | B90: =Pachuag!J17 -> 0 | C90: =Pachuag!K17 -> 0 | D90: Rich B | E90: =Zoar!J17 -> 0 | F90: =Pachuag!N17 -> 1.17 | G90: Rich T | H90: =Quaddic!J20 -> 0 | I90: =Quaddic!K20 -> 0 | J90: Rich T | K90: =Candlewood!J18 -> 0 | L90: =Candlewood!K18 -> 0 | M90: Rich T | N90: ='CT River'!J17 -> 0 | O90: ='CT River'!K17 -> 0 | P90: Ron | Q90: =Hamilton!J18 -> 0 | R90: =Hamilton!K18 -> 0 | S90: Scott | T90: =Lilly!J19 -> 0 | U90: =Lilly!K19 -> 0 | V90: Ron | W90: =Highland!J18 -> 0 | X90: =Highland!K18 -> 0
A91: Rich T | B91: =Pachuag!J18 -> 0 | C91: =Pachuag!K18 -> 0 | D91: Rich T | E91: =Zoar!J18 -> 0 | F91: =Pachuag!N18 -> 1.71 | G91: Scott | H91: =Quaddic!J22 -> 0 | I91: =Quaddic!K22 -> 0 | J91: Ron | K91: =Candlewood!J19 -> 0 | L91: =Candlewood!K19 -> 0 | M91: Ron | N91: ='CT River'!J18 -> 0 | O91: ='CT River'!K18 -> 0 | P91: Scott | Q91: =Hamilton!J19 -> 0 | R91: =Hamilton!K19 -> 0 | S91: Steve D | T91: =Lilly!J20 -> 0 | U91: =Lilly!K20 -> 0 | V91: Scott | W91: =Highland!J19 -> 0 | X91: =Highland!K19 -> 0
A92: Ron | B92: =Pachuag!J19 -> 0 | C92: =Pachuag!K19 -> 0 | D92: Ron | E92: =Zoar!J19 -> 0 | F92: =Pachuag!N19 -> 1.38 | G92: Steve D | H92: =Quaddic!J23 -> 0 | I92: =Quaddic!K23 -> 0 | J92: Scott | K92: =Candlewood!J20 -> 0 | L92: =Candlewood!K20 -> 0 | M92: Scott | N92: ='CT River'!J19 -> 0 | O92: ='CT River'!K19 -> 0 | P92: Steve D | Q92: =Hamilton!J20 -> 0 | R92: =Hamilton!K20 -> 0 | S92: Steve S | T92: =Lilly!J21 -> 0 | U92: =Lilly!K21 -> 0 | V92: Steve D | W92: =Highland!J20 -> 0 | X92: =Highland!K20 -> 0
A93: Scott | B93: =Pachuag!J20 -> 0 | C93: =Pachuag!K20 -> 0 | D93: Scott | E93: =Zoar!J20 -> 0 | F93: =Pachuag!N20 -> 4.86 | G93: Steve S | H93: =Quaddic!J24 -> 0 | I93: =Quaddic!K24 -> 0 | J93: Steve D | K93: =Candlewood!J21 -> 0 | L93: =Candlewood!K21 -> 0 | M93: Steve D | N93: ='CT River'!J20 -> 0 | O93: ='CT River'!K20 -> 0 | P93: Steve S | Q93: =Hamilton!J21 -> 0 | R93: =Hamilton!K21 -> 0 | S93: Tom | T93: =Lilly!J22 -> 0 | U93: =Lilly!K22 -> 0 | V93: Steve S | W93: =Highland!J21 -> 0 | X93: =Highland!K21 -> 0
A94: Steve D | B94: =Pachuag!J21 -> 0 | C94: =Pachuag!K21 -> 0 | D94: Steve D | E94: =Zoar!J21 -> 0 | F94: =Pachuag!N21 -> 3.38 | G94: Tom | H94: =Pachuag!P23 -> 0 | I94: 0 | J94: Steve S | K94: =Candlewood!J22 -> 0 | L94: =Candlewood!K22 -> 0 | M94: Steve S | N94: ='CT River'!J21 -> 0 | O94: ='CT River'!K21 -> 0 | P94: Tom | Q94: =Hamilton!J22 -> 0 | R94: =Hamilton!K22 -> 0 | S94: Vinny | T94: =Lilly!J23 -> 0 | U94: =Lilly!K23 -> 0 | V94: Tom | W94: =Highland!J22 -> 0 | X94: =Highland!K22 -> 0
A95: Tom | B95: =Pachuag!J23 -> 0 | C95: =Pachuag!K23 -> 0 | D95: Tom | E95: =Zoar!J23 -> 0 | F95: =Pachuag!N23 -> 0 | G95: Vinny | H95: =Pachuag!P24 -> 0 | I95: 0 | J95: Tom | K95: =Candlewood!J23 -> 0 | L95: =Candlewood!K23 -> 0 | M95: Tom | N95: ='CT River'!J22 -> 0 | O95: ='CT River'!K22 -> 0 | P95: X | Q95: =Hamilton!J25 -> 0 | R95: =Hamilton!K25 -> 0 | S95: X | T95: =Lilly!J25 -> 0 | U95: =Lilly!K25 -> 0 | V95: X | W95: =Highland!J25 -> 0 | X95: =Highland!K25 -> 0
A96: Vinny | B96: =Pachuag!J24 -> 0 | C96: =Pachuag!K24 -> 0 | D96: Vinny | E96: =Zoar!J24 -> 0 | F96: =Pachuag!N24 -> 0 | G96: X | H96: =Pachuag!P25 -> 0 | I96: 0 | J96: Vinny | K96: =Candlewood!J24 -> 0 | L96: =Candlewood!K24 -> 0 | M96: Vinny | N96: ='CT River'!J23 -> 0 | O96: ='CT River'!K23 -> 0 | P96: X | Q96: =Hamilton!J26 -> 0 | R96: =Hamilton!K26 -> 0 | S96: X | T96: =Lilly!J26 -> 0 | U96: =Lilly!K26 -> 0 | V96: X | W96: =Highland!J26 -> 0 | X96: =Highland!K26 -> 0
A97: X | B97: =Pachuag!J25 -> 0 | C97: =Pachuag!K25 -> 0 | D97: X | E97: =Zoar!J25 -> 0 | F97: =Pachuag!N25 -> 0 | G97: X | H97: =Pachuag!P26 -> 0 | I97: 0 | J97: X | K97: =Candlewood!J25 -> 0 | L97: =Candlewood!K25 -> 0 | M97: X | N97: ='CT River'!J24 -> 0 | O97: ='CT River'!K25 -> 0 | P97: X | Q97: =Hamilton!J27 -> 0 | R97: =Hamilton!K27 -> 0 | S97: X | T97: =Lilly!J27 -> 0 | U97: =Lilly!K27 -> 0 | V97: X | W97: =Highland!J27 -> 0 | X97: =Highland!K27 -> 0
A98: X | B98: =Pachuag!J26 -> 0 | C98: =Pachuag!K26 -> 0 | D98: X | E98: =Zoar!J26 -> 0 | F98: =Pachuag!N26 -> 0 | G98: X | H98: =Pachuag!P27 -> 0 | I98: 0 | J98: X | K98: =Candlewood!J26 -> 0 | L98: =Candlewood!K26 -> 0 | M98: X | N98: ='CT River'!J25 -> 0 | O98: ='CT River'!K26 -> 0 | P98: X | Q98: =Hamilton!J28 -> 0 | R98: =Hamilton!K28 -> 0 | S98: X | T98: =Lilly!J28 -> 0 | U98: =Lilly!K28 -> 0 | V98: X | W98: =Highland!J28 -> 0 | X98: =Highland!K28 -> 0
A99: X | B99: =Pachuag!J27 -> 0 | C99: =Pachuag!K27 -> 0 | D99: X | E99: =Zoar!J27 -> 0 | F99: =Pachuag!N27 -> 0 | G99: X | H99: =Pachuag!P28 -> 0 | I99: 0 | J99: X | K99: =Candlewood!J27 -> 0 | L99: =Candlewood!K27 -> 0 | M99: X | N99: ='CT River'!J26 -> 0 | O99: ='CT River'!K27 -> 0 | P99: X | Q99: =Hamilton!J29 -> 0 | R99: =Hamilton!K29 -> 0 | S99: X | T99: =Lilly!J29 -> 0 | U99: =Lilly!K29 -> 0 | V99: X | W99: =Highland!J29 -> 0 | X99: =Highland!K29 -> 0
A100: X | B100: =Pachuag!J28 -> 0 | C100: =Pachuag!K28 -> 0 | D100: X | E100: =Zoar!J28 -> 0 | F100: =Pachuag!N28 -> 0 | G100: =G99 -> X | H100: =H99 -> 0 | J100: X | K100: =Candlewood!J28 -> 0 | L100: =Candlewood!K28 -> 0 | M100: X | N100: ='CT River'!J27 -> 0 | O100: ='CT River'!K28 -> 0 | P100: Vinny | Q100: =Hamilton!J23 -> 1.27 | R100: =Hamilton!K23 -> LMB | S100: Kevin | T100: =Lilly!J12 -> 3.83 | U100: =Lilly!K12 -> LMB | V100: Vinny | W100: =Highland!J23 -> 2.04 | X100: =Highland!K23 -> lmb
A101: =P39 -> X | B101: =Pachuag!J29 -> 0 | C101: =Pachuag!K29 -> 0 | D101: X | E101: =Zoar!J29 -> 0 | F101: =Pachuag!N29 -> 0 | G101: Ron | H101: =Quaddic!J21 -> 3.37 | I101: =Quaddic!K21 -> 0 | J101: X | K101: =Candlewood!J29 -> 0 | L101: =Candlewood!K29 -> 0 | M101: X | N101: ='CT River'!J28 -> 0 | O101: ='CT River'!K29 -> 0 | P101: Kevin | Q101: =Hamilton!J12 -> 2.54 | R101: =Hamilton!K12 -> LMB | S101: Pete | T101: =Lilly!J15 -> 3.87 | U101: =Lilly!K15 -> LMB | V101: Jeff | W101: =Highland!J8 -> 3.15 | X101: =Highland!K8 -> smb
A102: Steve S | B102: =Pachuag!J22 -> 3.59 | C102: =Pachuag!K22 -> LMB | D102: Steve S | E102: =Zoar!J22 -> 3.57 | F102: =Pachuag!N22 -> 3.59 | G102: Jeff | H102: =Quaddic!J9 -> 3.62 | I102: =Quaddic!K9 -> lmb | J102: Jack | K102: =Candlewood!J7 -> 3.53 | L102: =Candlewood!K7 -> LMB | M102: Jason | N102: ='CT River'!J7 -> 2.03 | O102: ='CT River'!K7 -> lmb | P102: Pete | Q102: =Hamilton!J15 -> 2.82 | R102: =Hamilton!K15 -> LMB | S102: Jeff | T102: =Lilly!J8 -> 4.23 | U102: =Lilly!K8 -> SMB | V102: Jim B | W102: =Highland!J9 -> 3.47 | X102: =Highland!K9 -> LMB
A103: =A102 -> Steve S | B103: =B102 -> 3.59 | C103: =C102 -> LMB | D103: =D102 -> Steve S | E103: 3.57 | F103: =F102 -> 3.59 | G103: =G102 -> Jeff | H103: =H102 -> 3.62 | J103: Jack | K103: 3.53 | L103: LMB | M103: Jason | N103: 2.03 | O103: lmb | P103: Pete | Q103: 2.82 | R103: LMB | S103: Jeff | T103: 4.23 | U103: SMB | V103: Jim B | W103: 3.47 | X103: LMB

Sheet Report
A1: MVBC 2015 Year-To-Date Report
A3: Individual Standings | E3: Lunkers | K3: Individual Total Weight
A4: Name | B4: Position | C4: Points | E4: Lake / River | F4: Name | G4: Weight | H4: Species | I4: Trophy | K4: Name | L4: Weight
A5: =YTD!E15 -> Steve D | B5: =YTD!F15 -> 1 | C5: =YTD!G15 -> 15 | E5: =YTD!L15 -> Pachaug | F5: =IF(YTD!A103="X","N/A",YTD!A103) -> Steve S | G5: =YTD!B103 -> 3.59 | H5: =IF(YTD!C103=0,"N/A",YTD!C103) -> LMB | I5: =IF((H5="LMB")*AND(G5>=6),"Yes",IF((H5="SMB")*AND(G5>=4),"Yes","No")) -> No | K5: =YTD!S64 -> Steve D | L5: =YTD!T64 -> 49.12
A6: =YTD!E16 -> Jeff | B6: =YTD!F16 -> 2 | C6: =YTD!G16 -> 21 | E6: =YTD!L16 -> Zoar | F6: =IF(YTD!D103="X","N/A",YTD!D103) -> Steve S | G6: =YTD!E103 -> 3.57 | H6: SMB | I6: =IF((H6="LMB")*AND(G6>=6),"Yes",IF((H6="SMB")*AND(G6>=4),"Yes","No")) -> No | K6: =YTD!S52 -> Jeff | L6: =YTD!T52 -> 43.5
A7: =YTD!E17 -> Kevin | B7: =YTD!F17 -> 3 | C7: =YTD!G17 -> 27 | E7: =YTD!L17 -> Quaddick | F7: =IF(YTD!G103="X","N/A",YTD!G103) -> Jeff | G7: =YTD!H103 -> 3.62 | H7: =IF(YTD!I103=0,"N/A",YTD!I103) -> N/A | I7: No | K7: =YTD!S47 -> Armand F. | L7: =YTD!T47 -> 41.17
A8: =YTD!E18 -> Scott | B8: =YTD!F18 -> 4 | C8: =YTD!G18 -> 32 | E8: =YTD!L18 -> Candlewood | F8: =IF(YTD!J103="X","N/A",YTD!J103) -> Jack | G8: =YTD!K103 -> 3.53 | H8: =IF(YTD!L103=0,"N/A",YTD!L103) -> LMB | I8: No | K8: =YTD!S56 -> Kevin | L8: =YTD!T56 -> 40.22
A9: =YTD!E19 -> Jason | B9: =YTD!F19 -> 5 | C9: =YTD!G19 -> 35 | E9: =YTD!L19 -> CT River | F9: =IF(YTD!M103="X","N/A",YTD!J103) -> Jack | G9: =YTD!N103 -> 2.03 | H9: =IF(YTD!O103=0,"N/A",YTD!O103) -> lmb | I9: =IF((H9="LMB")*AND(G9>=6),"Yes",IF((H9="SMB")*AND(G9>=4),"Yes","No")) -> No | K9: =YTD!S63 -> Scott | L9: =YTD!T63 -> 35.44
A10: =YTD!E20 -> Jack | B10: =YTD!F20 -> 6 | C10: =YTD!G20 -> 36 | E10: =YTD!L20 -> Hamilton | F10: Morrie | G10: =YTD!Q103 -> 2.82 | H10: =IF(YTD!R103=0,"N/A",YTD!R103) -> LMB | I10: =IF((H10="LMB")*AND(G10>=6),"Yes",IF((H10="SMB")*AND(G10>=4),"Yes","No")) -> No | K10: =YTD!S51 -> Jason | L10: =YTD!T51 -> 34.56
A11: =YTD!E21 -> Armand F. | B11: =YTD!F21 -> 7 | C11: =YTD!G21 -> 37 | E11: =YTD!L21 -> Lilly | F11: Jason | G11: =YTD!T103 -> 4.23 | H11: =IF(YTD!U103=0,"N/A",YTD!U103) -> SMB | I11: Yes | K11: =YTD!S50 -> Jack | L11: =YTD!T50 -> 33.39
A12: =YTD!E22 -> Pete | B12: =YTD!F22 -> 8 | C12: =YTD!G22 -> 42 | E12: =YTD!L22 -> Highland | F12: Jeff | G12: =YTD!W103 -> 3.47 | H12: =IF(YTD!X103=0,"N/A",YTD!X103) -> LMB | I12: =IF((H12="LMB")*AND(G12>=6),"Yes",IF((H12="SMB")*AND(G12>=4),"Yes","No")) -> No | K12: =YTD!S59 -> Pete | L12: =YTD!T59 -> 33.26
A13: =YTD!E23 -> Ron | B13: =YTD!F23 -> 9 | C13: =YTD!G23 -> 51 | K13: =YTD!S66 -> Tom | L13: =YTD!T66 -> 28.64
A14: =YTD!E24 -> Tom | B14: =YTD!F24 -> 10 | C14: =YTD!G24 -> 52 | E14: Statistics | K14: =YTD!S62 -> Ron | L14: =YTD!T62 -> 28
A15: =YTD!E25 -> Rich B | B15: =YTD!F25 -> 11 | C15: =YTD!G25 -> 54 | E15: Lake / River | F15: Anglers | G15: Fish | H15: Total Wt | I15: Avg Wt | K15: =YTD!S60 -> Rich B | L15: =YTD!T60 -> 25.03
A16: =YTD!E26 -> Rich T | B16: =YTD!F26 -> 12 | C16: =YTD!G26 -> 59 | E16: =YTD!L15 -> Pachaug | F16: =Pachuag!E30 -> 17 | G16: =Pachuag!M30 -> 27 | H16: =Pachuag!L30 -> 39.14 | I16: =IF(G16=0,0,H16/G16) -> 1.44962963 | K16: =YTD!S49 -> Dean | L16: =YTD!T49 -> 23.08
A17: =YTD!E27 -> Mike | B17: =YTD!F27 -> 13 | C17: =YTD!G27 -> 63 | E17: =YTD!L16 -> Zoar | F17: =Zoar!E30 -> 19 | G17: =Zoar!M30 -> 44 | H17: =Zoar!L30 -> 61.99 | I17: 1.408863636 | K17: =YTD!S61 -> Rich T | L17: =YTD!T61 -> 22.71
A18: =YTD!E28 -> Steve S | B18: =YTD!F28 -> 14 | C18: =YTD!G28 -> 77 | E18: =YTD!L17 -> Quaddick | F18: =Quaddic!E30 -> 21 | G18: =Quaddic!M30 -> 73 | H18: =Quaddic!L30 -> 81.48 | I18: 1.116164384 | K18: =YTD!S57 -> Mike | L18: =YTD!T57 -> 20.95
A19: =YTD!E29 -> Dean | B19: =YTD!F29 -> 15 | C19: =YTD!G29 -> 80 | E19: =YTD!L18 -> Candlewood | F19: =Candlewood!E30 -> 21 | G19: =Candlewood!M30 -> 66 | H19: =Candlewood!L30 -> 112.24 | I19: 1.700606061 | K19: =YTD!S54 -> Jim H | L19: =YTD!T54 -> 16.54
A20: =YTD!E30 -> Jim H | B20: =YTD!F30 -> 16 | C20: =YTD!G30 -> 89 | E20: =YTD!L19 -> CT River | F20: ='CT River'!E30 -> 20 | G20: ='CT River'!M30 -> 33 | H20: ='CT River'!L30 -> 41.4 | I20: 1.254545455 | K20: =YTD!S55 -> Joe | L20: =YTD!T55 -> 16.51
A21: =YTD!E31 -> Bill | B21: =YTD!F31 -> 17 | C21: =YTD!G31 -> 95 | E21: =YTD!L20 -> Hamilton | F21: =Hamilton!E30 -> 19 | G21: =Hamilton!M30 -> 66 | H21: =Hamilton!L30 -> 84.51 | I21: 1.280454545 | K21: =YTD!S53 -> Jim B | L21: =YTD!T53 -> 15.8
A22: =YTD!E32 -> Morrie | B22: =YTD!F32 -> 18 | C22: =YTD!G32 -> 96 | E22: =YTD!L21 -> Lilly | F22: =Lilly!E30 -> 20 | G22: =Lilly!M30 -> 70 | H22: =Lilly!L30 -> 97.5 | I22: 1.392857143 | K22: =YTD!S58 -> Morrie | L22: =YTD!T58 -> 15.51
A23: =YTD!E33 -> Joe | B23: =YTD!F33 -> 19 | C23: =YTD!G33 -> 106 | E23: =YTD!L22 -> Highland | F23: =Highland!E30 -> 16 | G23: =Highland!M30 -> 29 | H23: =Highland!L30 -> 44.23 | I23: 1.525172414 | K23: =YTD!S65 -> Steve S | L23: =YTD!T65 -> 15.03
A24: =YTD!E34 -> Jim B | B24: =YTD!F34 -> 20 | C24: =YTD!G34 -> 107 | K24: =YTD!S48 -> Bill | L24: =YTD!T48 -> 12.43
A25: =YTD!E35 -> Vinny | B25: =YTD!F35 -> 21 | C25: =YTD!G35 -> 141 | E25: Winning Teams | K25: =YTD!S67 -> Vinny | L25: =YTD!T67 -> 11.6
A26: =YTD!E36 -> X | B26: =YTD!F36 -> 22 | C26: =YTD!G36 -> 210 | E26: Lake / River | F26: Team Number | H26: Total Weight | K26: =YTD!S68 -> X | L26: =YTD!T68 -> 0
A27: =YTD!E37 -> X | B27: =YTD!F37 -> 22 | C27: =YTD!G37 -> 210 | E27: =YTD!L15 -> Pachaug | F27: =IF(Teams!N4=20,"N/A",Teams!N4) -> 4 | H27: =Teams!O4 -> 14.5 | K27: =YTD!S69 -> X | L27: =YTD!T69 -> 0
A28: =YTD!E38 -> X | B28: =YTD!F38 -> 22 | C28: =YTD!G38 -> 210 | E28: =YTD!L16 -> Zoar | F28: =IF(Teams!N34=20,"N/A",Teams!N34) -> 4 | H28: =Teams!O34 -> 12.99 | K28: =YTD!S70 -> X | L28: =YTD!T70 -> 0
A29: =YTD!E39 -> X | B29: =YTD!F39 -> 22 | C29: =YTD!G39 -> 210 | E29: =YTD!L17 -> Quaddick | F29: =IF(Teams!N64=20,"N/A",Teams!N64) -> 3 | H29: =Teams!O64 -> 11.47 | K29: =YTD!S71 -> X | L29: =YTD!T71 -> 0
A30: =YTD!E40 -> X | B30: =YTD!F40 -> 22 | C30: =YTD!G40 -> 210 | E30: =YTD!L18 -> Candlewood | F30: =IF(Teams!N94=20,"N/A",Teams!N94) -> 1 | H30: =Teams!O94 -> 19.82 | K30: =YTD!S72 -> X | L30: =YTD!T72 -> 0
E31: =YTD!L19 -> CT River | F31: =IF(Teams!AD4=20,"N/A",Teams!AD4) -> 7 | H31: =Teams!AE4 -> 8.08
E32: =YTD!L20 -> Hamilton | F32: =IF(Teams!AD34=20,"N/A",Teams!AD34) -> 6 | H32: =Teams!AE34 -> 13.99
E33: =YTD!L21 -> Lilly | F33: =IF(Teams!AD64=20,"N/A",Teams!AD64) -> 2 | H33: =Teams!AE64 -> 13.73
E34: =YTD!L22 -> Highland | F34: =IF(Teams!AD94=20,"N/A",Teams!AD94) -> 9 | H34: =Teams!AE94 -> 9.02

Sheet Sheet1
A1: Pachaug | B1: Zoar | C1: Quaddic | D1: Candlewood | E1: CT River | F1: Hanilton | G1: Lilly | H1: Highland | J1: Black Plates | K1: Brass Plates | M1: Mr Skunk
A2: Pete | B2: Steve | C2: Steve | D2: Jack | E2: Jason | F2: Jeff | G2: Morrie | H2: Steve | J2: Pachaug Pond | K2: Pachaug Pond | M2: Joe Scarfi
A3: Kevin | B3: Jim B. | C3: Tom | D3: Steve | E3: Jack | F3: Vinney | G3: Kevin | H3: Armand | J3: 2015 | K3: 2015
A4: Scott | B4: Kevin | C4: Pete | D4: Dean | E4: Rich B | F4: Pete | G4: Jeff | H4: Scott | J4: 1rst Place | K4: 2nd Place | M4: Trophy
J5: Pachaug Pond | K5: Lake Zoar | M5: Smallmouth
J6: 2015 | K6: 2015 | M6: Jason Rustic | P6: MVBCDEEP
J7: 3rd Place | K7: 1rst Place | M7: 4.23 | P7: GetTheNet1
J8: Quaddic | K8: Lake Zoar
J9: 2015 | K9: 2015 | M9: Mr Bass | P9: April 16th | Q9: 6:30 - 2:30
J10: 3rd Place | K10: 2nd Place | M10: Steve Deguzis | P10: May 14th | Q10: 5:30 - 1:30
J11: CT River | K11: Lake Zoar | M11: 2015 | P11: June 5th | Q11: 5:30 - 1:30
J12: 2015 | K12: 2015 | P12: June 25th | Q12: 5:30 - 1:30
J13: 1rst Place | K13: 3rd Place | P13: July 23rd | Q13: 8:00 - 4:00
J14: CT River | K14: Quaddic | P14: August 6th | Q14: 6:00 - 2:00
J15: 2015 | K15: 2015 | P15: September 10th | Q15: 6:00 - 2:00
J16: 3rd Place | K16: 1rst Place | P16: October 1rst | Q16: 7:00 - 3:00
J17: Hamilton | K17: Quaddic
J18: 2015 | K18: 2015
J19: 2nd Place | K19: 2nd Place
J20: Hamilton | K20: Candlewood
J21: 2015 | K21: 2015
J22: 3rd Place | K22: 1rst Place
J23: lake lillinonah | K23: Candlewood
J24: 2015 | K24: 2015
J25: 1rst Place | K25: 2nd Place
J26: Highland Lake | K26: Candlewood
J27: 2015 | K27: 2015
J28: 2nd Place | K28: 3rd Place
J29: Highland Lake | K29: CT River
J30: 2015 | K30: 2015
J31: 3rd Place | K31: 2nd Place
K32: Hamilton
K33: 2015
K34: 1rst Place
K35: lake lillinonah
K36: 2015
K37: 2nd Place
K38: lake lillinonah
K39: 2015
K40: 3rd Place
K41: Highland Lake
K42: 2015
K43: 1rst Place

Sheet Sheet2
B1: Black Plates | C1: Brass Plates | E1: VP467-630 Black 10x12 Shield | G1: Angler of the Year
G2: Same trophy as last year
B3: Pachaug Pond | C3: Pachaug Pond | E3: Mohawk Valley BassCasters | G3: GF 12-2P-PDR-5PC 31" with fish
B4: 2015 | C4: 2015 | E4: 2015 Trophy Smallmouth
B5: 1rst Place | C5: 2nd Place | E5: Jason Rustic | G5: Mohawk Valley BassCasters
B6: Pachaug Pond | C6: Lake Zoar | E6: 4,23LB | G6: 2015 Angler of the Year
B7: 2015 | C7: 2015 | G7: Steve Deguzis
B8: 3rd Place | C8: 1rst Place
B9: Quaddic | C9: Lake Zoar
B10: 2015 | C10: 2015
B11: 3rd Place | C11: 2nd Place
B12: CT River | C12: Lake Zoar
B13: 2015 | C13: 2015
B14: 1rst Place | C14: 3rd Place
B15: CT River | C15: Quaddic
B16: 2015 | C16: 2015
B17: 3rd Place | C17: 1rst Place
B18: Hamilton | C18: Quaddic
B19: 2015 | C19: 2015
B20: 2nd Place | C20: 2nd Place
B21: Hamilton | C21: Candlewood
B22: 2015 | C22: 2015
B23: 3rd Place | C23: 1rst Place
B24: lake lillinonah | C24: Candlewood
B25: 2015 | C25: 2015
B26: 1rst Place | C26: 2nd Place
B27: Highland Lake | C27: Candlewood
B28: 2015 | C28: 2015
B29: 2nd Place | C29: 3rd Place
B30: Highland Lake | C30: CT River
B31: 2015 | C31: 2015
B32: 3rd Place | C32: 2nd Place
C33: Hamilton
B34: 2015 | C34: 2015
B35: Steve Deguzis | C35: 1rst Place
C36: lake lillinonah
B37: 2015 | C37: 2015
B38: Joe Scarfi | C38: 2nd Place
C39: lake lillinonah
C40: 2015
C41: 3rd Place
C42: Highland Lake
C43: 2015
C44: 1rst Place
